Workbook

Sheet Summary (hidden)
B1: N 쇼핑 상품검색
B5: N 쇼핑 키워드 추천 | D5: =+DataBase!$A$16 -> 
D6: =+DataBase!$A$17 -> 
B7: N 검색 연관 검색어
D8: =+DataBase!$A$18 -> 유아책상 어린이 의자 어린이책상의자 어린이책상세트 책상 이케아 어린이 책상 시디즈 어린이 의자 원목어린이책상 제롬 모션데스크 일룸 제롬
B11: 어린이 책상 | D11: 랭킹순 | H11: 상호명 | I11: =ROUNDUP(AVERAGE(I13:I91),-2) -> 355100 | J11: 구매건수 | K11: 리뷰수
C13: =IFERROR(INT(IF(DataBase!P30<6,DataBase!P30,"")),"") ->  | D13: =+DataBase!B30 -> [리바트하움] 신학기 초등학생 초등학교책상세트 | H13: =+DataBase!C30 -> 한국오피스 | I13: =+DataBase!D30 -> 297000 | J13: =+DataBase!E30 -> 13 | K13: =+DataBase!F30 -> 1
C15: =IFERROR(INT(IF(DataBase!P31<6,DataBase!P31,"")),"") ->  | D15: =+DataBase!B31 -> 니스툴그로우 초등학생 높이 각도조절 책상 의자 | H15: =+DataBase!C31 -> 더월 | I15: =+DataBase!D31 -> 899000 | J15: =+DataBase!E31 -> 0 | K15: =+DataBase!F31 -> 9
C17: =IFERROR(INT(IF(DataBase!P32<6,DataBase!P32,"")),"") ->  | D17: =+DataBase!B32 -> 오피스보이 AP 웨이브 일자사무실책상 국산몰딩 | H17: =+DataBase!C32 -> 오피스보이 | I17: =+DataBase!D32 -> 80300 | J17: =+DataBase!E32 -> 0 | K17: =+DataBase!F32 -> 0
C19: =IFERROR(INT(IF(DataBase!P33<6,DataBase!P33,"")),"") -> 4 | D19: =+DataBase!B33 -> [루나랩 키즈] 어린이 초등학생 바른자세 책상, 학생 공부 높이 각도 조절 | H19: =+DataBase!C33 -> 루나랩 키즈 | I19: =+DataBase!D33 -> 269000 | J19: =+DataBase!E33 -> 2862 | K19: =+DataBase!F33 -> 2125
C21: =IFERROR(INT(IF(DataBase!P34<6,DataBase!P34,"")),"") -> 4 | D21: =+DataBase!B34 -> [데스커] 신학기 책상세트 | H21: =+DataBase!C34 -> 데스커 | I21: =+DataBase!D34 -> 319000 | J21: =+DataBase!E34 -> 8270 | K21: =+DataBase!F34 -> 7360
C23: =IFERROR(INT(IF(DataBase!P35<6,DataBase!P35,"")),"") ->  | D23: =+DataBase!B35 -> 일룸 링키플러스 1200폭 일반형 책상 | H23: =+DataBase!C35 -> 0 | I23: =+DataBase!D35 -> 150000 | J23: =+DataBase!E35 -> 0 | K23: =+DataBase!F35 -> 1478
C25: =IFERROR(INT(IF(DataBase!P36<6,DataBase!P36,"")),"") ->  | D25: =+DataBase!B36 -> 초등학생 책상 어린이 각도조절 초등 | H25: =+DataBase!C36 -> 리빙유피 | I25: =+DataBase!D36 -> 143000 | J25: =+DataBase!E36 -> 365 | K25: =+DataBase!F36 -> 659
C27: =IFERROR(INT(IF(DataBase!P37<6,DataBase!P37,"")),"") ->  | D27: =+DataBase!B37 -> 한샘 하이 높이 각도 조절 책상 1200 | H27: =+DataBase!C37 -> 0 | I27: =+DataBase!D37 -> 299450 | J27: =+DataBase!E37 -> 0 | K27: =+DataBase!F37 -> 808
C29: =IFERROR(INT(IF(DataBase!P38<6,DataBase!P38,"")),"") -> 4 | D29: =+DataBase!B38 -> [데스커] 신학기 책상세트 | H29: =+DataBase!C38 -> 데스커 | I29: =+DataBase!D38 -> 319000 | J29: =+DataBase!E38 -> 8270 | K29: =+DataBase!F38 -> 7360
C31: =IFERROR(INT(IF(DataBase!P39<6,DataBase!P39,"")),"") ->  | D31: =+DataBase!B39 -> 스터디업 데스크 스텐다드 그레이 어린이 아동 초등학생 높이 각도조절책상 | H31: =+DataBase!C39 -> 엑세스엠 | I31: =+DataBase!D39 -> 249000 | J31: =+DataBase!E39 -> 295 | K31: =+DataBase!F39 -> 150
C33: =IFERROR(INT(IF(DataBase!P40<6,DataBase!P40,"")),"") ->  | D33: =+DataBase!B40 -> 컴프프로 퍼펙트1200 책상 | H33: =+DataBase!C40 -> 0 | I33: =+DataBase!D40 -> 566790 | J33: =+DataBase!E40 -> 0 | K33: =+DataBase!F40 -> 20
C35: =IFERROR(INT(IF(DataBase!P41<6,DataBase!P41,"")),"") ->  | D35: =+DataBase!B41 -> 마카롱 2인용 트윈 각도조절 쌍둥이 초등학생 책상 세트 | H35: =+DataBase!C41 -> 힐링가구 | I35: =+DataBase!D41 -> 580000 | J35: =+DataBase!E41 -> 83 | K35: =+DataBase!F41 -> 139
C37: =IFERROR(INT(IF(DataBase!P42<6,DataBase!P42,"")),"") ->  | D37: =+DataBase!B42 -> [위드그로우]스마트2.0 어린이 바른자세 높이각도조절 초등학생 책상 1200(그레이) | H37: =+DataBase!C42 -> 하로스토어 | I37: =+DataBase!D42 -> 299000 | J37: =+DataBase!E42 -> 159 | K37: =+DataBase!F42 -> 85
C39: =IFERROR(INT(IF(DataBase!P43<6,DataBase!P43,"")),"") -> 1 | D39: =+DataBase!B43 -> 신학기입학기념 행사 BTS 초등학생 키즈 어린이 책상 세트 구성 E0등급 | H39: =+DataBase!C43 -> 가구컴퍼스 | I39: =+DataBase!D43 -> 75500 | J39: =+DataBase!E43 -> 1127 | K39: =+DataBase!F43 -> 1250
C41: =IFERROR(INT(IF(DataBase!P44<6,DataBase!P44,"")),"") ->  | D41: =+DataBase!B44 -> 리바트 뚜뚜 높이조절 아이 책상 | H41: =+DataBase!C44 -> 0 | I41: =+DataBase!D44 -> 66900 | J41: =+DataBase!E44 -> 0 | K41: =+DataBase!F44 -> 707
C43: =IFERROR(INT(IF(DataBase!P45<6,DataBase!P45,"")),"") ->  | D43: =+DataBase!B45 -> 일룸 로이모노 1200폭 5단 책상세트 D600 | H43: =+DataBase!C45 -> 0 | I43: =+DataBase!D45 -> 499000 | J43: =+DataBase!E45 -> 0 | K43: =+DataBase!F45 -> 257
C45: =IFERROR(INT(IF(DataBase!P46<6,DataBase!P46,"")),"") ->  | D45: =+DataBase!B46 -> 한샘 티오 그로우 각도조절 책상세트 5단 120x75cm | H45: =+DataBase!C46 -> 0 | I45: =+DataBase!D46 -> 354580 | J45: =+DataBase!E46 -> 0 | K45: =+DataBase!F46 -> 44
C47: =IFERROR(INT(IF(DataBase!P47<6,DataBase!P47,"")),"") ->  | D47: =+DataBase!B47 -> 한샘 티오 그로우 일반책상세트 5단 120x60cm | H47: =+DataBase!C47 -> 0 | I47: =+DataBase!D47 -> 249010 | J47: =+DataBase!E47 -> 0 | K47: =+DataBase!F47 -> 101
C49: =IFERROR(INT(IF(DataBase!P48<6,DataBase!P48,"")),"") ->  | D49: =+DataBase!B48 -> 엠리빙 폴라리스 높이조절 어린이책상 각도조절 초등학생책상 유아 의자 | H49: =+DataBase!C48 -> 엠리빙 | I49: =+DataBase!D48 -> 135000 | J49: =+DataBase!E48 -> 136 | K49: =+DataBase!F48 -> 182
C51: =IFERROR(INT(IF(DataBase!P49<6,DataBase!P49,"")),"") ->  | D51: =+DataBase!B49 -> 일룸 팅클팝 피넛형 그로잉책상 1200폭 | H51: =+DataBase!C49 -> 0 | I51: =+DataBase!D49 -> 169000 | J51: =+DataBase!E49 -> 0 | K51: =+DataBase!F49 -> 3854
C53: =IFERROR(INT(IF(DataBase!P50<6,DataBase!P50,"")),"") ->  | D53: =+DataBase!B50 -> 일룸 링키플러스 1200폭 측판형 책상 | H53: =+DataBase!C50 -> 0 | I53: =+DataBase!D50 -> 265000 | J53: =+DataBase!E50 -> 0 | K53: =+DataBase!F50 -> 171
C55: =IFERROR(INT(IF(DataBase!P51<6,DataBase!P51,"")),"") ->  | D55: =+DataBase!B51 -> 일룸 팅클팝 피넛형 좌식책상 800폭 | H55: =+DataBase!C51 -> 0 | I55: =+DataBase!D51 -> 99000 | J55: =+DataBase!E51 -> 0 | K55: =+DataBase!F51 -> 2554
C57: =IFERROR(INT(IF(DataBase!P52<6,DataBase!P52,"")),"") ->  | D57: =+DataBase!B52 -> 일룸 링키플러스 스마트데스크 각도조절 책상 | H57: =+DataBase!C52 -> 0 | I57: =+DataBase!D52 -> 389000 | J57: =+DataBase!E52 -> 0 | K57: =+DataBase!F52 -> 1444
C59: =IFERROR(INT(IF(DataBase!P53<6,DataBase!P53,"")),"") ->  | D59: =+DataBase!B53 -> 루나랩 키즈 어린이 초등학생 바른자세 책상 | H59: =+DataBase!C53 -> 루나랩 키즈 | I59: =+DataBase!D53 -> 269000 | J59: =+DataBase!E53 -> 2862 | K59: =+DataBase!F53 -> 2121
C61: =IFERROR(INT(IF(DataBase!P54<6,DataBase!P54,"")),"") ->  | D61: =+DataBase!B54 -> 니스툴그로우 높이각도조절 초등학생책상 책장세트 | H61: =+DataBase!C54 -> 더월 | I61: =+DataBase!D54 -> 1148000 | J61: =+DataBase!E54 -> 0 | K61: =+DataBase!F54 -> 69
C63: =IFERROR(INT(IF(DataBase!P55<6,DataBase!P55,"")),"") ->  | D63: =+DataBase!B55 -> 이안비즈 높이 각도 조절 브레이니 어린이책상 | H63: =+DataBase!C55 -> 이안비즈 | I63: =+DataBase!D55 -> 138000 | J63: =+DataBase!E55 -> 61 | K63: =+DataBase!F55 -> 172
C65: =IFERROR(INT(IF(DataBase!P56<6,DataBase!P56,"")),"") ->  | D65: =+DataBase!B56 -> 스터디업 데스크 스텐다드 핑크 높이 각도조절 어린이 아동 초등학생 책상 | H65: =+DataBase!C56 -> 엑세스엠 | I65: =+DataBase!D56 -> 249000 | J65: =+DataBase!E56 -> 52 | K65: =+DataBase!F56 -> 20
C67: =IFERROR(INT(IF(DataBase!P57<6,DataBase!P57,"")),"") ->  | D67: =+DataBase!B57 -> [일룸] 제롬 키즈 모션데스크 | H67: =+DataBase!C57 -> iloom일룸 | I67: =+DataBase!D57 -> 999000 | J67: =+DataBase!E57 -> 31 | K67: =+DataBase!F57 -> 5
C69: =IFERROR(INT(IF(DataBase!P58<6,DataBase!P58,"")),"") ->  | D69: =+DataBase!B58 -> 이케아 FLISAT 플리사트 어린이책상 3단 높이조절책상 | H69: =+DataBase!C58 -> 0 | I69: =+DataBase!D58 -> 58500 | J69: =+DataBase!E58 -> 0 | K69: =+DataBase!F58 -> 44
C71: =IFERROR(INT(IF(DataBase!P59<6,DataBase!P59,"")),"") ->  | D71: =+DataBase!B59 -> [위드그로우]컴포트 어린이 바른자세 초등학생 책상 지니의자 세트 | H71: =+DataBase!C59 -> 하로스토어 | I71: =+DataBase!D59 -> 338000 | J71: =+DataBase!E59 -> 70 | K71: =+DataBase!F59 -> 20
C73: =IFERROR(INT(IF(DataBase!P60<6,DataBase!P60,"")),"") ->  | D73: =+DataBase!B60 -> 한샘 하이 높이 각도 조절 책상세트 5단 1200 | H73: =+DataBase!C60 -> 0 | I73: =+DataBase!D60 -> 490070 | J73: =+DataBase!E60 -> 0 | K73: =+DataBase!F60 -> 188
C75: =IFERROR(INT(IF(DataBase!P61<6,DataBase!P61,"")),"") ->  | D75: =+DataBase!B61 -> 일룸 로이모노 다리형 책상 1400폭 D600 | H75: =+DataBase!C61 -> 0 | I75: =+DataBase!D61 -> 199000 | J75: =+DataBase!E61 -> 0 | K75: =+DataBase!F61 -> 167
C77: =IFERROR(INT(IF(DataBase!P62<6,DataBase!P62,"")),"") -> 2 | D77: =+DataBase!B62 -> 로니 초등학생책상 남아 초등여아 초등생 여자아이 책상 | H77: =+DataBase!C62 -> 블레스가구 | I77: =+DataBase!D62 -> 77000 | J77: =+DataBase!E62 -> 426 | K77: =+DataBase!F62 -> 239
C79: =IFERROR(INT(IF(DataBase!P63<6,DataBase!P63,"")),"") ->  | D79: =+DataBase!B63 -> 한샘 티오 일반 책상세트 5단 120cm | H79: =+DataBase!C63 -> 0 | I79: =+DataBase!D63 -> 268690 | J79: =+DataBase!E63 -> 0 | K79: =+DataBase!F63 -> 913
C81: =IFERROR(INT(IF(DataBase!P64<6,DataBase!P64,"")),"") ->  | D81: =+DataBase!B64 -> 라일리 어린이 성장형 기능성 각도조절 높이조절 초등학생책상 (책장포함) | H81: =+DataBase!C64 -> 가구컴퍼스 | I81: =+DataBase!D64 -> 248800 | J81: =+DataBase!E64 -> 147 | K81: =+DataBase!F64 -> 122
C83: =IFERROR(INT(IF(DataBase!P65<6,DataBase!P65,"")),"") ->  | D83: =+DataBase!B65 -> 일룸 로이 1400폭 5단 다리형 책상 SET | H83: =+DataBase!C65 -> 0 | I83: =+DataBase!D65 -> 685000 | J83: =+DataBase!E65 -> 0 | K83: =+DataBase!F65 -> 155
C85: =IFERROR(INT(IF(DataBase!P66<6,DataBase!P66,"")),"") ->  | D85: =+DataBase!B66 -> 일룸 로이모노 1400폭 5단 책상세트 D600 | H85: =+DataBase!C66 -> 0 | I85: =+DataBase!D66 -> 599000 | J85: =+DataBase!E66 -> 0 | K85: =+DataBase!F66 -> 94
C87: =IFERROR(INT(IF(DataBase!P67<6,DataBase!P67,"")),"") ->  | D87: =+DataBase!B67 -> 위드그로우 엘리트 책상 어린이 바른자세 높이각도조절 초등학생 책상 | H87: =+DataBase!C67 -> 0 | I87: =+DataBase!D67 -> 269000 | J87: =+DataBase!E67 -> 0 | K87: =+DataBase!F67 -> 260
C89: =IFERROR(INT(IF(DataBase!P68<6,DataBase!P68,"")),"") ->  | D89: =+DataBase!B68 -> [러브포엠] 이케아 PÅHL 폴 책상 화이트,핑크 ,블루,그린 3단높이 조절 책상 | H89: =+DataBase!C68 -> LOVE POEM | I89: =+DataBase!D68 -> 74900 | J89: =+DataBase!E68 -> 14 | K89: =+DataBase!F68 -> 1
C91: =IFERROR(INT(IF(DataBase!P69<6,DataBase!P69,"")),"") ->  | D91: =+DataBase!B69 -> 일룸 이타카네오 1400폭 7단 모션데스크 세트 | H91: =+DataBase!C69 -> 0 | I91: =+DataBase!D69 -> 1318000 | J91: =+DataBase!E69 -> 0 | K91: =+DataBase!F69 -> 32
D93: 데이터 조건 지수 상위 5 [ ▼ 가격 VS ▲ 구매&리뷰]
C95: 1 | D95: =IFERROR(VLOOKUP($C95,$C$13:$K$91,2,FALSE),) -> 신학기입학기념 행사 BTS 초등학생 키즈 어린이 책상 세트 구성 E0등급 | H95: =IFERROR(VLOOKUP($C95,$C$13:$K$91,6,FALSE),) -> 가구컴퍼스 | I95: =IFERROR(VLOOKUP($C95,$C$13:$K$91,7,FALSE),) -> 75500 | J95: =IFERROR(VLOOKUP($C95,$C$13:$K$91,8,FALSE),) -> 1127 | K95: =IFERROR(VLOOKUP($C95,$C$13:$K$91,9,FALSE),) -> 1250
C97: 2 | D97: =IFERROR(VLOOKUP($C97,$C$13:$K$91,2,FALSE),) -> 로니 초등학생책상 남아 초등여아 초등생 여자아이 책상 | H97: =IFERROR(VLOOKUP($C97,$C$13:$K$91,6,FALSE),) -> 블레스가구 | I97: =IFERROR(VLOOKUP($C97,$C$13:$K$91,7,FALSE),) -> 77000 | J97: =IFERROR(VLOOKUP($C97,$C$13:$K$91,8,FALSE),) -> 426 | K97: =IFERROR(VLOOKUP($C97,$C$13:$K$91,9,FALSE),) -> 239
C99: 3 | D99: =IFERROR(VLOOKUP($C99,$C$13:$K$91,2,FALSE),) -> 0 | H99: =IFERROR(VLOOKUP($C99,$C$13:$K$91,6,FALSE),) -> 0 | I99: =IFERROR(VLOOKUP($C99,$C$13:$K$91,7,FALSE),) -> 0 | J99: =IFERROR(VLOOKUP($C99,$C$13:$K$91,8,FALSE),) -> 0 | K99: =IFERROR(VLOOKUP($C99,$C$13:$K$91,9,FALSE),) -> 0
C101: 4 | D101: =IFERROR(VLOOKUP($C101,$C$13:$K$91,2,FALSE),) -> [루나랩 키즈] 어린이 초등학생 바른자세 책상, 학생 공부 높이 각도 조절 | H101: =IFERROR(VLOOKUP($C101,$C$13:$K$91,6,FALSE),) -> 루나랩 키즈 | I101: =IFERROR(VLOOKUP($C101,$C$13:$K$91,7,FALSE),) -> 269000 | J101: =IFERROR(VLOOKUP($C101,$C$13:$K$91,8,FALSE),) -> 2862 | K101: =IFERROR(VLOOKUP($C101,$C$13:$K$91,9,FALSE),) -> 2125
C103: 5 | D103: =IFERROR(VLOOKUP($C103,$C$13:$K$91,2,FALSE),) -> 0 | H103: =IFERROR(VLOOKUP($C103,$C$13:$K$91,6,FALSE),) -> 0 | I103: =IFERROR(VLOOKUP($C103,$C$13:$K$91,7,FALSE),) -> 0 | J103: =IFERROR(VLOOKUP($C103,$C$13:$K$91,8,FALSE),) -> 0 | K103: =IFERROR(VLOOKUP($C103,$C$13:$K$91,9,FALSE),) -> 0

Sheet Rank (hidden)
B1: N 쇼핑 상품 검색 랭킹순
B5: N 쇼핑 키워드 추천 | D5: =+DataBase!$A$16 -> 
D6: =+DataBase!$A$17 -> 
B7: N 검색 연관 검색어
D8: =+DataBase!$A$18 -> 유아책상 어린이 의자 어린이책상의자 어린이책상세트 책상 이케아 어린이 책상 시디즈 어린이 의자 원목어린이책상 제롬 모션데스크 일룸 제롬
B11: 어린이 책상 | D11: 상품명 | E11: =IF(NOT(DataBase!J4=""),HYPERLINK(DataBase!$B$2,DataBase!B4),IF(NOT(DataBase!K4=""),HYPERLINK(DataBase!$B$2,DataBase!B4&" [광고상품]"),IF(NOT(DataBase!L4=""),HYPERLINK(DataBase!$B$2,DataBase!B4&" [가격비교]"),DataBase!B4))) -> [리바트하움] 신학기 초등학생 초등학교책상세트 [광고상품]
D13: 상품상세/광고문구 | E13: =DataBase!$Q4&" "&DataBase!$R4 -> 스토어 찜! 최대20%할인 + 추가할인쿠폰
D15: 검색 노출 태그 | E15: =+DataBase!$M4 -> 신학기,독서실,초등학교
D17: 상호명/판매처 | E17: =+DataBase!$I4 -> 한국오피스 | F17: 판매랭킹 | G17: =+DataBase!$H4 -> 9 | H17: 상품등록일 | I17: =+DataBase!$V4 -> 2021-01-22
D19: 가격 | E19: =+DataBase!$C4 -> 297000 | F19: 배송비 | G19: =+DataBase!$G4 -> 0 | H19: 구매건수 | I19: =+DataBase!$D4 -> 13
D21: 찜한 수 | E21: =+DataBase!$S4 ->  | F21: 파워적립포인트 | G21: =SUBSTITUTE(SUBSTITUTE(DataBase!$N4,"포인트",""),"원","") -> 8,910 | H21: 기본적립포인트 | I21: =+DataBase!$P4 -> 2970
E25: 2주 리뷰 | G25: 한달 누적 리뷰 | I25: 전체 리뷰수
E26: =+DataBase!T4 ->  | F26: =IFERROR(E26/I26,"") ->  | G26: =+DataBase!U4 ->  | H26: =IFERROR(G26/I26,"") ->  | I26: =+DataBase!F4 -> 1
D28: 상품명 | E28: =IF(NOT(DataBase!J5=""),HYPERLINK(DataBase!$B$2,DataBase!B5),IF(NOT(DataBase!K5=""),HYPERLINK(DataBase!$B$2,DataBase!B5&" [광고상품]"),IF(NOT(DataBase!L5=""),HYPERLINK(DataBase!$B$2,DataBase!B5&" [가격비교]"),DataBase!B5))) -> 니스툴그로우 초등학생 높이 각도조절 책상 의자 [광고상품]
D30: 상품상세/광고문구 | E30: =DataBase!$Q22&" "&DataBase!$R5 -> 
D32: 검색 노출 태그 | E32: =+DataBase!$M5 -> 책상
D34: 상호명/판매처 | E34: =+DataBase!$I5 -> 더월 | F34: 판매랭킹 | G34: =+DataBase!$H5 -> 12 | H34: 상품등록일 | I34: =+DataBase!$V5 -> 2020-09-17
D36: 가격 | E36: =+DataBase!$C5 -> 899000 | F36: 배송비 | G36: =+DataBase!$G5 -> 0 | H36: 구매건수 | I36: =+DataBase!$D5 -> 0
D38: 찜한 수 | E38: =+DataBase!$S5 ->  | F38: 파워적립포인트 | G38: =SUBSTITUTE(SUBSTITUTE(DataBase!$N5,"포인트",""),"원","") -> 26,970 | H38: 기본적립포인트 | I38: =+DataBase!$P5 -> 
E42: 2주 리뷰 | G42: 한달 누적 리뷰 | I42: 전체 리뷰수
E43: =+DataBase!T5 ->  | F43: =IFERROR(E43/I43,"") ->  | G43: =+DataBase!U5 ->  | H43: =IFERROR(G43/I43,"") ->  | I43: =+DataBase!F5 -> 9
D45: 상품명 | E45: =IF(NOT(DataBase!J6=""),HYPERLINK(DataBase!$B$2,DataBase!B6),IF(NOT(DataBase!K6=""),HYPERLINK(DataBase!$B$2,DataBase!B6&" [광고상품]"),IF(NOT(DataBase!L6=""),HYPERLINK(DataBase!$B$2,DataBase!B6&" [가격비교]"),DataBase!B6))) -> 오피스보이 AP 웨이브 일자사무실책상 국산몰딩 [광고상품]
D47: 상품상세/광고문구 | E47: =DataBase!$Q6&" "&DataBase!$R6 -> 30년 사무용가구 전문. 이전 확장 교체 오픈 빠른문의
D49: 검색 노출 태그 | E49: =+DataBase!$M6 -> 0
D51: 상호명/판매처 | E51: =+DataBase!$I6 -> 오피스보이 | F51: 판매랭킹 | G51: =+DataBase!$H6 -> 15 | H51: 상품등록일 | I51: =+DataBase!$V6 -> 2017-08-22
D53: 가격 | E53: =+DataBase!$C6 -> 80300 | F53: 배송비 | G53: =+DataBase!$G6 -> 0 | H53: 구매건수 | I53: =+DataBase!$D6 -> 0
D55: 찜한 수 | E55: =+DataBase!$S6 ->  | F55: 파워적립포인트 | G55: =SUBSTITUTE(SUBSTITUTE(DataBase!$N6,"포인트",""),"원","") -> 2,409 | H55: 기본적립포인트 | I55: =+DataBase!$P6 -> 
E59: 2주 리뷰 | G59: 한달 누적 리뷰 | I59: 전체 리뷰수
E60: =+DataBase!T6 ->  | F60: =IFERROR(E60/I60,"") ->  | G60: =+DataBase!$U6 ->  | H60: =IFERROR(G60/I60,"") ->  | I60: =+DataBase!F6 -> 0
D62: 상품명 | E62: =IF(NOT(DataBase!J7=""),HYPERLINK(DataBase!$B$2,DataBase!B7),IF(NOT(DataBase!K7=""),HYPERLINK(DataBase!$B$2,DataBase!B7&" [광고상품]"),IF(NOT(DataBase!L7=""),HYPERLINK(DataBase!$B$2,DataBase!B7&" [가격비교]"),DataBase!B7))) -> [루나랩 키즈] 어린이 초등학생 바른자세 책상, 학생 공부 높이 각도 조절
D64: 상품상세/광고문구 | E64: =DataBase!$Q7&" "&DataBase!$R7 -> 전면책상|E0(친환경)|책상단품|각도조절|높이조절|가방걸이|태블릿 거치대|철재|합성목재|플라스틱|1190mm
D66: 검색 노출 태그 | E66: =+DataBase!$M7 -> 초등학생의자,초등학생책상,아이책상,초등책상,책상
D68: 상호명/판매처 | E68: =+DataBase!$I7 -> 루나랩 키즈 | F68: 판매랭킹 | G68: =+DataBase!$H7 -> 1 | H68: 상품등록일 | I68: =+DataBase!$V7 -> 2020-03-28
D70: 가격 | E70: =+DataBase!$C7 -> 269000 | F70: 배송비 | G70: =+DataBase!$G7 -> 0 | H70: 구매건수 | I70: =+DataBase!$D7 -> 2862
D72: 찜한 수 | E72: =+DataBase!$S7 -> 6542 | F72: 파워적립포인트 | G72: =SUBSTITUTE(SUBSTITUTE(DataBase!$N7,"포인트",""),"원","") ->  | H72: 기본적립포인트 | I72: =+DataBase!$P7 -> 3190
E76: 2주 리뷰 | G76: 한달 누적 리뷰 | I76: 전체 리뷰수
E77: =+DataBase!T7 ->  | F77: =IFERROR(E77/I77,"") ->  | G77: =+DataBase!$U7 ->  | H77: =IFERROR(G77/I77,"") ->  | I77: =+DataBase!$F7 -> 2125
D79: 상품명 | E79: =IF(NOT(DataBase!J8=""),HYPERLINK(DataBase!$B$2,DataBase!B8),IF(NOT(DataBase!K8=""),HYPERLINK(DataBase!$B$2,DataBase!B8&" [광고상품]"),IF(NOT(DataBase!L8=""),HYPERLINK(DataBase!$B$2,DataBase!B8&" [가격비교]"),DataBase!B8))) -> [데스커] 신학기 책상세트
D81: 상품상세/광고문구 | E81: =DataBase!$Q8&" "&DataBase!$R8 -> 일자형책상|서재형
D83: 검색 노출 태그 | E83: =+DataBase!$M8 -> 깔끔한스타일,고등학생책상,초등학생책상,중학생책상,심플한책상,감각적디자인,책상,책상세트,공부책상
D85: 상호명/판매처 | E85: =+DataBase!$I8 -> 데스커 | F85: 판매랭킹 | G85: =+DataBase!$H8 -> 2 | H85: 상품등록일 | I85: =+DataBase!$V8 -> 2019-04-30
D87: 가격 | E87: =+DataBase!$C8 -> 319000 | F87: 배송비 | G87: =+DataBase!$G8 -> 0 | H87: 구매건수 | I87: =+DataBase!$D8 -> 8270
D89: 찜한 수 | E89: =+DataBase!$S8 -> 7785 | F89: 파워적립포인트 | G89: =SUBSTITUTE(SUBSTITUTE(DataBase!$N8,"포인트",""),"원","") ->  | H89: 기본적립포인트 | I89: =+DataBase!$P8 -> 15950
E93: 2주 리뷰 | G93: 한달 누적 리뷰 | I93: 전체 리뷰수
E94: =+DataBase!T8 ->  | F94: =IFERROR(E94/I94,"") ->  | G94: =+DataBase!$U8 ->  | H94: =IFERROR(G94/I94,"") ->  | I94: =+DataBase!$F8 -> 7360

Sheet Review (hidden)
B1: N 쇼핑 상품 검색 리뷰 많은순
B5: N 쇼핑 키워드 추천 | D5: =+DataBase!$A$16 -> 
D6: =+DataBase!$A$17 -> 
B7: N 검색 연관 검색어
D8: =+DataBase!$A$18 -> 유아책상 어린이 의자 어린이책상의자 어린이책상세트 책상 이케아 어린이 책상 시디즈 어린이 의자 원목어린이책상 제롬 모션데스크 일룸 제롬
B11: 어린이 책상 | D11: 상품명 | E11: =IF(NOT(DataBase!AF4=""),HYPERLINK(DataBase!$X$2,DataBase!X4),IF(NOT(DataBase!AG4=""),HYPERLINK(DataBase!$X$2,DataBase!X4&" [광고상품]"),IF(NOT(DataBase!AH4=""),HYPERLINK(DataBase!$X$2,DataBase!X4&" [가격비교]"),DataBase!X4))) -> 시디즈 S500ACF 링고 학생용의자 고정형 + 발받침대 [가격비교]
D13: 상품상세/광고문구 | E13: =DataBase!$AM4&" "&DataBase!$AN4 -> 책상용의자|고정형의자|키즈용|발받침대포함|좌판교체|의자높낮이조절|오발시스템|발수|1인용|일체형|합성가죽|합성가죽|44cm|우레탄
D15: 검색 노출 태그 | E15: =+DataBase!$AI4 -> 0
D17: 상호명/판매처 | E17: =+DataBase!$AE4 -> 0 | F17: 판매랭킹 | G17: =+DataBase!$AD4 -> 1 | H17: 상품등록일 | I17: =+DataBase!$AR4 -> 2015-12-24
D19: 가격 | E19: =+DataBase!Y4 -> 152000 | F19: 배송비 | G19: =+DataBase!$AC4 -> 0 | H19: 구매건수 | I19: =+DataBase!$Z4 -> 0
D21: 찜한 수 | E21: =+DataBase!$AO4 -> 931 | F21: 파워적립포인트 | G21: =SUBSTITUTE(SUBSTITUTE(DataBase!$AJ4,"포인트",""),"원","") ->  | H21: 기본적립포인트 | I21: =+DataBase!$AL4 -> 
E25: 2주 리뷰 | G25: 한달 누적 리뷰 | I25: 전체 리뷰수
E26: =+DataBase!AP4 ->  | F26: =IFERROR(E26/I26,"") ->  | G26: =+DataBase!AQ4 ->  | H26: =IFERROR(G26/I26,"") ->  | I26: =+DataBase!AB4 -> 13056
D28: 상품명 | E28: =IF(NOT(DataBase!AF5=""),HYPERLINK(DataBase!$X$2,DataBase!X5),IF(NOT(DataBase!AG5=""),HYPERLINK(DataBase!$X$2,DataBase!X5&" [광고상품]"),IF(NOT(DataBase!AH5=""),HYPERLINK(DataBase!$X$2,DataBase!X5&" [가격비교]"),DataBase!X5))) -> 시니프 어린이 로보 컴퓨터 초등학생의자
D30: 상품상세/광고문구 | E30: =DataBase!$AM5&" "&DataBase!$AN5 -> 책상용의자|학생, 성인용|손잡이포함|의자높낮이조절|오발시스템|회전식
D32: 검색 노출 태그 | E32: =+DataBase!$AI5 -> 학생의자,컴퓨터의자,공부의자,초등학생의자,회전의자,아이의자,초등학생책상의자,책상의자
D34: 상호명/판매처 | E34: =+DataBase!$AE5 -> 시니프 | F34: 판매랭킹 | G34: =+DataBase!$AD5 -> 2 | H34: 상품등록일 | I34: =+DataBase!$AR5 -> 2018-11-14
D36: 가격 | E36: =+DataBase!Y5 -> 68200 | F36: 배송비 | G36: =+DataBase!$AC5 -> 0 | H36: 구매건수 | I36: =+DataBase!$Z5 -> 4048
D38: 찜한 수 | E38: =+DataBase!$AO5 -> 1721 | F38: 파워적립포인트 | G38: =SUBSTITUTE(SUBSTITUTE(DataBase!$AJ5,"포인트",""),"원","") ->  | H38: 기본적립포인트 | I38: =+DataBase!$AL5 -> 882
E42: 2주 리뷰 | G42: 한달 누적 리뷰 | I42: 전체 리뷰수
E43: =+DataBase!AP5 ->  | F43: =IFERROR(E43/I43,"") ->  | G43: =+DataBase!AQ5 ->  | H43: =IFERROR(G43/I43,"") ->  | I43: =+DataBase!AB5 -> 8944
D45: 상품명 | E45: =IF(NOT(DataBase!AF6=""),HYPERLINK(DataBase!$X$2,DataBase!X6),IF(NOT(DataBase!AG6=""),HYPERLINK(DataBase!$X$2,DataBase!X6&" [광고상품]"),IF(NOT(DataBase!AH6=""),HYPERLINK(DataBase!$X$2,DataBase!X6&" [가격비교]"),DataBase!X6))) -> 시디즈 S500ACF 링고 고정형 학생용의자+발받침(SNA509ACF)
D47: 상품상세/광고문구 | E47: =DataBase!$AM6&" "&DataBase!$AN6 -> 책상용의자|학생, 성인용|메시
D49: 검색 노출 태그 | E49: =+DataBase!$AI6 -> 초등학생,초등학생의자,학생의자,공부의자
D51: 상호명/판매처 | E51: =+DataBase!$AE6 -> 시디즈의자 | F51: 판매랭킹 | G51: =+DataBase!$AD6 -> 3 | H51: 상품등록일 | I51: =+DataBase!$AR6 -> 2018-12-02
D53: 가격 | E53: =+DataBase!Y6 -> 159000 | F53: 배송비 | G53: =+DataBase!$AC6 -> 0 | H53: 구매건수 | I53: =+DataBase!$Z6 -> 6263
D55: 찜한 수 | E55: =+DataBase!$AO6 -> 532 | F55: 파워적립포인트 | G55: =SUBSTITUTE(SUBSTITUTE(DataBase!$AJ6,"포인트",""),"원","") ->  | H55: 기본적립포인트 | I55: =+DataBase!$AL6 -> 7950
E59: 2주 리뷰 | G59: 한달 누적 리뷰 | I59: 전체 리뷰수
E60: =+DataBase!AP6 ->  | F60: =IFERROR(E60/I60,"") ->  | G60: =+DataBase!AQ6 ->  | H60: =IFERROR(G60/I60,"") ->  | I60: =+DataBase!AB6 -> 7766
D62: 상품명 | E62: =IF(NOT(DataBase!AF7=""),HYPERLINK(DataBase!$X$2,DataBase!X7),IF(NOT(DataBase!AG7=""),HYPERLINK(DataBase!$X$2,DataBase!X7&" [광고상품]"),IF(NOT(DataBase!AH7=""),HYPERLINK(DataBase!$X$2,DataBase!X7&" [가격비교]"),DataBase!X7))) -> 시디즈 S500ACF 링고 고정형 학생용의자+발받침(SNA509ACF)
D64: 상품상세/광고문구 | E64: =DataBase!$AM55&" "&DataBase!$AN7 -> 
D66: 검색 노출 태그 | E66: =+DataBase!$AI7 -> 초등학생,초등학생의자,공부의자,책상의자,학생의자,컴퓨터의자
D68: 상호명/판매처 | E68: =+DataBase!$AE7 -> 시디즈의자 | F68: 판매랭킹 | G68: =+DataBase!$AD7 -> 4 | H68: 상품등록일 | I68: =+DataBase!$AR7 -> 2015-08-31
D70: 가격 | E70: =+DataBase!Y7 -> 159000 | F70: 배송비 | G70: =+DataBase!$AC7 -> 0 | H70: 구매건수 | I70: =+DataBase!$Z7 -> 6263
D72: 찜한 수 | E72: =+DataBase!$AO7 -> 2284 | F72: 파워적립포인트 | G72: =SUBSTITUTE(SUBSTITUTE(DataBase!$AJ7,"포인트",""),"원","") ->  | H72: 기본적립포인트 | I72: =+DataBase!$AL7 -> 7950
E76: 2주 리뷰 | G76: 한달 누적 리뷰 | I76: 전체 리뷰수
E77: =+DataBase!AP7 ->  | F77: =IFERROR(E77/I77,"") ->  | G77: =+DataBase!AQ7 ->  | H77: =IFERROR(G77/I77,"") ->  | I77: =+DataBase!AB7 -> 7766
D79: 상품명 | E79: =IF(NOT(DataBase!AF8=""),HYPERLINK(DataBase!$X$2,DataBase!X8),IF(NOT(DataBase!AG8=""),HYPERLINK(DataBase!$X$2,DataBase!X8&" [광고상품]"),IF(NOT(DataBase!AH8=""),HYPERLINK(DataBase!$X$2,DataBase!X8&" [가격비교]"),DataBase!X8))) -> 일룸 [일룸]신학기 맞이 학생가구! 인기 책상/의자/침대
D81: 상품상세/광고문구 | E81: =DataBase!$AM8&" "&DataBase!$AN8 -> 
D83: 검색 노출 태그 | E83: =+DataBase!$AI8 -> 0
D85: 상호명/판매처 | E85: =+DataBase!$AE8 -> 롯데홈쇼핑 | F85: 판매랭킹 | G85: =+DataBase!$AD8 -> 5 | H85: 상품등록일 | I85: =+DataBase!$AR8 -> 2018-03-07
D87: 가격 | E87: =+DataBase!Y8 -> 599000 | F87: 배송비 | G87: =+DataBase!$AC8 -> 0 | H87: 구매건수 | I87: =+DataBase!$Z8 -> 0
D89: 찜한 수 | E89: =+DataBase!$AO8 -> 15 | F89: 파워적립포인트 | G89: =SUBSTITUTE(SUBSTITUTE(DataBase!$AJ8,"포인트",""),"원","") ->  | H89: 기본적립포인트 | I89: =+DataBase!$AL8 -> 
E93: 2주 리뷰 | G93: 한달 누적 리뷰 | I93: 전체 리뷰수
E94: =+DataBase!AP8 ->  | F94: =IFERROR(E94/I94,"") ->  | G94: =+DataBase!AQ8 ->  | H94: =IFERROR(G94/I94,"") ->  | I94: =+DataBase!AB8 -> 7408

Sheet Price (hidden)
B1: N 쇼핑 상품 검색 낮은 가격순
B5: N 쇼핑 키워드 추천 | D5: =+DataBase!$A$16 -> 
D6: =+DataBase!$A$17 -> 
B7: N 검색 연관 검색어
D8: =+DataBase!$A$18 -> 유아책상 어린이 의자 어린이책상의자 어린이책상세트 책상 이케아 어린이 책상 시디즈 어린이 의자 원목어린이책상 제롬 모션데스크 일룸 제롬
B11: 어린이 책상 | D11: 상품명 | E11: =IF(NOT(DataBase!BB4=""),HYPERLINK(DataBase!$AT$2,DataBase!AT4),IF(NOT(DataBase!BC4=""),HYPERLINK(DataBase!$AT$2,DataBase!AT4&" [광고상품]"),IF(NOT(DataBase!BD4=""),HYPERLINK(DataBase!$AT$2,DataBase!AT4&" [가격비교]"),DataBase!AT4))) -> h형 1인용 책상 원목 컴퓨터 학생 입식 사무실 테이블
D13: 상품상세/광고문구 | E13: =DataBase!$BI4&" "&DataBase!$BJ4 -> 
D15: 검색 노출 태그 | E15: =+DataBase!$BE4 -> L자형책상,철제책상,고등학생책상,공부책상,가정용책상
D17: 상호명/판매처 | E17: =+DataBase!$BA4 -> 더체어컴퍼니 | F17: 판매랭킹 | G17: =+DataBase!$AZ4 -> 1 | H17: 상품등록일 | I17: =+DataBase!$BN4 -> 2018-03-26
D19: 가격 | E19: =+DataBase!AU4 -> 30000 | F19: 배송비 | G19: =+DataBase!$AY4 -> 0 | H19: 구매건수 | I19: =+DataBase!$AV4 -> 6
D21: 찜한 수 | E21: =+DataBase!$BK4 -> 9 | F21: 파워적립포인트 | G21: =SUBSTITUTE(SUBSTITUTE(DataBase!$BF4,"포인트",""),"원","") ->  | H21: 기본적립포인트 | I21: =+DataBase!$BH4 -> 300
E25: 2주 리뷰 | G25: 한달 누적 리뷰 | I25: 전체 리뷰수
E26: =+DataBase!BL4 ->  | F26: =IFERROR(E26/I26,"") ->  | G26: =+DataBase!BM4 ->  | H26: =IFERROR(G26/I26,"") ->  | I26: =+DataBase!AX4 -> 72
D28: 상품명 | E28: =IF(NOT(DataBase!BB5=""),HYPERLINK(DataBase!$AT$2,DataBase!AT5),IF(NOT(DataBase!BC5=""),HYPERLINK(DataBase!$AT$2,DataBase!AT5&" [광고상품]"),IF(NOT(DataBase!BD5=""),HYPERLINK(DataBase!$AT$2,DataBase!AT5&" [가격비교]"),DataBase!AT5))) -> [리퍼가구] 원목책상 수박 과일책상(CJ015-1)[S/N : 0929-16]
D30: 상품상세/광고문구 | E30: =DataBase!$BI5&" "&DataBase!$BJ5 -> 
D32: 검색 노출 태그 | E32: =+DataBase!$BE5 -> 유아책상,아이책상,아기책상,찻상,공부상
D34: 상호명/판매처 | E34: =+DataBase!$BA5 -> 햇살맑은집 | F34: 판매랭킹 | G34: =+DataBase!$AZ5 -> 2 | H34: 상품등록일 | I34: =+DataBase!$BN5 -> 2020-10-24
D36: 가격 | E36: =+DataBase!AU5 -> 30000 | F36: 배송비 | G36: =+DataBase!$AY5 -> 0 | H36: 구매건수 | I36: =+DataBase!$AV5 -> 0
D38: 찜한 수 | E38: =+DataBase!$BK5 ->  | F38: 파워적립포인트 | G38: =SUBSTITUTE(SUBSTITUTE(DataBase!$BF5,"포인트",""),"원","") ->  | H38: 기본적립포인트 | I38: =+DataBase!$BH5 -> 
E42: 2주 리뷰 | G42: 한달 누적 리뷰 | I42: 전체 리뷰수
E43: =+DataBase!BL5 ->  | F43: =IFERROR(E43/I43,"") ->  | G43: =+DataBase!BM5 ->  | H43: =IFERROR(G43/I43,"") ->  | I43: =+DataBase!AX5 -> 0
D45: 상품명 | E45: =IF(NOT(DataBase!BB6=""),HYPERLINK(DataBase!$AT$2,DataBase!AT6),IF(NOT(DataBase!BC6=""),HYPERLINK(DataBase!$AT$2,DataBase!AT6&" [광고상품]"),IF(NOT(DataBase!BD6=""),HYPERLINK(DataBase!$AT$2,DataBase!AT6&" [가격비교]"),DataBase!AT6))) -> [꿈꾸는요셉]책상 유리 모음 GL
D47: 상품상세/광고문구 | E47: =DataBase!$BI6&" "&DataBase!$BJ6 -> 
D49: 검색 노출 태그 | E49: =+DataBase!$BE6 -> 책상
D51: 상호명/판매처 | E51: =+DataBase!$BA6 -> 꿈꾸는요셉 | F51: 판매랭킹 | G51: =+DataBase!$AZ6 -> 3 | H51: 상품등록일 | I51: =+DataBase!$BN6 -> 2019-02-07
D53: 가격 | E53: =+DataBase!AU6 -> 30000 | F53: 배송비 | G53: =+DataBase!$AY6 -> 0 | H53: 구매건수 | I53: =+DataBase!$AV6 -> 0
D55: 찜한 수 | E55: =+DataBase!$BK6 ->  | F55: 파워적립포인트 | G55: =SUBSTITUTE(SUBSTITUTE(DataBase!$BF6,"포인트",""),"원","") ->  | H55: 기본적립포인트 | I55: =+DataBase!$BH6 -> 
E59: 2주 리뷰 | G59: 한달 누적 리뷰 | I59: 전체 리뷰수
E60: =+DataBase!BL6 ->  | F60: =IFERROR(E60/I60,"") ->  | G60: =+DataBase!BM6 ->  | H60: =IFERROR(G60/I60,"") ->  | I60: =+DataBase!AX6 -> 10
D62: 상품명 | E62: =IF(NOT(DataBase!BB7=""),HYPERLINK(DataBase!$AT$2,DataBase!AT7),IF(NOT(DataBase!BC7=""),HYPERLINK(DataBase!$AT$2,DataBase!AT7&" [광고상품]"),IF(NOT(DataBase!BD7=""),HYPERLINK(DataBase!$AT$2,DataBase!AT7&" [가격비교]"),DataBase!AT7))) -> 이케아 이케아 MAMMUT 어린이 테이블 원형 블루
D64: 상품상세/광고문구 | E64: =DataBase!$BI7&" "&DataBase!$BJ7 -> 
D66: 검색 노출 태그 | E66: =+DataBase!$BE7 -> 0
D68: 상호명/판매처 | E68: =+DataBase!$BA7 -> G마켓 | F68: 판매랭킹 | G68: =+DataBase!$AZ7 -> 4 | H68: 상품등록일 | I68: =+DataBase!$BN7 -> 2020-12-17
D70: 가격 | E70: =+DataBase!AU7 -> 30010 | F70: 배송비 | G70: =+DataBase!$AY7 -> 0 | H70: 구매건수 | I70: =+DataBase!$AV7 -> 0
D72: 찜한 수 | E72: =+DataBase!$BK7 ->  | F72: 파워적립포인트 | G72: =SUBSTITUTE(SUBSTITUTE(DataBase!$BF7,"포인트",""),"원","") ->  | H72: 기본적립포인트 | I72: =+DataBase!$BH7 -> 
E76: 2주 리뷰 | G76: 한달 누적 리뷰 | I76: 전체 리뷰수
E77: =+DataBase!BL7 ->  | F77: =IFERROR(E77/I77,"") ->  | G77: =+DataBase!BM7 ->  | H77: =IFERROR(G77/I77,"") ->  | I77: =+DataBase!AX7 -> 0
D79: 상품명 | E79: =IF(NOT(DataBase!BB8=""),HYPERLINK(DataBase!$AT$2,DataBase!AT8),IF(NOT(DataBase!BC8=""),HYPERLINK(DataBase!$AT$2,DataBase!AT8&" [광고상품]"),IF(NOT(DataBase!BD8=""),HYPERLINK(DataBase!$AT$2,DataBase!AT8&" [가격비교]"),DataBase!AT8))) -> 이케아 이케아 MAMMUT 어린이 테이블 원형 블루
D81: 상품상세/광고문구 | E81: =DataBase!$BI8&" "&DataBase!$BJ8 -> 
D83: 검색 노출 태그 | E83: =+DataBase!$BE8 -> 0
D85: 상호명/판매처 | E85: =+DataBase!$BA8 -> G마켓 | F85: 판매랭킹 | G85: =+DataBase!$AZ8 -> 5 | H85: 상품등록일 | I85: =+DataBase!$BN8 -> 2020-11-20
D87: 가격 | E87: =+DataBase!AU8 -> 30010 | F87: 배송비 | G87: =+DataBase!$AY8 -> 0 | H87: 구매건수 | I87: =+DataBase!$AV8 -> 0
D89: 찜한 수 | E89: =+DataBase!$BK8 -> 1 | F89: 파워적립포인트 | G89: =SUBSTITUTE(SUBSTITUTE(DataBase!$BF8,"포인트",""),"원","") ->  | H89: 기본적립포인트 | I89: =+DataBase!$BH8 -> 
E93: 2주 리뷰 | G93: 한달 누적 리뷰 | I93: 전체 리뷰수
E94: =+DataBase!BL8 ->  | F94: =IFERROR(E94/I94,"") ->  | G94: =+DataBase!BM8 ->  | H94: =IFERROR(G94/I94,"") ->  | I94: =+DataBase!AX8 -> 0

Sheet Waiting

Sheet DataBase (hidden)
A1: 검색어 | B1: =+Rank!B11 -> 어린이 책상
B2: https://search.shopping.naver.com/search/all?pagingIndex=1&pagingSize=10&viewType=list&sort=rel&timestamp=NVSHATC&query=%EC%96%B4%EB%A6%B0%EC%9D%B4%20%EC%B1%85%EC%83%81 | D2: -360-2476-0D95 | E2: [eit`fgdb`fc] | F2: [eit`fgdb`fc] | X2: https://search.shopping.naver.com/search/all?pagingIndex=1&pagingSize=10&viewType=list&sort=review&timestamp=NVSHATC&query=%EC%96%B4%EB%A6%B0%EC%9D%B4%20%EC%B1%85%EC%83%81 | AT2: https://search.shopping.naver.com/search/all?pagingIndex=1&pagingSize=10&viewType=list&sort=price_asc&timestamp=NVSHATC&query=%EC%96%B4%EB%A6%B0%EC%9D%B4%20%EC%B1%85%EC%83%81
A3: 순번 | B3: 상품명 | C3: 가격 | D3: 구매 | F3: 리뷰 | G3: 배송비 | H3: 판매랭킹 | I3: 상호명 | J3: URL | K3: Ad_URL | L3: 검색 URL | M3: 키워드 | N3: 파워적립 포인트 | O3: 포인트정보 | P3: 기본적립 포인트 | Q3: 상품주요 정보 | R3: 광고문구 | S3: 상품찜 | T3: 2주 리뷰 | U3: 한달리뷰 | V3: 상품등록일 | X3: 상품명 | Y3: 가격 | Z3: 구매 | AA3: 이미지 | AB3: 리뷰 | AC3: 배송비 | AD3: 판매랭킹 | AE3: 상호명 | AF3: URL | AG3: Ad_URL | AH3: 검색 URL | AI3: 키워드 | AJ3: 파워적립 포인트 | AK3: 포인트정보 | AL3: 기본적립 포인트 | AM3: 상품주요 정보 | AN3: 광고문구 | AO3: 상품찜 | AP3: 2주 리뷰 | AQ3: 한달리뷰 | AR3: 상품등록일 | AT3: 상품명 | AU3: 가격 | AV3: 구매 | AW3: 이미지 | AX3: 리뷰 | AY3: 배송비 | AZ3: 판매랭킹 | BA3: 상호명 | BB3: URL | BC3: Ad_URL | BD3: 검색 URL | BE3: 키워드 | BF3: 파워적립 포인트 | BG3: 포인트정보 | BH3: 기본적립 포인트 | BI3: 상품주요 정보 | BJ3: 광고문구 | BK3: 상품찜 | BL3: 2주 리뷰 | BM3: 한달리뷰 | BN3: 상품등록일
A4: 1 | B4: [리바트하움] 신학기 초등학생 초등학교책상세트 | C4: 297000 | D4: 13 | F4: 1 | H4: 9 | I4: 한국오피스 | K4: https://adcr.naver.com/adcr?x=zWErwGFCV4XKt057OucSFv///w==k0zSoBpfZFrDumlk+AtQRON14FuXot0jkFq6aWux/xoTrKhOLc2qumf9BqZCoMviC4Qd/Gg0IhqPopW5WRasLiZ0r70xbsEzHqVeweVXPFJ0oYktIeTO+kjr97cVCk6b2sg/C0k4FFZcoSxqSamARAs1o0w+Jl6rt1RAoelp2XDB8zuZecBb9r+JiaQf0Kzk0gj12TgwI7PjDOOVs9UafPhfwWmPs2KJL2GT/Drpcqd6s3AmzZql3OjyvjAsb8nLT+Yhlm5So1AjXsmUzfqAWxin73Kg3H4lS+ZnYOvsGfVNsEDAqceDCWy/CjsU0P8CjbPc9wvFusaAwM37jKYLqlbjMIVNP1anxastGhqIDTeWEvPkoIQdyvgJjT77nRISCr3bKX3JtcfBOK9OtvU7npQkZXBcFsFO4RpIetLIGGKQaKLyGP/Qoak8uo+Mx/z1TSR8qQw2KRhfmw1usiWiNUekTpgNOW68dXExbsr/3nbx636mYwB55KoThqdqrzjrPSa5NpQi/AUT1A7Lx2WNPIg/CJkZbDxqnpIjAlph221IoyiqC0/AdFk4eHnenKperyN6TmmHQi5X9gZr9iAKhbttYoQE1nYKH9K7TNxOyWnRAlRiSPJ1rcu3KLjgZNvxeSTdqJKR/y05Qq0K9IV2E35x+FIytJqFZKQ1a6be3YUxAdp5+3kMBYRGGdV395RpAo4D9mS52AKZb2qPWhTgH7hX/8uXZeYnI0tHBtEFfNsHmbssmTcx4achs0evgiLkCpvG9JrIFssZVgLcWgO+Mw9gpYjcufQVW5m2bj+7c1lFirfwxYDhzcJ0khHMs5MRPpo216qaoFS3YoB9qA8ePbRZ7Ge5Hh+i+wXnhhRR9wf8szANcmpEkW+pY3fW8/Th2 | L4: =IF(K4=0,J4,K4) -> https://adcr.naver.com/adcr?x=zWErwGFCV4XKt057OucSFv///w==k0zSoBpfZFrDumlk+AtQRON14FuXot0jkFq6aWux/xoTrKhOLc2qumf9BqZCoMviC4Qd/Gg0IhqPopW5WRasLiZ0r70xbsEzHqVeweVXPFJ0oYktIeTO+kjr97cVCk6b2sg/C0k4FFZcoSxqSamARAs1o0w+Jl6rt1RAoelp2XDB8zuZecBb9r+JiaQf0Kzk0gj12TgwI7PjDOOVs9UafPhfwWmPs2KJL2GT/Drpcqd6s3AmzZql3OjyvjAsb8nLT+Yhlm5So1AjXsmUzfqAWxin73Kg3H4lS+ZnYOvsGfVNsEDAqceDCWy/CjsU0P8CjbPc9wvFusaAwM37jKYLqlbjMIVNP1anxastGhqIDTeWEvPkoIQdyvgJjT77nRISCr3bKX3JtcfBOK9OtvU7npQkZXBcFsFO4RpIetLIGGKQaKLyGP/Qoak8uo+Mx/z1TSR8qQw2KRhfmw1usiWiNUekTpgNOW68dXExbsr/3nbx636mYwB55KoThqdqrzjrPSa5NpQi/AUT1A7Lx2WNPIg/CJkZbDxqnpIjAlph221IoyiqC0/AdFk4eHnenKperyN6TmmHQi5X9gZr9iAKhbttYoQE1nYKH9K7TNxOyWnRAlRiSPJ1rcu3KLjgZNvxeSTdqJKR/y05Qq0K9IV2E35x+FIytJqFZKQ1a6be3YUxAdp5+3kMBYRGGdV395RpAo4D9mS52AKZb2qPWhTgH7hX/8uXZeYnI0tHBtEFfNsHmbssmTcx4achs0evgiLkCpvG9JrIFssZVgLcWgO+Mw9gpYjcufQVW5m2bj+7c1lFirfwxYDhzcJ0khHMs5MRPpo216qaoFS3YoB9qA8ePbRZ7Ge5Hh+i+wXnhhRR9wf8szANcmpEkW+pY3fW8/Th2 | M4: 신학기,독서실,초등학교 | N4: 포인트 8,910원 | O4: ^2970^2970^^^0^0 | P4: =IFERROR(MID(O4,2,SEARCH("^",MID(O4,2,LEN(O4)-1))-1),0) -> 2970 | R4: 스토어 찜! 최대20%할인 + 추가할인쿠폰 | V4: 2021-01-22 | X4: 시디즈 S500ACF 링고 학생용의자 고정형 + 발받침대 | Y4: 152000 | Z4: 0 | AB4: 13056 | AD4: 1 | AH4: =IF(AG4=0,AF4,AG4) -> 0 | AK4: ^^^^^0^0 | AL4: =IFERROR(MID(AK4,2,SEARCH("^",MID(AK4,2,LEN(AK4)-1))-1),0) ->  | AM4: 책상용의자|고정형의자|키즈용|발받침대포함|좌판교체|의자높낮이조절|오발시스템|발수|1인용|일체형|합성가죽|합성가죽|44cm|우레탄 | AO4: 931 | AR4: 2015-12-24 | AT4: h형 1인용 책상 원목 컴퓨터 학생 입식 사무실 테이블 | AU4: 30000 | AV4: 6 | AX4: 72 | AZ4: 1 | BA4: 더체어컴퍼니 | BB4: https://smartstore.naver.com/main/products/2489595512 | BD4: =IF(BC4=0,BB4,BC4) -> https://smartstore.naver.com/main/products/2489595512 | BE4: L자형책상,철제책상,고등학생책상,공부책상,가정용책상 | BG4: ^300^300^^^0^0 | BH4: =IFERROR(MID(BG4,2,SEARCH("^",MID(BG4,2,LEN(BG4)-1))-1),0) -> 300 | BK4: 9 | BN4: 2018-03-26
A5: 2 | B5: 니스툴그로우 초등학생 높이 각도조절 책상 의자 | C5: 899000 | D5: 0 | F5: 9 | H5: 12 | I5: 더월 | K5: https://adcr.naver.com/adcr?x=9f3bLr+qJbnRcmX4gmXkJP///w==kui9hvqEbn7dDSLsJZiTwYXBen8yG66E8u13YkNvnresUoihCBgsGzcZtDY24n/tvjITQBOnER1rGWmgwP2EZ9lTMxnVcNBmx+WaasgzFrTJVoOHOPqEH78BepmKr8m5+wwy7SjJs9y/13pTkFlWBBj9RlSkrnLHh/N/iW+2ta1xdmQRSt25Zu9RdA1djGiDyd4LkZs0EzqzBcKrj1+X7+rllRDLm29TIXW8LHAf7gVdwbJayfiG2HvC4nQfyTU5xSib+mOSfZ6tPsQXsoroPJpggP0JwmqGL7kWBVJav3wHvRA6Ay7ZKmo+w/YMgotnd8J03llplDTxxacoJ0QDEAgyw1zTl31SnDT4gXMWnhfjHo97nGVnNecPjsyc+TdHI5xlw6Bcq958tg4M7PRtBchvNiVDEp4Y6WLhvttJPzgxxZ04Vw2Aj5ojoJ7j61uyBj2CHHMXqwCmm8BL0X7mJmP1bIe+1hR1ktW85vFGXgntDalQcbc4FdpQhWEcKitnt8d4Q/mS2YrfVsU9y3eZTa324Zb01g2af2F6EFFUQUMBzrlu/yK1NpRN34shlA84FojeXYSbKWnp/2AopJlQAVVONnteRlMVy5xCkHmtbiKQZR5X+S4qLzPl9yDR1bbBKn4UnPaH5cwStmozZQK9d+JnuMjoDxquWoI6qkJ84kCYd22RcKbz4TdF/63Lov62WXsuugFAPg+7vL7Ij9jmz689lLXZRyrvqvmg84MSOBI5swO2OnHGAy7vLaARn04X6Ovw4lt17NfTyBFstBR4DuGwkYMXt/OSffQKz+6Eipx2kYYvhcgn05v3YS7HDtizvovOjEAHJY5I4Yf7Rt6/Zug== | L5: =IF(K5=0,J5,K5) -> https://adcr.naver.com/adcr?x=9f3bLr+qJbnRcmX4gmXkJP///w==kui9hvqEbn7dDSLsJZiTwYXBen8yG66E8u13YkNvnresUoihCBgsGzcZtDY24n/tvjITQBOnER1rGWmgwP2EZ9lTMxnVcNBmx+WaasgzFrTJVoOHOPqEH78BepmKr8m5+wwy7SjJs9y/13pTkFlWBBj9RlSkrnLHh/N/iW+2ta1xdmQRSt25Zu9RdA1djGiDyd4LkZs0EzqzBcKrj1+X7+rllRDLm29TIXW8LHAf7gVdwbJayfiG2HvC4nQfyTU5xSib+mOSfZ6tPsQXsoroPJpggP0JwmqGL7kWBVJav3wHvRA6Ay7ZKmo+w/YMgotnd8J03llplDTxxacoJ0QDEAgyw1zTl31SnDT4gXMWnhfjHo97nGVnNecPjsyc+TdHI5xlw6Bcq958tg4M7PRtBchvNiVDEp4Y6WLhvttJPzgxxZ04Vw2Aj5ojoJ7j61uyBj2CHHMXqwCmm8BL0X7mJmP1bIe+1hR1ktW85vFGXgntDalQcbc4FdpQhWEcKitnt8d4Q/mS2YrfVsU9y3eZTa324Zb01g2af2F6EFFUQUMBzrlu/yK1NpRN34shlA84FojeXYSbKWnp/2AopJlQAVVONnteRlMVy5xCkHmtbiKQZR5X+S4qLzPl9yDR1bbBKn4UnPaH5cwStmozZQK9d+JnuMjoDxquWoI6qkJ84kCYd22RcKbz4TdF/63Lov62WXsuugFAPg+7vL7Ij9jmz689lLXZRyrvqvmg84MSOBI5swO2OnHGAy7vLaARn04X6Ovw4lt17NfTyBFstBR4DuGwkYMXt/OSffQKz+6Eipx2kYYvhcgn05v3YS7HDtizvovOjEAHJY5I4Yf7Rt6/Zug== | M5: 책상 | N5: 포인트 26,970원 | O5: ^^^^^0^0 | P5: =IFERROR(MID(O5,2,SEARCH("^",MID(O5,2,LEN(O5)-1))-1),0) ->  | V5: 2020-09-17 | X5: 시니프 어린이 로보 컴퓨터 초등학생의자 | Y5: 68200 | Z5: 4048 | AB5: 8944 | AD5: 2 | AE5: 시니프 | AF5: https://smartstore.naver.com/main/products/3677998601 | AH5: =IF(AG5=0,AF5,AG5) -> https://smartstore.naver.com/main/products/3677998601 | AI5: 학생의자,컴퓨터의자,공부의자,초등학생의자,회전의자,아이의자,초등학생책상의자,책상의자 | AK5: ^882^882^^^0^0 | AL5: =IFERROR(MID(AK5,2,SEARCH("^",MID(AK5,2,LEN(AK5)-1))-1),0) -> 882 | AM5: 책상용의자|학생, 성인용|손잡이포함|의자높낮이조절|오발시스템|회전식 | AO5: 1721 | AR5: 2018-11-14 | AT5: [리퍼가구] 원목책상 수박 과일책상(CJ015-1)[S/N : 0929-16] | AU5: 30000 | AV5: 0 | AX5: 0 | AZ5: 2 | BA5: 햇살맑은집 | BB5: http://hscafe.co.kr/product/detail.html?product_no=2871&cate_no=95&display_group=1&cafe_mkt=naver_ks&mkt_in=Y&ghost_mall_id=naver&ref=naver_open | BD5: =IF(BC5=0,BB5,BC5) -> http://hscafe.co.kr/product/detail.html?product_no=2871&cate_no=95&display_group=1&cafe_mkt=naver_ks&mkt_in=Y&ghost_mall_id=naver&ref=naver_open | BE5: 유아책상,아이책상,아기책상,찻상,공부상 | BG5: ^^^^^0^0 | BH5: =IFERROR(MID(BG5,2,SEARCH("^",MID(BG5,2,LEN(BG5)-1))-1),0) ->  | BN5: 2020-10-24
A6: 3 | B6: 오피스보이 AP 웨이브 일자사무실책상 국산몰딩 | C6: 80300 | D6: 0 | F6: 0 | H6: 15 | I6: 오피스보이 | K6: https://adcr.naver.com/adcr?x=kbM35UXmGbb3e+9bzxmNqP///w==kuZN5bG26GvsN7r6OvAvmSL2eYiteD3S8q03f7RFGc6Vsk9gRu0oLIAe/32uQ0/iWxOt4YKeC3wQusLGlLRDD5kWhpZ2jDzoEzAGNr5VH50X3DsOLk+tkPhYIpZE563i02vq1ScFU9MPPBgzbSJd59fkmVWHBzsoIFZauQoMfo5LsayicKxisp7ZERI6wpb57goZ2JmeOd/66N3RB5KT9IqL/yKJtt3ObkXOhUHcncB3x/PiIFqIZ01fOv/9usWJ4F91ysqkK2laYiw4TLyu1wv9c+VTh7w0ARgMYQitRmlmI3G7YmoF+Fk4Oq24idXpGfq5kSfpfbj2iab5lkpo3bzyo542Q0/ohYs96snjqSsaf1rewIkkj8JHHo/8xEuykadm0LeeEwZC9nnSIhhFeSsmgsEpLQd1gMahP71oVyqcJKojroQ4VUmHTXr7UcQSU/2YcIA/0l1doR0hL0SK8Tk72NyD3SIOz17qvYS6mch6MFdUAzfMqzcj+v9guBsqkpenM2IMRHcw0FBnvGolO48M9X0g5sfaE1eh7j0pCGNqbzmQ3pmwYZ5nneh1Fdk1eRNOl4kslfCGHnwya4v3Y4weLCQeeb9A6ohaX+BrAxaXlI8HZvN6EBQiwX1ikm/MLWMSON5AxZ3EEx04K1/nt8vIluCSBQh5sWh7lEmQgkxfWAS83dgwrdjDDNN/KT519X5JanusJl+r1rxEsRTi8NiVYF3Y3RPB96w9DY9idqhz2+/Pi89jRJ90b18iLlKTMqnvBq7Ql0rPYx7jJUjHDXpTzQ6vXX9p3eesq99c9KQDoWTVUpGLIA8J2DiJaxBfG5/PhD6vSU+5K5yiVDuBW0ZM2jA6NDGTLLKzGydwPnE7Pl7oYXAYEBlwjkUIvhEaTqEA2EcNho8JE13Rad7KsrA== | L6: =IF(K6=0,J6,K6) -> https://adcr.naver.com/adcr?x=kbM35UXmGbb3e+9bzxmNqP///w==kuZN5bG26GvsN7r6OvAvmSL2eYiteD3S8q03f7RFGc6Vsk9gRu0oLIAe/32uQ0/iWxOt4YKeC3wQusLGlLRDD5kWhpZ2jDzoEzAGNr5VH50X3DsOLk+tkPhYIpZE563i02vq1ScFU9MPPBgzbSJd59fkmVWHBzsoIFZauQoMfo5LsayicKxisp7ZERI6wpb57goZ2JmeOd/66N3RB5KT9IqL/yKJtt3ObkXOhUHcncB3x/PiIFqIZ01fOv/9usWJ4F91ysqkK2laYiw4TLyu1wv9c+VTh7w0ARgMYQitRmlmI3G7YmoF+Fk4Oq24idXpGfq5kSfpfbj2iab5lkpo3bzyo542Q0/ohYs96snjqSsaf1rewIkkj8JHHo/8xEuykadm0LeeEwZC9nnSIhhFeSsmgsEpLQd1gMahP71oVyqcJKojroQ4VUmHTXr7UcQSU/2YcIA/0l1doR0hL0SK8Tk72NyD3SIOz17qvYS6mch6MFdUAzfMqzcj+v9guBsqkpenM2IMRHcw0FBnvGolO48M9X0g5sfaE1eh7j0pCGNqbzmQ3pmwYZ5nneh1Fdk1eRNOl4kslfCGHnwya4v3Y4weLCQeeb9A6ohaX+BrAxaXlI8HZvN6EBQiwX1ikm/MLWMSON5AxZ3EEx04K1/nt8vIluCSBQh5sWh7lEmQgkxfWAS83dgwrdjDDNN/KT519X5JanusJl+r1rxEsRTi8NiVYF3Y3RPB96w9DY9idqhz2+/Pi89jRJ90b18iLlKTMqnvBq7Ql0rPYx7jJUjHDXpTzQ6vXX9p3eesq99c9KQDoWTVUpGLIA8J2DiJaxBfG5/PhD6vSU+5K5yiVDuBW0ZM2jA6NDGTLLKzGydwPnE7Pl7oYXAYEBlwjkUIvhEaTqEA2EcNho8JE13Rad7KsrA== | N6: 포인트 2,409원 | O6: ^^^^^0^0 | P6: =IFERROR(MID(O6,2,SEARCH("^",MID(O6,2,LEN(O6)-1))-1),0) ->  | R6: 30년 사무용가구 전문. 이전 확장 교체 오픈 빠른문의 | V6: 2017-08-22 | X6: 시디즈 S500ACF 링고 고정형 학생용의자+발받침(SNA509ACF) | Y6: 159000 | Z6: 6263 | AB6: 7766 | AD6: 3 | AE6: 시디즈의자 | AF6: https://shopping.naver.com/outlink/itemdetail/3703743177 | AH6: =IF(AG6=0,AF6,AG6) -> https://shopping.naver.com/outlink/itemdetail/3703743177 | AI6: 초등학생,초등학생의자,학생의자,공부의자 | AK6: ^7950^7950^^^0^0 | AL6: =IFERROR(MID(AK6,2,SEARCH("^",MID(AK6,2,LEN(AK6)-1))-1),0) -> 7950 | AM6: 책상용의자|학생, 성인용|메시 | AO6: 532 | AR6: 2018-12-02 | AT6: [꿈꾸는요셉]책상 유리 모음 GL | AU6: 30000 | AV6: 0 | AX6: 10 | AZ6: 3 | BA6: 꿈꾸는요셉 | BB6: http://dreamsjoseph.com/product/detail.html?product_no=2723&cate_no=44&display_group=1&cafe_mkt=naver_ks&mkt_in=Y&ghost_mall_id=naver&ref=naver_open | BD6: =IF(BC6=0,BB6,BC6) -> http://dreamsjoseph.com/product/detail.html?product_no=2723&cate_no=44&display_group=1&cafe_mkt=naver_ks&mkt_in=Y&ghost_mall_id=naver&ref=naver_open | BE6: 책상 | BG6: ^^^^^0^0 | BH6: =IFERROR(MID(BG6,2,SEARCH("^",MID(BG6,2,LEN(BG6)-1))-1),0) ->  | BN6: 2019-02-07
A7: 4 | B7: [루나랩 키즈] 어린이 초등학생 바른자세 책상, 학생 공부 높이 각도 조절 | C7: 269000 | D7: 2862 | F7: 2125 | H7: 1 | I7: 루나랩 키즈 | J7: https://smartstore.naver.com/main/products/4810787049 | L7: =IF(K7=0,J7,K7) -> https://smartstore.naver.com/main/products/4810787049 | M7: 초등학생의자,초등학생책상,아이책상,초등책상,책상 | O7: ^3190^3190^^^0^0 | P7: =IFERROR(MID(O7,2,SEARCH("^",MID(O7,2,LEN(O7)-1))-1),0) -> 3190 | Q7: 전면책상|E0(친환경)|책상단품|각도조절|높이조절|가방걸이|태블릿 거치대|철재|합성목재|플라스틱|1190mm | S7: 6542 | V7: 2020-03-28 | X7: 시디즈 S500ACF 링고 고정형 학생용의자+발받침(SNA509ACF) | Y7: 159000 | Z7: 6263 | AB7: 7766 | AD7: 4 | AE7: 시디즈의자 | AF7: https://smartstore.naver.com/main/products/325093734 | AH7: =IF(AG7=0,AF7,AG7) -> https://smartstore.naver.com/main/products/325093734 | AI7: 초등학생,초등학생의자,공부의자,책상의자,학생의자,컴퓨터의자 | AK7: ^7950^7950^^^0^0 | AL7: =IFERROR(MID(AK7,2,SEARCH("^",MID(AK7,2,LEN(AK7)-1))-1),0) -> 7950 | AM7: 책상용의자|학생, 성인용|메시 | AO7: 2284 | AR7: 2015-08-31 | AT7: 이케아 이케아 MAMMUT 어린이 테이블 원형 블루 | AU7: 30010 | AV7: 0 | AX7: 0 | AZ7: 4 | BA7: G마켓 | BB7: http://www.gmarket.co.kr/challenge/neo_jaehu/jaehu_goods_gate.asp?goodscode=1942238400&GoodsSale=Y&jaehuid=200001169 | BD7: =IF(BC7=0,BB7,BC7) -> http://www.gmarket.co.kr/challenge/neo_jaehu/jaehu_goods_gate.asp?goodscode=1942238400&GoodsSale=Y&jaehuid=200001169 | BG7: ^^^^^0^0 | BH7: =IFERROR(MID(BG7,2,SEARCH("^",MID(BG7,2,LEN(BG7)-1))-1),0) ->  | BN7: 2020-12-17
A8: 5 | B8: [데스커] 신학기 책상세트 | C8: 319000 | D8: 8270 | F8: 7360 | H8: 2 | I8: 데스커 | J8: https://shopping.naver.com/outlink/itemdetail/4176880138 | L8: =IF(K8=0,J8,K8) -> https://shopping.naver.com/outlink/itemdetail/4176880138 | M8: 깔끔한스타일,고등학생책상,초등학생책상,중학생책상,심플한책상,감각적디자인,책상,책상세트,공부책상 | O8: ^15950^15950^^^0^0 | P8: =IFERROR(MID(O8,2,SEARCH("^",MID(O8,2,LEN(O8)-1))-1),0) -> 15950 | Q8: 일자형책상|서재형 | S8: 7785 | V8: 2019-04-30 | X8: 일룸 [일룸]신학기 맞이 학생가구! 인기 책상/의자/침대 | Y8: 599000 | Z8: 0 | AB8: 7408 | AD8: 5 | AE8: 롯데홈쇼핑 | AF8: http://www.lotteimall.com/coop/affilGate.lotte?chl_no=141370&chl_dtl_no=2540914&returnUrl=/goods/viewGoodsDetail.lotte?goods_no=1299447487 | AH8: =IF(AG8=0,AF8,AG8) -> http://www.lotteimall.com/coop/affilGate.lotte?chl_no=141370&chl_dtl_no=2540914&returnUrl=/goods/viewGoodsDetail.lotte?goods_no=1299447487 | AK8: ^^^^^0^0 | AL8: =IFERROR(MID(AK8,2,SEARCH("^",MID(AK8,2,LEN(AK8)-1))-1),0) ->  | AO8: 15 | AR8: 2018-03-07 | AT8: 이케아 이케아 MAMMUT 어린이 테이블 원형 블루 | AU8: 30010 | AV8: 0 | AX8: 0 | AZ8: 5 | BA8: G마켓 | BB8: http://www.gmarket.co.kr/challenge/neo_jaehu/jaehu_goods_gate.asp?goodscode=1942238526&GoodsSale=Y&jaehuid=200001169 | BD8: =IF(BC8=0,BB8,BC8) -> http://www.gmarket.co.kr/challenge/neo_jaehu/jaehu_goods_gate.asp?goodscode=1942238526&GoodsSale=Y&jaehuid=200001169 | BG8: ^^^^^0^0 | BH8: =IFERROR(MID(BG8,2,SEARCH("^",MID(BG8,2,LEN(BG8)-1))-1),0) ->  | BK8: 1 | BN8: 2020-11-20
A10: =+_xlfn.ENCODEURL((B1)) -> %EC%96%B4%EB%A6%B0%EC%9D%B4%20%EC%B1%85%EC%83%81 | B10: 키워드 | C10: =HLOOKUP("*"&B10&"*",$B$11:$G$14,4,FALSE) -> 
A11: https://search.shopping.naver.com/search/all.nhn?pagingIndex=1&pagingSize=1&viewType=list&sort=rel&frm=NVSHATC&query=%EC%96%B4%EB%A6%B0%EC%9D%B4%20%EC%B1%85%EC%83%81 | B11: 카테고리더보기 | C11: 브랜드더보기 | D11: 책상부가기능 | E11: 책상종류 | F11: 가격 | G11: 배송/혜택/색상 | H11: 배송/혜택/색상
A12: https://search.shopping.naver.com/search/all.nhn?pagingIndex=1&pagingSize=1&viewType=list&sort=rel&frm=NVSHATC&query=%EC%96%B4%EB%A6%B0%EC%9D%B4%20%EC%B1%85%EC%83%81
A13: https://search.naver.com/search.naver?query=%EC%96%B4%EB%A6%B0%EC%9D%B4%20%EC%B1%85%EC%83%81 | B13: 유아책상 | C13: 어린이 의자 | D13: 어린이책상의자 | E13: 어린이책상세트 | F13: 책상 | G13: 이케아 어린이 책상 | H13: 시디즈 어린이 의자 | I13: 원목어린이책상 | J13: 제롬 모션데스크 | K13: 일룸 제롬
B14: 1 | C14: 2 | D14: 3 | E14: 4 | F14: 5 | G14: 6 | H14: 7 | I14: 8 | J14: 9 | K14: 10
A16: =+B12&" "&C12&" "&D12&" "&E12&" "&F12&" "&G12&" "&H12&" "&I12&" "&J12&" "&K12 -> 
A17: =+L12&" "&M12&" "&N12&" "&O12&" "&P12&" "&Q12&" "&R12&" "&S12&" "&T12&" "&U12 -> 
A18: =+B13&" "&C13&" "&D13&" "&E13&" "&F13&" "&G13&" "&H13&" "&I13&" "&J13&" "&K13 -> 유아책상 어린이 의자 어린이책상의자 어린이책상세트 책상 이케아 어린이 책상 시디즈 어린이 의자 원목어린이책상 제롬 모션데스크 일룸 제롬
A29: 랭킹 | B29: 상품명 | C29: 상호명 | D29: 가격 | E29: 구매건수 | F29: 리뷰수 | G29: ADURL | H29: MallURL | I29: Cr_URL | J29: URL | L29: Down Score | M29: UP Score | N29: UP Score | O29: Ave Score | P29: Rank
A30: 1 | B30: [리바트하움] 신학기 초등학생 초등학교책상세트 | C30: 한국오피스 | D30: 297000 | E30: 13 | F30: 1 | G30: https://adcr.naver.com/adcr?x=f4xYOi2ElJz3LyEK4E1Lr////w==kIKzdNDlijwiMvbQTS2rC4MqWJjYrlEDRYhwk4+HQundJi/GR0UOEFycTHfo8+ldhdQniiZZ3XV5/qDIX7L1Pj8x6MO2sD27Nt8Png4EbPIluUE7ZCLMtGhYrvgp7Qh6kWAv2MkgjNkbzk+aKUKEUPRuYuNFo0kfRc7S6jWndxw4TOSKWsLd+Dv4VrqayqYqM3eCoNa7j0nPZEL4xHH1iUpy3tPXdM8I/1dbNuDZ6ovxCLaCgJLljBO1hgI3W0+VUHhvSNaicplaMuQA34xARLFTRj7iQYToIwP3Xnjro43iR+mUIH8f+4UNm9W7n58/nnJphlDl2JgNayCzib53t3/4fgzyJvYhxWjJf1qVzqOmZE43eUvoI6NHWdL90cYqE+g44z3SsucYIL8pWajagq+Rp2Fn7EiN23YgGZe4V1XDyARQ2lj74z2y/EFdeR0VDGO2NFUjFm/KkylrvDoHdQP4W2m18Ve8SIDeLDGkxHE8OC/fhDenzoLuLqWth/JNMAsmfKBynV/HHS3VivP7KTRVyZ8YaBZ14kBEnR3ygZT5S0Sg+Fl0ZZwegry1+Yn3CXwywR+BOdDv7cHZDW2kZPjAw754FPmyja2H/C9e09lM0MUxrlJnmedrFlmswH872FCXG47Mknc003HyYYsVzBcN3RPW9bDed76lP5GP0pZt6oyfsoTXvMf1iiyE0HKdXNU2M138kPwtjeiAUZeN0FviubxRTNG8RfAI7GJno79ulWATKWOirdJfqnmeHQuPlEbPPikbY1wEl0B2//pNz7zQbSKese4Hbgb/M7OGaaGfCcJk5I2JJ8YcaCQlmZvC02wSTVNWfOxrXQBei+G47G94ho5xH9TCMmhCv7PGPudkjrnCG3058Grhu57GAs1E6 | J30: =IF(G30=0,H30,IF(AND(G30=0,H30=0),I30,G30)) -> https://adcr.naver.com/adcr?x=f4xYOi2ElJz3LyEK4E1Lr////w==kIKzdNDlijwiMvbQTS2rC4MqWJjYrlEDRYhwk4+HQundJi/GR0UOEFycTHfo8+ldhdQniiZZ3XV5/qDIX7L1Pj8x6MO2sD27Nt8Png4EbPIluUE7ZCLMtGhYrvgp7Qh6kWAv2MkgjNkbzk+aKUKEUPRuYuNFo0kfRc7S6jWndxw4TOSKWsLd+Dv4VrqayqYqM3eCoNa7j0nPZEL4xHH1iUpy3tPXdM8I/1dbNuDZ6ovxCLaCgJLljBO1hgI3W0+VUHhvSNaicplaMuQA34xARLFTRj7iQYToIwP3Xnjro43iR+mUIH8f+4UNm9W7n58/nnJphlDl2JgNayCzib53t3/4fgzyJvYhxWjJf1qVzqOmZE43eUvoI6NHWdL90cYqE+g44z3SsucYIL8pWajagq+Rp2Fn7EiN23YgGZe4V1XDyARQ2lj74z2y/EFdeR0VDGO2NFUjFm/KkylrvDoHdQP4W2m18Ve8SIDeLDGkxHE8OC/fhDenzoLuLqWth/JNMAsmfKBynV/HHS3VivP7KTRVyZ8YaBZ14kBEnR3ygZT5S0Sg+Fl0ZZwegry1+Yn3CXwywR+BOdDv7cHZDW2kZPjAw754FPmyja2H/C9e09lM0MUxrlJnmedrFlmswH872FCXG47Mknc003HyYYsVzBcN3RPW9bDed76lP5GP0pZt6oyfsoTXvMf1iiyE0HKdXNU2M138kPwtjeiAUZeN0FviubxRTNG8RfAI7GJno79ulWATKWOirdJfqnmeHQuPlEbPPikbY1wEl0B2//pNz7zQbSKese4Hbgb/M7OGaaGfCcJk5I2JJ8YcaCQlmZvC02wSTVNWfOxrXQBei+G47G94ho5xH9TCMmhCv7PGPudkjrnCG3058Grhu57GAs1E6 | L30: =+_xlfn.RANK.AVG(Summary!I13,Summary!$I$13:$I$91,1) -> 23 | M30: =+_xlfn.RANK.AVG(Summary!J13,Summary!$J$13:$J$91,0) -> 18 | N30: =+_xlfn.RANK.AVG(Summary!K13,Summary!$K$13:$K$91,0) -> 38.5 | O30: =+AVERAGE(L30:N30) -> 26.5 | P30: =+_xlfn.RANK.AVG(O30,$O$30:$O$73,1) -> 32
A31: 2 | B31: 니스툴그로우 초등학생 높이 각도조절 책상 의자 | C31: 더월 | D31: 899000 | E31: 0 | F31: 9 | G31: https://adcr.naver.com/adcr?x=1TiBCaCwQ9sg1AcklNfS0////w==k/QC53UX/AjyUTBajV0l5jodncwXoDzdrGO+0ndTzGRxpD+DFKTTPz5TLgPU43ogFEMxKZ17V5GphxOsd5I4Xkk6Ld8Qtb6w9Q9p1awm80A9BqZ9/xz2KtfI5DakaGvPWJty8/tlSBPoqwf5DPq8y2qDkZIizdJ0g5OBxsW0Tmo68xin59PbRjYoPCEGAIxjNBk+FP2zvyXp5OEUb8sBIC6vhxGqD2w5zf8wYpCKM7SBegWEX7Juenyd6WEVttc9vHTk9zCIepvvE5qxN6l5C3zPNukc1gOQ1gJukWwzRoV8F9MG/alY21457Aiod/K72524EidXA7XMXTohjVZlkkPV7s4iZclWS2qoHkV9V9GeA13GOPmM4L0+H3d4lMmJYxbgN4j+UTJN88ASmcIyMK5ADdD7BT2FkLCMaqD3SWEmvHI0c25ikbffUTtGRidAickQLxj97izcToY8mxtjdec8cS4vypGJ0bSEL/8bUE8e8YeOU8GeutcoLGwzjR6wopUns0DSfrvk3D67ZWLAhnGVDZZExLwLy1/iHLuZ5bPVQNDQBMPFiVD6DiRGwEyhaNBsFZyOQW6RB0NP5D3j+sxYiP/CSfvUhmZ7JPzbnLVzsNJEUS+6jFenjRKg9acIWY8mmUdug9aXE0D2+yTa2YnUiyFwPRc2TFr0P4wG14PLmI15KsCzJfucwx6WzDElzydKNeQaLAloYbLSsCEWSjueBA0m+76GjAO2yrqJKj6YqAkDbrR94IlVFnh4nMiNBU+u5Jzq1SbgXs+AfBA/vwQ2rSjG2um+hZKfQK7scDK9isj/PZeOzxWyz3mqSPmav3h3Lfq5w4A6Xoi1Ioa2QZw== | J31: =IF(G31=0,H31,IF(AND(G31=0,H31=0),I31,G31)) -> https://adcr.naver.com/adcr?x=1TiBCaCwQ9sg1AcklNfS0////w==k/QC53UX/AjyUTBajV0l5jodncwXoDzdrGO+0ndTzGRxpD+DFKTTPz5TLgPU43ogFEMxKZ17V5GphxOsd5I4Xkk6Ld8Qtb6w9Q9p1awm80A9BqZ9/xz2KtfI5DakaGvPWJty8/tlSBPoqwf5DPq8y2qDkZIizdJ0g5OBxsW0Tmo68xin59PbRjYoPCEGAIxjNBk+FP2zvyXp5OEUb8sBIC6vhxGqD2w5zf8wYpCKM7SBegWEX7Juenyd6WEVttc9vHTk9zCIepvvE5qxN6l5C3zPNukc1gOQ1gJukWwzRoV8F9MG/alY21457Aiod/K72524EidXA7XMXTohjVZlkkPV7s4iZclWS2qoHkV9V9GeA13GOPmM4L0+H3d4lMmJYxbgN4j+UTJN88ASmcIyMK5ADdD7BT2FkLCMaqD3SWEmvHI0c25ikbffUTtGRidAickQLxj97izcToY8mxtjdec8cS4vypGJ0bSEL/8bUE8e8YeOU8GeutcoLGwzjR6wopUns0DSfrvk3D67ZWLAhnGVDZZExLwLy1/iHLuZ5bPVQNDQBMPFiVD6DiRGwEyhaNBsFZyOQW6RB0NP5D3j+sxYiP/CSfvUhmZ7JPzbnLVzsNJEUS+6jFenjRKg9acIWY8mmUdug9aXE0D2+yTa2YnUiyFwPRc2TFr0P4wG14PLmI15KsCzJfucwx6WzDElzydKNeQaLAloYbLSsCEWSjueBA0m+76GjAO2yrqJKj6YqAkDbrR94IlVFnh4nMiNBU+u5Jzq1SbgXs+AfBA/vwQ2rSjG2um+hZKfQK7scDK9isj/PZeOzxWyz3mqSPmav3h3Lfq5w4A6Xoi1Ioa2QZw== | L31: =+_xlfn.RANK.AVG(Summary!I15,Summary!$I$13:$I$91,1) -> 37 | M31: =+_xlfn.RANK.AVG(Summary!J15,Summary!$J$13:$J$91,0) -> 29.5 | N31: =+_xlfn.RANK.AVG(Summary!K15,Summary!$K$13:$K$91,0) -> 36 | O31: 34.16666667 | P31: 40
A32: 3 | B32: 오피스보이 AP 웨이브 일자사무실책상 국산몰딩 | C32: 오피스보이 | D32: 80300 | E32: 0 | F32: 0 | G32: https://adcr.naver.com/adcr?x=rIUOSrdlF8pkDqJ5QKweXv///w==kCUbhAFWT3a7lg1GPSq33GVuSM5I69oCJA+8aRLZwcSlr8+6nDB/Gjsh9Asc7wWvzzjoAQx68vDGHIeIN10rQ9krNh/cqVSYOkhJ/O+DdzlBPA292Wtms17zPgMkBG9g4rFmKqtwgds8AcEtHtas2acDP9tZ5y4g68Vi62fz4NyrQjlr3SuEAfoTCnfCjgdbxxKEJLsi9z2t5gf+4PUmOkKBfWJD+0mw6XLtV6IiYCauwu5v8Cr+SOYdbtIBTgjjqFHLcr2ds1gqgGR1ZB4BLFLiJnj3fVYNrk0yxO9jTkpPHdkGiYiCD/qRABLQORE9vOzv8psLbTANw3t4eq1Mwk3nJXJP+EwLnbG08dxHLD1GTMP9qD+ecKlOE+cDu81o5TmAQjVh9odleaGdrY3zycWlaUyks0P1H40P/L6pqf9fJMAbLGygWpGFtUULAS0BjNtD8EV3qMr6LB6V40wG/xGLMNMbFOfG+RUQLsLn4OEZi3OA+3s1UJTKRXAYmRsKV94AykbPaTaRKZ+AgNwt5Gj91uR0xGqiSagB1cx3AWZAP8zCZDOrALJw44W7COJI0+/hlD1Q4PxeKuibOj0XjLiEmIW+LG9ThajTLZEvNv28fPYYGebygPebNZ75rBrLa9t3yZIMFPj92ruft0i3QhPSh0Z1/feJC1wUefKcoI/NjATVDnNVgQOmpOY2ox/VdRX1tr2D84ZZNc9/fSdtYnB6LvjzZJ//eCJA5TCVyi0K955JlE3GlL4cLk0Oy0ShMpPTX172S89m5+d3E67obepndSapwu/VNc9nI4+bjMkyGQwDWuSiDP9H6ItwdSmdp1vTG4mTvt8zfbFdJ40h3uB/519m2o0wCLeqyqtjWZimsWWePO7gRQKzZZ+RKZBzBKscF05G3kPscL6BgeopCXA== | J32: =IF(G32=0,H32,IF(AND(G32=0,H32=0),I32,G32)) -> https://adcr.naver.com/adcr?x=rIUOSrdlF8pkDqJ5QKweXv///w==kCUbhAFWT3a7lg1GPSq33GVuSM5I69oCJA+8aRLZwcSlr8+6nDB/Gjsh9Asc7wWvzzjoAQx68vDGHIeIN10rQ9krNh/cqVSYOkhJ/O+DdzlBPA292Wtms17zPgMkBG9g4rFmKqtwgds8AcEtHtas2acDP9tZ5y4g68Vi62fz4NyrQjlr3SuEAfoTCnfCjgdbxxKEJLsi9z2t5gf+4PUmOkKBfWJD+0mw6XLtV6IiYCauwu5v8Cr+SOYdbtIBTgjjqFHLcr2ds1gqgGR1ZB4BLFLiJnj3fVYNrk0yxO9jTkpPHdkGiYiCD/qRABLQORE9vOzv8psLbTANw3t4eq1Mwk3nJXJP+EwLnbG08dxHLD1GTMP9qD+ecKlOE+cDu81o5TmAQjVh9odleaGdrY3zycWlaUyks0P1H40P/L6pqf9fJMAbLGygWpGFtUULAS0BjNtD8EV3qMr6LB6V40wG/xGLMNMbFOfG+RUQLsLn4OEZi3OA+3s1UJTKRXAYmRsKV94AykbPaTaRKZ+AgNwt5Gj91uR0xGqiSagB1cx3AWZAP8zCZDOrALJw44W7COJI0+/hlD1Q4PxeKuibOj0XjLiEmIW+LG9ThajTLZEvNv28fPYYGebygPebNZ75rBrLa9t3yZIMFPj92ruft0i3QhPSh0Z1/feJC1wUefKcoI/NjATVDnNVgQOmpOY2ox/VdRX1tr2D84ZZNc9/fSdtYnB6LvjzZJ//eCJA5TCVyi0K955JlE3GlL4cLk0Oy0ShMpPTX172S89m5+d3E67obepndSapwu/VNc9nI4+bjMkyGQwDWuSiDP9H6ItwdSmdp1vTG4mTvt8zfbFdJ40h3uB/519m2o0wCLeqyqtjWZimsWWePO7gRQKzZZ+RKZBzBKscF05G3kPscL6BgeopCXA== | L32: =+_xlfn.RANK.AVG(Summary!I17,Summary!$I$13:$I$91,1) -> 6 | M32: =+_xlfn.RANK.AVG(Summary!J17,Summary!$J$13:$J$91,0) -> 29.5 | N32: =+_xlfn.RANK.AVG(Summary!K17,Summary!$K$13:$K$91,0) -> 40 | O32: 25.16666667 | P32: 29
A33: 4 | B33: [루나랩 키즈] 어린이 초등학생 바른자세 책상, 학생 공부 높이 각도 조절 | C33: 루나랩 키즈 | D33: 269000 | E33: 2862 | F33: 2125 | H33: https://cr.shopping.naver.com/adcr.nhn?x=x2kNTPqDmvdQDSkeX6Lko%2F%2F%2F%2Fw%3D%3DsxaNthOg39OXTNLQRztFcRDiBFbz7istiH5Q5%2BlhcCdJJtAyFw1aYn46AJKNp9asDJfOq%2B8kXphMVLADfTFLfPIYuectimB7Bk5rqlJCo1vuiO9cZ9iLBq8rClqnxrHHyb6qQFTvGZCOG08lHer4ShicX2AUq8VPh3PK%2Fo8l8aTkQ30gwb0ZAWnfX3Zzr1ayR7MWf3lL%2BT6KnlQ4G%2F4R8S%2FXx03f2aKzuCqh9Lbo9RkCDivgLUT8vYh1TsqkpNDO5gGwmPNX%2Fe%2BXkuZ30duRQYj%2FN1gL%2FBgCKENDMCz1nm%2F2A6jQS3oGU7wdcCl8vG9GffkhWXGFAd8BQRD9on%2FE6yH3ERyFkjtvUjCWoeUuIcI%2B42jpfULYV%2Bgdc4g4%2F4MhMjB5%2BwQwTWqlzZqCmwHkzLztoVapYFr3N5nc94C5Y6t%2Bmncy%2BDMu%2FRYPd2VeVfLv%2BXVjaIeefxVy%2FHx0Jb22ACqPNEWKRaj9d3iBGZDGjRT%2BxMxHtgoWTGnD7lSahcS0k%2F23j%2FzT9xhaba2%2FAmmq0uvURckR9vI7ihME%2FiNm5%2FBHBOhLDgz8xW9OSMX6erws3WkgAWoaYSn42YdmeqBXrBaI1RAGyHarAdu10GQU26dxM5fAu3zgOjVPPV6wKRnyposRxGLei5RKlfzSg0g9fUM2OqH9l6YII5ugOGfB4CYY%3D&nvMid=82355309715&catId=50001332 | I33: https://m.smartstore.naver.com/main/products/4810787049 | J33: =IF(G33=0,H33,IF(AND(G33=0,H33=0),I33,G33)) -> https://cr.shopping.naver.com/adcr.nhn?x=x2kNTPqDmvdQDSkeX6Lko%2F%2F%2F%2Fw%3D%3DsxaNthOg39OXTNLQRztFcRDiBFbz7istiH5Q5%2BlhcCdJJtAyFw1aYn46AJKNp9asDJfOq%2B8kXphMVLADfTFLfPIYuectimB7Bk5rqlJCo1vuiO9cZ9iLBq8rClqnxrHHyb6qQFTvGZCOG08lHer4ShicX2AUq8VPh3PK%2Fo8l8aTkQ30gwb0ZAWnfX3Zzr1ayR7MWf3lL%2BT6KnlQ4G%2F4R8S%2FXx03f2aKzuCqh9Lbo9RkCDivgLUT8vYh1TsqkpNDO5gGwmPNX%2Fe%2BXkuZ30duRQYj%2FN1gL%2FBgCKENDMCz1nm%2F2A6jQS3oGU7wdcCl8vG9GffkhWXGFAd8BQRD9on%2FE6yH3ERyFkjtvUjCWoeUuIcI%2B42jpfULYV%2Bgdc4g4%2F4MhMjB5%2BwQwTWqlzZqCmwHkzLztoVapYFr3N5nc94C5Y6t%2Bmncy%2BDMu%2FRYPd2VeVfLv%2BXVjaIeefxVy%2FHx0Jb22ACqPNEWKRaj9d3iBGZDGjRT%2BxMxHtgoWTGnD7lSahcS0k%2F23j%2FzT9xhaba2%2FAmmq0uvURckR9vI7ihME%2FiNm5%2FBHBOhLDgz8xW9OSMX6erws3WkgAWoaYSn42YdmeqBXrBaI1RAGyHarAdu10GQU26dxM5fAu3zgOjVPPV6wKRnyposRxGLei5RKlfzSg0g9fUM2OqH9l6YII5ugOGfB4CYY%3D&nvMid=82355309715&catId=50001332 | L33: =+_xlfn.RANK.AVG(Summary!I19,Summary!$I$13:$I$91,1) -> 21 | M33: =+_xlfn.RANK.AVG(Summary!J19,Summary!$J$13:$J$91,0) -> 3.5 | N33: =+_xlfn.RANK.AVG(Summary!K19,Summary!$K$13:$K$91,0) -> 5 | O33: 9.833333333 | P33: 4
A34: 5 | B34: [데스커] 신학기 책상세트 | C34: 데스커 | D34: 319000 | E34: 8270 | F34: 7360 | H34: https://cr.shopping.naver.com/adcr.nhn?x=T%2BYsv%2B6nfOmZTI3tc4se6P%2F%2F%2Fw%3D%3DsTa2eYJ%2BnS0lPjxSlKLkXPpz0HzL8bi9lIOMLBO6o%2F9b%2BV2Z1R9fh6msUn3l%2FMjx5YIH0rdCLRjN21MRSM87BlsVOJCWNASczc92uy6OQ6zw9Jl2wDM%2FAWKfycVx%2FkE3IfBqS3mXuWwE3MZp%2BCjkIC0F5gBhH%2BnmOX8UGWW7yzetgn7XTimrGFHJWu%2FAwEqSTRRXKS89%2BuqrJDxk0G3dc3MqfYelfJ43OhlZ05oNYKHW8AEwZaYPuUSOdMWVl2rRKVV3pn6Znl%2B9MAtsEE%2BZ8ouacYsA2T1ONC2M4R1%2F3Eb%2FYm5gmzATy6YqOgwjgqZ69%2FZNp%2B4eHbfBrsUARTGcTpqp2UIUlyIA5IF5YG%2FASKaHyFQR1YT0KqYZgmp8mCLJ3FZchQwqvmVRRObyR8d3FAbjZg9KsQK0YME%2BwRObRp59iwvQmmkCFuRb4%2BxL1Z3IphAaAJRpE1Lv9N94Zb0l2NsOPTPND4%2F04buusQu1ngLNaSABahphKfjZh2Z6oFesFRpGbvdCZR3w87jfUTO5bHzRJcvUzEPUPZuDWmje3tAF3W0aco7iswoPpNdovd8MUzY6of2Xpggjm6A4Z8HgJhg%3D%3D&nvMid=81721401519&catId=50001332 | I34: https://m.shopping.naver.com/outlink/itemdetail/4176880138 | J34: =IF(G34=0,H34,IF(AND(G34=0,H34=0),I34,G34)) -> https://cr.shopping.naver.com/adcr.nhn?x=T%2BYsv%2B6nfOmZTI3tc4se6P%2F%2F%2Fw%3D%3DsTa2eYJ%2BnS0lPjxSlKLkXPpz0HzL8bi9lIOMLBO6o%2F9b%2BV2Z1R9fh6msUn3l%2FMjx5YIH0rdCLRjN21MRSM87BlsVOJCWNASczc92uy6OQ6zw9Jl2wDM%2FAWKfycVx%2FkE3IfBqS3mXuWwE3MZp%2BCjkIC0F5gBhH%2BnmOX8UGWW7yzetgn7XTimrGFHJWu%2FAwEqSTRRXKS89%2BuqrJDxk0G3dc3MqfYelfJ43OhlZ05oNYKHW8AEwZaYPuUSOdMWVl2rRKVV3pn6Znl%2B9MAtsEE%2BZ8ouacYsA2T1ONC2M4R1%2F3Eb%2FYm5gmzATy6YqOgwjgqZ69%2FZNp%2B4eHbfBrsUARTGcTpqp2UIUlyIA5IF5YG%2FASKaHyFQR1YT0KqYZgmp8mCLJ3FZchQwqvmVRRObyR8d3FAbjZg9KsQK0YME%2BwRObRp59iwvQmmkCFuRb4%2BxL1Z3IphAaAJRpE1Lv9N94Zb0l2NsOPTPND4%2F04buusQu1ngLNaSABahphKfjZh2Z6oFesFRpGbvdCZR3w87jfUTO5bHzRJcvUzEPUPZuDWmje3tAF3W0aco7iswoPpNdovd8MUzY6of2Xpggjm6A4Z8HgJhg%3D%3D&nvMid=81721401519&catId=50001332 | L34: =+_xlfn.RANK.AVG(Summary!I21,Summary!$I$13:$I$91,1) -> 26.5 | M34: =+_xlfn.RANK.AVG(Summary!J21,Summary!$J$13:$J$91,0) -> 1.5 | N34: =+_xlfn.RANK.AVG(Summary!K21,Summary!$K$13:$K$91,0) -> 1.5 | O34: 9.833333333 | P34: 4
A35: 6 | B35: 일룸 링키플러스 1200폭 일반형 책상 | D35: 150000 | E35: 0 | F35: 1478 | H35: https://cr.shopping.naver.com/adcr.nhn?x=8W849N0TGljw4mHL6OTBPv%2F%2F%2Fw%3D%3DsWiF50z%2FevEYkVb6Ev3yTb7UJcGr7HDmhHf09EbkiKbBJtAyFw1aYn46AJKNp9asDv4B4pcaZmKAg0YPOB%2BSLQcI7%2BuK2jJPVAg1lqADtSW%2BiO9cZ9iLBq8rClqnxrHHyb6qQFTvGZCOG08lHer4ShtyGaSr%2B0dRu37W7MMIB4NFk9Io6iZoAfEBQfsbkhBMBWIfHKOyTRrxCn%2BY4jmmBrg52xeG7g%2FiI4Cj%2FtuCbI2H%2BGZlqeppNdVK2bKs2glgCN1CzfoTmgVhJuqiNatZgI5oC7oFHpSLbDFBBIk9qUb4gVc9gll0tM8AA6hcp67HBhmeWtJmvw8M90EK%2Bzy5a1yVdN3LpKf%2FbKuiZi7z1XJR%2BGLglYs0FIP2PHYEUBBYA%2B8NrCqUr%2BsVN8d0B1ahrDFd%2BqILAG09hjAR1K3qLYkAn0XLC72L%2BOmDgNH7sGhphpm%2BsC%2BCnrwrLPps%2Fn5v%2FErDzn3c5H6virFSgnW5KKdo8DBn8rKKNx6ZKnWPsUWhTHG3B4r2yOQ775TvsBQBxlpW2Xgcw4pgcdqcJqx7ryR60%2FTftdhXxzbsbwt%2ByMl5bb0sGv2OqvLLbdyQwJzUw8U%2FAJcUmJF2ix%2Feizcr9afVxYx6qZDNJmmxhRc19UOn2y1banPRMqe%2FPfOrSawOfLgN%2BQsjK6V0FLd%2Fybx7qcubNSE3OzZUT76KyqzckASmm&nvMid=16473467418&catId=50001332 | J35: =IF(G35=0,H35,IF(AND(G35=0,H35=0),I35,G35)) -> https://cr.shopping.naver.com/adcr.nhn?x=8W849N0TGljw4mHL6OTBPv%2F%2F%2Fw%3D%3DsWiF50z%2FevEYkVb6Ev3yTb7UJcGr7HDmhHf09EbkiKbBJtAyFw1aYn46AJKNp9asDv4B4pcaZmKAg0YPOB%2BSLQcI7%2BuK2jJPVAg1lqADtSW%2BiO9cZ9iLBq8rClqnxrHHyb6qQFTvGZCOG08lHer4ShtyGaSr%2B0dRu37W7MMIB4NFk9Io6iZoAfEBQfsbkhBMBWIfHKOyTRrxCn%2BY4jmmBrg52xeG7g%2FiI4Cj%2FtuCbI2H%2BGZlqeppNdVK2bKs2glgCN1CzfoTmgVhJuqiNatZgI5oC7oFHpSLbDFBBIk9qUb4gVc9gll0tM8AA6hcp67HBhmeWtJmvw8M90EK%2Bzy5a1yVdN3LpKf%2FbKuiZi7z1XJR%2BGLglYs0FIP2PHYEUBBYA%2B8NrCqUr%2BsVN8d0B1ahrDFd%2BqILAG09hjAR1K3qLYkAn0XLC72L%2BOmDgNH7sGhphpm%2BsC%2BCnrwrLPps%2Fn5v%2FErDzn3c5H6virFSgnW5KKdo8DBn8rKKNx6ZKnWPsUWhTHG3B4r2yOQ775TvsBQBxlpW2Xgcw4pgcdqcJqx7ryR60%2FTftdhXxzbsbwt%2ByMl5bb0sGv2OqvLLbdyQwJzUw8U%2FAJcUmJF2ix%2Feizcr9afVxYx6qZDNJmmxhRc19UOn2y1banPRMqe%2FPfOrSawOfLgN%2BQsjK6V0FLd%2Fybx7qcubNSE3OzZUT76KyqzckASmm&nvMid=16473467418&catId=50001332 | L35: =+_xlfn.RANK.AVG(Summary!I23,Summary!$I$13:$I$91,1) -> 11 | M35: =+_xlfn.RANK.AVG(Summary!J23,Summary!$J$13:$J$91,0) -> 29.5 | N35: =+_xlfn.RANK.AVG(Summary!K23,Summary!$K$13:$K$91,0) -> 7 | O35: 15.83333333 | P35: 14
A36: 7 | B36: 초등학생 책상 어린이 각도조절 초등 | C36: 리빙유피 | D36: 143000 | E36: 365 | F36: 659 | H36: https://cr.shopping.naver.com/adcr.nhn?x=E9A3UMNlZ2RRxHQsI0Ycq%2F%2F%2F%2Fw%3D%3DsB%2BkIS0VwQEYWBSaUCQzUq3j4d8NrU1Mc3e8nLmgMPYNJtAyFw1aYn46AJKNp9asDfO2lXT8xr8wBcY0JaLkBFwGS0ZLhNzfsGP1Ns%2FaI5w%2BiO9cZ9iLBq8rClqnxrHHyb6qQFTvGZCOG08lHer4ShicX2AUq8VPh3PK%2Fo8l8aTkQ30gwb0ZAWnfX3Zzr1ayRaA%2FRALXsk1U8lmT3qsR%2BcGCkvRTux6TVg6x1pIByP9iDivgLUT8vYh1TsqkpNDO5gGwmPNX%2Fe%2BXkuZ30duRQYj%2FN1gL%2FBgCKENDMCz1nm%2F3%2B5agdt6wp%2F14STLcJIvMZ790F5VmzzLA%2Fdkzm12pYSKp2UIUlyIA5IF5YG%2FASKaGbYLilWCw%2FBKzycVa2wACJFCJLeTNMiIpdd72TMnUFR4FnA%2FexuPCVuRQU7oqk0RNSCIagrl3DpM5odrb0tiVIsT3bxIgAj5Y9Up03zEjqWL1QSJnQDl%2BUbP%2Ba42dibQkDgdceG33aoH8zFnOCAIFhFzcnvZN2pG12XEuR%2F3JR3taWGE1wtAom4HCez%2FJeRx565hfz78Z4mVFHNhz55SofoJ6agp0fGJSGjGGoLmd5KM2OqH9l6YII5ugOGfB4CYY%3D&nvMid=82279148456&catId=50001332 | I36: https://m.smartstore.naver.com/main/products/4734626992 | J36: =IF(G36=0,H36,IF(AND(G36=0,H36=0),I36,G36)) -> https://cr.shopping.naver.com/adcr.nhn?x=E9A3UMNlZ2RRxHQsI0Ycq%2F%2F%2F%2Fw%3D%3DsB%2BkIS0VwQEYWBSaUCQzUq3j4d8NrU1Mc3e8nLmgMPYNJtAyFw1aYn46AJKNp9asDfO2lXT8xr8wBcY0JaLkBFwGS0ZLhNzfsGP1Ns%2FaI5w%2BiO9cZ9iLBq8rClqnxrHHyb6qQFTvGZCOG08lHer4ShicX2AUq8VPh3PK%2Fo8l8aTkQ30gwb0ZAWnfX3Zzr1ayRaA%2FRALXsk1U8lmT3qsR%2BcGCkvRTux6TVg6x1pIByP9iDivgLUT8vYh1TsqkpNDO5gGwmPNX%2Fe%2BXkuZ30duRQYj%2FN1gL%2FBgCKENDMCz1nm%2F3%2B5agdt6wp%2F14STLcJIvMZ790F5VmzzLA%2Fdkzm12pYSKp2UIUlyIA5IF5YG%2FASKaGbYLilWCw%2FBKzycVa2wACJFCJLeTNMiIpdd72TMnUFR4FnA%2FexuPCVuRQU7oqk0RNSCIagrl3DpM5odrb0tiVIsT3bxIgAj5Y9Up03zEjqWL1QSJnQDl%2BUbP%2Ba42dibQkDgdceG33aoH8zFnOCAIFhFzcnvZN2pG12XEuR%2F3JR3taWGE1wtAom4HCez%2FJeRx565hfz78Z4mVFHNhz55SofoJ6agp0fGJSGjGGoLmd5KM2OqH9l6YII5ugOGfB4CYY%3D&nvMid=82279148456&catId=50001332 | L36: =+_xlfn.RANK.AVG(Summary!I25,Summary!$I$13:$I$91,1) -> 10 | M36: =+_xlfn.RANK.AVG(Summary!J25,Summary!$J$13:$J$91,0) -> 7 | N36: =+_xlfn.RANK.AVG(Summary!K25,Summary!$K$13:$K$91,0) -> 13 | O36: 10 | P36: 6
A37: 8 | B37: 한샘 하이 높이 각도 조절 책상 1200 | D37: 299450 | E37: 0 | F37: 808 | H37: https://cr.shopping.naver.com/adcr.nhn?x=dbepRNlJm6UTGHLdyAtAmf%2F%2F%2Fw%3D%3DsPGMzh5dhVBFuKDJW%2Fj1dBGkMXO4sEy0I7K58%2BpO7syT%2BV2Z1R9fh6msUn3l%2FMjx5y%2FipMUrBiOX27%2B8TVakhEV1qHYLIBB4klqyUFVJrM7E9Jl2wDM%2FAWKfycVx%2FkE3IfBqS3mXuWwE3MZp%2BCjkIC0gAn8lD2%2BxrgblrBqYwPdWug%2B9sjA7rHdeMLkY%2BwIMUpjqsU3REKMjN06my%2BmryH%2FV2raiCF7aFk4I1%2BRMpbA46%2FEXhZgbhtRjphLcAni%2FciitGqoWNKiHOCPjKnfgRA8uxJYlMD%2BCjtqS%2FXLNFGbVthMLLkE5u%2BEmsBzTOOCHE334rL%2BbR36BhYe0R%2FrUmjgBSTS1sRv49oBHxm%2Bxq6HgTt9KtWaRPcIx9SePWEFnyUZNJpAbl95syRuwd2PRBMxZ6uFodlyZ9bfk20%2BE%2B0r3YG1CCr%2BsWAjEmskdg5gFY3BFDJPmINGVd22UpeKU8sgVGZUvoZxj1hH3O6IMa5s%2FkiLngQbgtXEQD%2Bf5aLDxtfEHx9PnfCWU1mNk8NF3%2Fyg1UVvFNLj3ggqaetEGxN4ttpDpSwkGGegSUHVI1krRLPAcP1l2fQoJFKUhsGqKIdWJxyHBE3CYnzhPLG%2BOCDMW1n%2FqZuY76AKrmCI%2FAfoGo1qdArC%2B0gIx3OV65P5I9dMcgIRCk8vtGb7Z%2FKGMSEdE%3D&nvMid=13486454830&catId=50001332 | J37: =IF(G37=0,H37,IF(AND(G37=0,H37=0),I37,G37)) -> https://cr.shopping.naver.com/adcr.nhn?x=dbepRNlJm6UTGHLdyAtAmf%2F%2F%2Fw%3D%3DsPGMzh5dhVBFuKDJW%2Fj1dBGkMXO4sEy0I7K58%2BpO7syT%2BV2Z1R9fh6msUn3l%2FMjx5y%2FipMUrBiOX27%2B8TVakhEV1qHYLIBB4klqyUFVJrM7E9Jl2wDM%2FAWKfycVx%2FkE3IfBqS3mXuWwE3MZp%2BCjkIC0gAn8lD2%2BxrgblrBqYwPdWug%2B9sjA7rHdeMLkY%2BwIMUpjqsU3REKMjN06my%2BmryH%2FV2raiCF7aFk4I1%2BRMpbA46%2FEXhZgbhtRjphLcAni%2FciitGqoWNKiHOCPjKnfgRA8uxJYlMD%2BCjtqS%2FXLNFGbVthMLLkE5u%2BEmsBzTOOCHE334rL%2BbR36BhYe0R%2FrUmjgBSTS1sRv49oBHxm%2Bxq6HgTt9KtWaRPcIx9SePWEFnyUZNJpAbl95syRuwd2PRBMxZ6uFodlyZ9bfk20%2BE%2B0r3YG1CCr%2BsWAjEmskdg5gFY3BFDJPmINGVd22UpeKU8sgVGZUvoZxj1hH3O6IMa5s%2FkiLngQbgtXEQD%2Bf5aLDxtfEHx9PnfCWU1mNk8NF3%2Fyg1UVvFNLj3ggqaetEGxN4ttpDpSwkGGegSUHVI1krRLPAcP1l2fQoJFKUhsGqKIdWJxyHBE3CYnzhPLG%2BOCDMW1n%2FqZuY76AKrmCI%2FAfoGo1qdArC%2B0gIx3OV65P5I9dMcgIRCk8vtGb7Z%2FKGMSEdE%3D&nvMid=13486454830&catId=50001332 | L37: =+_xlfn.RANK.AVG(Summary!I27,Summary!$I$13:$I$91,1) -> 25 | M37: =+_xlfn.RANK.AVG(Summary!J27,Summary!$J$13:$J$91,0) -> 29.5 | N37: =+_xlfn.RANK.AVG(Summary!K27,Summary!$K$13:$K$91,0) -> 11 | O37: 21.83333333 | P37: 23
A38: 9 | B38: [데스커] 신학기 책상세트 | C38: 데스커 | D38: 319000 | E38: 8270 | F38: 7360 | H38: https://cr.shopping.naver.com/adcr.nhn?x=wLUdVzDlaOjIJ7L65dHNtf%2F%2F%2Fw%3D%3DsO%2FQKyn2Cdv1LTOvpVihdCxG%2BzuD0wjlpwdmZMduf1ZFJtAyFw1aYn46AJKNp9asDJp8Iuip%2FAoCBjiOhdImPG3Jq1vHI4ktGRP%2BsF2UWEJyiO9cZ9iLBq8rClqnxrHHyb6qQFTvGZCOG08lHer4ShicX2AUq8VPh3PK%2Fo8l8aTkQ30gwb0ZAWnfX3Zzr1ayRdSbIo6nUYalQY5YiPN0Au8WL7tXRfx8vkBbmed%2BJFD6DivgLUT8vYh1TsqkpNDO5gGwmPNX%2Fe%2BXkuZ30duRQYj%2FN1gL%2FBgCKENDMCz1nm%2F3K3aCCrpniqkrq4us%2F1L1j%2FZNp%2B4eHbfBrsUARTGcTpqp2UIUlyIA5IF5YG%2FASKaH%2BcGli5xpqRmvnv8VxMB%2BSFZchQwqvmVRRObyR8d3FAbjZg9KsQK0YME%2BwRObRp59iwvQmmkCFuRb4%2BxL1Z3IphAaAJRpE1Lv9N94Zb0l2NnyyKFK8UFEOLgLDP4p%2FlnxaSABahphKfjZh2Z6oFesFfcqucCbCYBKqb51c7mPZxV4%2BgnwGukJlCGrQ8rKhRdls9VwffG%2FWJmn19nc8aQfJzY6of2Xpggjm6A4Z8HgJhg%3D%3D&nvMid=81689168293&catId=50001332 | I38: https://m.smartstore.naver.com/main/products/4144647046 | J38: =IF(G38=0,H38,IF(AND(G38=0,H38=0),I38,G38)) -> https://cr.shopping.naver.com/adcr.nhn?x=wLUdVzDlaOjIJ7L65dHNtf%2F%2F%2Fw%3D%3DsO%2FQKyn2Cdv1LTOvpVihdCxG%2BzuD0wjlpwdmZMduf1ZFJtAyFw1aYn46AJKNp9asDJp8Iuip%2FAoCBjiOhdImPG3Jq1vHI4ktGRP%2BsF2UWEJyiO9cZ9iLBq8rClqnxrHHyb6qQFTvGZCOG08lHer4ShicX2AUq8VPh3PK%2Fo8l8aTkQ30gwb0ZAWnfX3Zzr1ayRdSbIo6nUYalQY5YiPN0Au8WL7tXRfx8vkBbmed%2BJFD6DivgLUT8vYh1TsqkpNDO5gGwmPNX%2Fe%2BXkuZ30duRQYj%2FN1gL%2FBgCKENDMCz1nm%2F3K3aCCrpniqkrq4us%2F1L1j%2FZNp%2B4eHbfBrsUARTGcTpqp2UIUlyIA5IF5YG%2FASKaH%2BcGli5xpqRmvnv8VxMB%2BSFZchQwqvmVRRObyR8d3FAbjZg9KsQK0YME%2BwRObRp59iwvQmmkCFuRb4%2BxL1Z3IphAaAJRpE1Lv9N94Zb0l2NnyyKFK8UFEOLgLDP4p%2FlnxaSABahphKfjZh2Z6oFesFfcqucCbCYBKqb51c7mPZxV4%2BgnwGukJlCGrQ8rKhRdls9VwffG%2FWJmn19nc8aQfJzY6of2Xpggjm6A4Z8HgJhg%3D%3D&nvMid=81689168293&catId=50001332 | L38: =+_xlfn.RANK.AVG(Summary!I29,Summary!$I$13:$I$91,1) -> 26.5 | M38: =+_xlfn.RANK.AVG(Summary!J29,Summary!$J$13:$J$91,0) -> 1.5 | N38: =+_xlfn.RANK.AVG(Summary!K29,Summary!$K$13:$K$91,0) -> 1.5 | O38: 9.833333333 | P38: 4
A39: 10 | B39: 스터디업 데스크 스텐다드 그레이 어린이 아동 초등학생 높이 각도조절책상 | C39: 엑세스엠 | D39: 249000 | E39: 295 | F39: 150 | H39: https://cr.shopping.naver.com/adcr.nhn?x=xbfufbcWSwYWkUM%2FiyRCUv%2F%2F%2Fw%3D%3Dsd8F4z4C3EbZu4E%2FxwYZ0Oinx0UPi64PLDtJB7Y9OkVtJtAyFw1aYn46AJKNp9asD3a32DfcEDjZTPUmIWdPX3UeYwRAZpv29HYhavP07IrWiO9cZ9iLBq8rClqnxrHHyb6qQFTvGZCOG08lHer4ShicX2AUq8VPh3PK%2Fo8l8aTkQ30gwb0ZAWnfX3Zzr1ayRC3yud6gw7M%2BQQ4j2%2BjgdrIb%2FODXbs6xNbSXCyRKkBn%2BDivgLUT8vYh1TsqkpNDO5gGwmPNX%2Fe%2BXkuZ30duRQYj%2FN1gL%2FBgCKENDMCz1nm%2F1u7dHwgiOmVleJ5cAdVQiiU%2FlxIfG4%2FSaO4ySZ39yo5qp2UIUlyIA5IF5YG%2FASKaE6YRfuBrT9byvNraox0DFRFCJLeTNMiIpdd72TMnUFR1yCplwTtkgfNzm8S8fVzEWHme1uYro09q9J5WFIGcL%2BGEcs%2F2mCmSnf8K1AUPxZThKI%2FLjzwcJq%2BwBvZ9xY%2Fj6XTllgCNJaCYsNRET32xAdX2rBRYntleLhav5vp8oK0GML36UoRlbzgdaQNvPWfi40%2BGZNYoeEN44gNBUFYB8pKbkWsHDsa3eeK1do7lNHs8sShCurMyqxNAsiC5ngoRG9j2QOU8MqxjltXb2i6vIrg0M04KVkcldo2g9jjS0TC1aFndIwdNwuWmKtx1HNSCrUkiyUGZ3FpPHvE7X48%2Bhb&nvMid=80946629310&catId=50001332 | I39: https://m.smartstore.naver.com/main/products/3402112227 | J39: =IF(G39=0,H39,IF(AND(G39=0,H39=0),I39,G39)) -> https://cr.shopping.naver.com/adcr.nhn?x=xbfufbcWSwYWkUM%2FiyRCUv%2F%2F%2Fw%3D%3Dsd8F4z4C3EbZu4E%2FxwYZ0Oinx0UPi64PLDtJB7Y9OkVtJtAyFw1aYn46AJKNp9asD3a32DfcEDjZTPUmIWdPX3UeYwRAZpv29HYhavP07IrWiO9cZ9iLBq8rClqnxrHHyb6qQFTvGZCOG08lHer4ShicX2AUq8VPh3PK%2Fo8l8aTkQ30gwb0ZAWnfX3Zzr1ayRC3yud6gw7M%2BQQ4j2%2BjgdrIb%2FODXbs6xNbSXCyRKkBn%2BDivgLUT8vYh1TsqkpNDO5gGwmPNX%2Fe%2BXkuZ30duRQYj%2FN1gL%2FBgCKENDMCz1nm%2F1u7dHwgiOmVleJ5cAdVQiiU%2FlxIfG4%2FSaO4ySZ39yo5qp2UIUlyIA5IF5YG%2FASKaE6YRfuBrT9byvNraox0DFRFCJLeTNMiIpdd72TMnUFR1yCplwTtkgfNzm8S8fVzEWHme1uYro09q9J5WFIGcL%2BGEcs%2F2mCmSnf8K1AUPxZThKI%2FLjzwcJq%2BwBvZ9xY%2Fj6XTllgCNJaCYsNRET32xAdX2rBRYntleLhav5vp8oK0GML36UoRlbzgdaQNvPWfi40%2BGZNYoeEN44gNBUFYB8pKbkWsHDsa3eeK1do7lNHs8sShCurMyqxNAsiC5ngoRG9j2QOU8MqxjltXb2i6vIrg0M04KVkcldo2g9jjS0TC1aFndIwdNwuWmKtx1HNSCrUkiyUGZ3FpPHvE7X48%2Bhb&nvMid=80946629310&catId=50001332 | L39: =+_xlfn.RANK.AVG(Summary!I31,Summary!$I$13:$I$91,1) -> 15.5 | M39: =+_xlfn.RANK.AVG(Summary!J31,Summary!$J$13:$J$91,0) -> 8 | N39: =+_xlfn.RANK.AVG(Summary!K31,Summary!$K$13:$K$91,0) -> 23 | O39: 15.5 | P39: 13
A40: 11 | B40: 컴프프로 퍼펙트1200 책상 | D40: 566790 | E40: 0 | F40: 20 | H40: https://cr.shopping.naver.com/adcr.nhn?x=lb6Y4D6q%2BIP%2FLDD84CQbwP%2F%2F%2Fw%3D%3Ds35wz%2BZIQid3o6YEcSxLKNS%2BzttOBDH%2FhOQ7Bh0xfmydJtAyFw1aYn46AJKNp9asDtiiOBNn2CSJDm6U6e%2FrL733OucZvni%2BBmHaflOS0USWiO9cZ9iLBq8rClqnxrHHyb6qQFTvGZCOG08lHer4ShtyGaSr%2B0dRu37W7MMIB4NFk9Io6iZoAfEBQfsbkhBMBWRVODS1%2FTH624AOPKXsBGyNjHweUB3GednbYmFiDsS7%2BGZlqeppNdVK2bKs2glgCN1CzfoTmgVhJuqiNatZgI5oC7oFHpSLbDFBBIk9qUb4gVc9gll0tM8AA6hcp67HBhmeWtJmvw8M90EK%2Bzy5a1yVdN3LpKf%2FbKuiZi7z1XJQ5nTnefroPuYtGFuuC8fx710X17Oq%2BZVVgvWYFnlYKj1d%2BqILAG09hjAR1K3qLYkCn2bUryOyY87yss%2FP3NIJx4AVvRTST6T1OuSkPCjEaSrnlIxB87hhcMDebdXhJjs2oWrBew3v34XdfqmBlszUo%2FNRuxlUrfa2SBj%2FJRbB6jrwbsvO5FFNogLRNusqJOdkd8ScHLiqM6VqdaV6qZThwYnHIcETcJifOE8sb44IMxbTrFtoJbVgvXhFg%2B3wrOPaaUhE%2BSwjqXRI1MOl6uQihxyAhEKTy%2B0Zvtn8oYxIR0Q%3D%3D&nvMid=16990874227&catId=50001332 | J40: =IF(G40=0,H40,IF(AND(G40=0,H40=0),I40,G40)) -> https://cr.shopping.naver.com/adcr.nhn?x=lb6Y4D6q%2BIP%2FLDD84CQbwP%2F%2F%2Fw%3D%3Ds35wz%2BZIQid3o6YEcSxLKNS%2BzttOBDH%2FhOQ7Bh0xfmydJtAyFw1aYn46AJKNp9asDtiiOBNn2CSJDm6U6e%2FrL733OucZvni%2BBmHaflOS0USWiO9cZ9iLBq8rClqnxrHHyb6qQFTvGZCOG08lHer4ShtyGaSr%2B0dRu37W7MMIB4NFk9Io6iZoAfEBQfsbkhBMBWRVODS1%2FTH624AOPKXsBGyNjHweUB3GednbYmFiDsS7%2BGZlqeppNdVK2bKs2glgCN1CzfoTmgVhJuqiNatZgI5oC7oFHpSLbDFBBIk9qUb4gVc9gll0tM8AA6hcp67HBhmeWtJmvw8M90EK%2Bzy5a1yVdN3LpKf%2FbKuiZi7z1XJQ5nTnefroPuYtGFuuC8fx710X17Oq%2BZVVgvWYFnlYKj1d%2BqILAG09hjAR1K3qLYkCn2bUryOyY87yss%2FP3NIJx4AVvRTST6T1OuSkPCjEaSrnlIxB87hhcMDebdXhJjs2oWrBew3v34XdfqmBlszUo%2FNRuxlUrfa2SBj%2FJRbB6jrwbsvO5FFNogLRNusqJOdkd8ScHLiqM6VqdaV6qZThwYnHIcETcJifOE8sb44IMxbTrFtoJbVgvXhFg%2B3wrOPaaUhE%2BSwjqXRI1MOl6uQihxyAhEKTy%2B0Zvtn8oYxIR0Q%3D%3D&nvMid=16990874227&catId=50001332 | L40: =+_xlfn.RANK.AVG(Summary!I33,Summary!$I$13:$I$91,1) -> 33 | M40: =+_xlfn.RANK.AVG(Summary!J33,Summary!$J$13:$J$91,0) -> 29.5 | N40: =+_xlfn.RANK.AVG(Summary!K33,Summary!$K$13:$K$91,0) -> 34 | O40: 32.16666667 | P40: 37
A41: 12 | B41: 마카롱 2인용 트윈 각도조절 쌍둥이 초등학생 책상 세트 | C41: 힐링가구 | D41: 580000 | E41: 83 | F41: 139 | H41: https://cr.shopping.naver.com/adcr.nhn?x=GrTfRH9cHWL%2FyN3%2FECVBNv%2F%2F%2Fw%3D%3Ds7eyCvfMwXhtfeRmG6A%2BkhVP3twoaHOHC3H9O%2FgP2Rx5JtAyFw1aYn46AJKNp9asDTIykBLfLujxfLPQcc5z9z4e5dDp9Bc3mvvc%2BR6ycjPyiO9cZ9iLBq8rClqnxrHHyb6qQFTvGZCOG08lHer4ShicX2AUq8VPh3PK%2Fo8l8aTkQ30gwb0ZAWnfX3Zzr1ayRrvaWs1GPfC4xb8KlC5c%2FEaHboiiC2Qxlof11gv9jn9uDivgLUT8vYh1TsqkpNDO5gGwmPNX%2Fe%2BXkuZ30duRQYj%2FN1gL%2FBgCKENDMCz1nm%2F1JlCZQJZZoqy7pJpEnOzHQIbR3UcpJlnmkKpsqwcrjl6p2UIUlyIA5IF5YG%2FASKaFSemn1NVp3ePd94pdF22tDRFadIoK8rzHqu58MsZGpJ92QaBwOw0npb%2FoTWggnzCxn5i5fLzoxFET%2Fm99RnGxlLIsQVs0qZlOQ7F6m8qSxnYFnA%2FexuPCVuRQU7oqk0RPAXACRW2093leEXbqiyMM9Bp0MGyPaaw%2F%2Bpz%2BFYP7R3yvIPGaov2povOrfeQkqSK57yRI57RgpI74QzeqJc%2FF0IAK9PSciGYKIXKLWdlpAffOEznZHUvhocdol0Y%2FSf6%2BOv71FWkGY2pirP5U8g%2BNLQdAiJdwXirBRdnaxfvrBbw%3D%3D&nvMid=80617207684&catId=50001332 | I41: https://m.smartstore.naver.com/main/products/3119463436 | J41: =IF(G41=0,H41,IF(AND(G41=0,H41=0),I41,G41)) -> https://cr.shopping.naver.com/adcr.nhn?x=GrTfRH9cHWL%2FyN3%2FECVBNv%2F%2F%2Fw%3D%3Ds7eyCvfMwXhtfeRmG6A%2BkhVP3twoaHOHC3H9O%2FgP2Rx5JtAyFw1aYn46AJKNp9asDTIykBLfLujxfLPQcc5z9z4e5dDp9Bc3mvvc%2BR6ycjPyiO9cZ9iLBq8rClqnxrHHyb6qQFTvGZCOG08lHer4ShicX2AUq8VPh3PK%2Fo8l8aTkQ30gwb0ZAWnfX3Zzr1ayRrvaWs1GPfC4xb8KlC5c%2FEaHboiiC2Qxlof11gv9jn9uDivgLUT8vYh1TsqkpNDO5gGwmPNX%2Fe%2BXkuZ30duRQYj%2FN1gL%2FBgCKENDMCz1nm%2F1JlCZQJZZoqy7pJpEnOzHQIbR3UcpJlnmkKpsqwcrjl6p2UIUlyIA5IF5YG%2FASKaFSemn1NVp3ePd94pdF22tDRFadIoK8rzHqu58MsZGpJ92QaBwOw0npb%2FoTWggnzCxn5i5fLzoxFET%2Fm99RnGxlLIsQVs0qZlOQ7F6m8qSxnYFnA%2FexuPCVuRQU7oqk0RPAXACRW2093leEXbqiyMM9Bp0MGyPaaw%2F%2Bpz%2BFYP7R3yvIPGaov2povOrfeQkqSK57yRI57RgpI74QzeqJc%2FF0IAK9PSciGYKIXKLWdlpAffOEznZHUvhocdol0Y%2FSf6%2BOv71FWkGY2pirP5U8g%2BNLQdAiJdwXirBRdnaxfvrBbw%3D%3D&nvMid=80617207684&catId=50001332 | L41: =+_xlfn.RANK.AVG(Summary!I35,Summary!$I$13:$I$91,1) -> 34 | M41: =+_xlfn.RANK.AVG(Summary!J35,Summary!$J$13:$J$91,0) -> 12 | N41: =+_xlfn.RANK.AVG(Summary!K35,Summary!$K$13:$K$91,0) -> 24 | O41: 23.33333333 | P41: 26
A42: 13 | B42: [위드그로우]스마트2.0 어린이 바른자세 높이각도조절 초등학생 책상 1200(그레이) | C42: 하로스토어 | D42: 299000 | E42: 159 | F42: 85 | H42: https://cr.shopping.naver.com/adcr.nhn?x=UBrTPa3xLPbbqwudHzLrYf%2F%2F%2Fw%3D%3DsdTm8WZmkEHZyb1yWQosyhm0n6CR%2BWXkdxun5xLLiTnVJtAyFw1aYn46AJKNp9asDkGHh9WxldsQvxD1qeh8I3zgJcXYn%2BBugKFA9dtj3OsGiO9cZ9iLBq8rClqnxrHHyb6qQFTvGZCOG08lHer4ShicX2AUq8VPh3PK%2Fo8l8aTkQ30gwb0ZAWnfX3Zzr1ayReBzLin%2FCBLBqqUGmrPOG92C5jrQl32hyTAnThpWr18SDivgLUT8vYh1TsqkpNDO5gGwmPNX%2Fe%2BXkuZ30duRQYj%2FN1gL%2FBgCKENDMCz1nm%2F3R7FC1k94%2FmInZc71iZIqTmzevvbZ8gnhjWO5Yd6RAL6p2UIUlyIA5IF5YG%2FASKaHqRLm6srjmjY00TNDp513CFZchQwqvmVRRObyR8d3FAUqDvPVgX5EKM%2FP9YVnOnq7vzDOZkSAXYxg7yUER1tbxWIU4RVCXnaknwTRrIqCa7VwxsYVXLdG2z3ehX%2B%2F34hoPv%2FN4wqnBtLZGBuXCudmlogveIV3UpBEu1ZeW%2FYF%2FEmcHEHieaRf%2F%2ByJXU0GkkiHYCV8k5XEyQvzRIBYlv4FLQmA1gIazz9lusRqkwEZssZAJTisD2oQhMmHfRPpWpo4G6mEtMrkkK0Kl024yNdBQohPT6XZNPN0O5Jedm1iZwIl1w%2BgTYi1zPfkBaeK5VdmCqA6%2BrrPkSkQjk3bFq%2FUy&nvMid=80411596933&catId=50001332 | I42: https://m.smartstore.naver.com/main/products/2913852955 | J42: =IF(G42=0,H42,IF(AND(G42=0,H42=0),I42,G42)) -> https://cr.shopping.naver.com/adcr.nhn?x=UBrTPa3xLPbbqwudHzLrYf%2F%2F%2Fw%3D%3DsdTm8WZmkEHZyb1yWQosyhm0n6CR%2BWXkdxun5xLLiTnVJtAyFw1aYn46AJKNp9asDkGHh9WxldsQvxD1qeh8I3zgJcXYn%2BBugKFA9dtj3OsGiO9cZ9iLBq8rClqnxrHHyb6qQFTvGZCOG08lHer4ShicX2AUq8VPh3PK%2Fo8l8aTkQ30gwb0ZAWnfX3Zzr1ayReBzLin%2FCBLBqqUGmrPOG92C5jrQl32hyTAnThpWr18SDivgLUT8vYh1TsqkpNDO5gGwmPNX%2Fe%2BXkuZ30duRQYj%2FN1gL%2FBgCKENDMCz1nm%2F3R7FC1k94%2FmInZc71iZIqTmzevvbZ8gnhjWO5Yd6RAL6p2UIUlyIA5IF5YG%2FASKaHqRLm6srjmjY00TNDp513CFZchQwqvmVRRObyR8d3FAUqDvPVgX5EKM%2FP9YVnOnq7vzDOZkSAXYxg7yUER1tbxWIU4RVCXnaknwTRrIqCa7VwxsYVXLdG2z3ehX%2B%2F34hoPv%2FN4wqnBtLZGBuXCudmlogveIV3UpBEu1ZeW%2FYF%2FEmcHEHieaRf%2F%2ByJXU0GkkiHYCV8k5XEyQvzRIBYlv4FLQmA1gIazz9lusRqkwEZssZAJTisD2oQhMmHfRPpWpo4G6mEtMrkkK0Kl024yNdBQohPT6XZNPN0O5Jedm1iZwIl1w%2BgTYi1zPfkBaeK5VdmCqA6%2BrrPkSkQjk3bFq%2FUy&nvMid=80411596933&catId=50001332 | L42: =+_xlfn.RANK.AVG(Summary!I37,Summary!$I$13:$I$91,1) -> 24 | M42: =+_xlfn.RANK.AVG(Summary!J37,Summary!$J$13:$J$91,0) -> 9 | N42: =+_xlfn.RANK.AVG(Summary!K37,Summary!$K$13:$K$91,0) -> 28 | O42: 20.33333333 | P42: 18.5
A43: 14 | B43: 신학기입학기념 행사 BTS 초등학생 키즈 어린이 책상 세트 구성 E0등급 | C43: 가구컴퍼스 | D43: 75500 | E43: 1127 | F43: 1250 | H43: https://cr.shopping.naver.com/adcr.nhn?x=synvqWyJeOGSP78l2WY7tf%2F%2F%2Fw%3D%3Dsyd95%2BAlDFrkMU4VcCHukmiw1af4iRWycfOahf95DLrNJtAyFw1aYn46AJKNp9asD6DGuFh5liOcRdjD70BwDA1KOxf8FkoN%2BUUmEs83usCWiO9cZ9iLBq8rClqnxrHHyb6qQFTvGZCOG08lHer4ShicX2AUq8VPh3PK%2Fo8l8aTkQ30gwb0ZAWnfX3Zzr1ayRdWaCUBd5%2FoJ84gzLnzL0a7NYk%2F3p6V0MjME5x00e1MCDivgLUT8vYh1TsqkpNDO5gGwmPNX%2Fe%2BXkuZ30duRQYj%2FN1gL%2FBgCKENDMCz1nm%2F0Wo8OpUwtPWrN42jwEeuZ%2BIjJuNFJJc9koM3L46c6ZBap2UIUlyIA5IF5YG%2FASKaE%2BGI%2FoUgiHrt2a6OF25BVIFCJLeTNMiIpdd72TMnUFRytXt0peIZ4yW%2F3k7InvoF7ZAfkZattztyVFBC8Na7WHkhwv51bKSSmh6v%2FCRp6fawNoOHiSKtmsNuzRjKaPx8w4bOZGeQDdlJ3mecO%2BuUQI%2B2FAGlqub4FD8ecPXc%2BPAZAaGox1TbaYZ9s3scrD1pEKRssznCph5mvcbAefsKftkAlOKwPahCEyYd9E%2BlamjgTiCDmrYCYw9t64iuLf2M0vUayEt1DnOaYKL%2Bi6qKgKTl4WrvCxnNG8oa%2BrqlJxkYKoDr6us%2BRKRCOTdsWr9TI%3D&nvMid=82208103255&catId=50001332 | I43: https://m.smartstore.naver.com/main/products/4663582624 | J43: =IF(G43=0,H43,IF(AND(G43=0,H43=0),I43,G43)) -> https://cr.shopping.naver.com/adcr.nhn?x=synvqWyJeOGSP78l2WY7tf%2F%2F%2Fw%3D%3Dsyd95%2BAlDFrkMU4VcCHukmiw1af4iRWycfOahf95DLrNJtAyFw1aYn46AJKNp9asD6DGuFh5liOcRdjD70BwDA1KOxf8FkoN%2BUUmEs83usCWiO9cZ9iLBq8rClqnxrHHyb6qQFTvGZCOG08lHer4ShicX2AUq8VPh3PK%2Fo8l8aTkQ30gwb0ZAWnfX3Zzr1ayRdWaCUBd5%2FoJ84gzLnzL0a7NYk%2F3p6V0MjME5x00e1MCDivgLUT8vYh1TsqkpNDO5gGwmPNX%2Fe%2BXkuZ30duRQYj%2FN1gL%2FBgCKENDMCz1nm%2F0Wo8OpUwtPWrN42jwEeuZ%2BIjJuNFJJc9koM3L46c6ZBap2UIUlyIA5IF5YG%2FASKaE%2BGI%2FoUgiHrt2a6OF25BVIFCJLeTNMiIpdd72TMnUFRytXt0peIZ4yW%2F3k7InvoF7ZAfkZattztyVFBC8Na7WHkhwv51bKSSmh6v%2FCRp6fawNoOHiSKtmsNuzRjKaPx8w4bOZGeQDdlJ3mecO%2BuUQI%2B2FAGlqub4FD8ecPXc%2BPAZAaGox1TbaYZ9s3scrD1pEKRssznCph5mvcbAefsKftkAlOKwPahCEyYd9E%2BlamjgTiCDmrYCYw9t64iuLf2M0vUayEt1DnOaYKL%2Bi6qKgKTl4WrvCxnNG8oa%2BrqlJxkYKoDr6us%2BRKRCOTdsWr9TI%3D&nvMid=82208103255&catId=50001332 | L43: =+_xlfn.RANK.AVG(Summary!I39,Summary!$I$13:$I$91,1) -> 4 | M43: =+_xlfn.RANK.AVG(Summary!J39,Summary!$J$13:$J$91,0) -> 5 | N43: =+_xlfn.RANK.AVG(Summary!K39,Summary!$K$13:$K$91,0) -> 9 | O43: 6 | P43: 1
A44: 15 | B44: 리바트 뚜뚜 높이조절 아이 책상 | D44: 66900 | E44: 0 | F44: 707 | H44: https://cr.shopping.naver.com/adcr.nhn?x=TyHb3855LNeOjcrBYi4MUv%2F%2F%2Fw%3D%3DsqcQItkmn2X%2FsqEmLH4qXK%2FPshjOIUF2yAgnoHfkwDRTD8KTAmf4KWGP7K8A663CAwFUVYY4pR%2FJLVKomt4mcQj0lauKhw5Foz5059Ft7dYeL8yT9vZuDvo2djJMqXDsCb7MfLQKIdjCgfcUPwbcJp0ls1M9xucXxkPPt7QTmSRFr6kdrp7BvT8OlwZ7P37YyYc4PRJhHChjAdO7I%2Fve7XhOv3H8oQoga1m8Esygj8rnYlO%2Fk4kxCoWN1gk8LWSU%2BRbfNFVivhP8U%2BTROBimK%2BwWrj3yhjv32odB%2BAe4KRcC4culXwc2z5U0bwq8AvoHHA5ijqTU6jnRNRTh%2BkUVsAgez%2FY8eSma9aMvarLWce5t3C1uwxRA7WjuJUp52qrfBIqR44qYXRSe5t7Ll2jTKgGQim0uSGV45GygZvcFQrpAhqUGi7eNPASJqHFD%2FmHIc1AugLKT7c%2BHB%2F6TSd5aHRkqxorqzO%2BBGjlflcLUedbIVj7k%2Fv%2F5xEI9IfJz8vhCYCjgJ6E78E4KELJQULHtbgfzUbsZVK32tkgY%2FyUWweo6KqmhhH8ojviOTuqJQsyclXUY2b1S3Sz3M4iSo08JBKBGk4XMJtozo5T3u6g%2BJ%2BOsJVk9jJdBRgmVP6yRgzMNo6ZPdrMI7ek5ePlD97VAlfscgIRCk8vtGb7Z%2FKGMSEdE%3D&nvMid=17203450963&catId=50001332 | J44: =IF(G44=0,H44,IF(AND(G44=0,H44=0),I44,G44)) -> https://cr.shopping.naver.com/adcr.nhn?x=TyHb3855LNeOjcrBYi4MUv%2F%2F%2Fw%3D%3DsqcQItkmn2X%2FsqEmLH4qXK%2FPshjOIUF2yAgnoHfkwDRTD8KTAmf4KWGP7K8A663CAwFUVYY4pR%2FJLVKomt4mcQj0lauKhw5Foz5059Ft7dYeL8yT9vZuDvo2djJMqXDsCb7MfLQKIdjCgfcUPwbcJp0ls1M9xucXxkPPt7QTmSRFr6kdrp7BvT8OlwZ7P37YyYc4PRJhHChjAdO7I%2Fve7XhOv3H8oQoga1m8Esygj8rnYlO%2Fk4kxCoWN1gk8LWSU%2BRbfNFVivhP8U%2BTROBimK%2BwWrj3yhjv32odB%2BAe4KRcC4culXwc2z5U0bwq8AvoHHA5ijqTU6jnRNRTh%2BkUVsAgez%2FY8eSma9aMvarLWce5t3C1uwxRA7WjuJUp52qrfBIqR44qYXRSe5t7Ll2jTKgGQim0uSGV45GygZvcFQrpAhqUGi7eNPASJqHFD%2FmHIc1AugLKT7c%2BHB%2F6TSd5aHRkqxorqzO%2BBGjlflcLUedbIVj7k%2Fv%2F5xEI9IfJz8vhCYCjgJ6E78E4KELJQULHtbgfzUbsZVK32tkgY%2FyUWweo6KqmhhH8ojviOTuqJQsyclXUY2b1S3Sz3M4iSo08JBKBGk4XMJtozo5T3u6g%2BJ%2BOsJVk9jJdBRgmVP6yRgzMNo6ZPdrMI7ek5ePlD97VAlfscgIRCk8vtGb7Z%2FKGMSEdE%3D&nvMid=17203450963&catId=50001332 | L44: =+_xlfn.RANK.AVG(Summary!I41,Summary!$I$13:$I$91,1) -> 2 | M44: =+_xlfn.RANK.AVG(Summary!J41,Summary!$J$13:$J$91,0) -> 29.5 | N44: =+_xlfn.RANK.AVG(Summary!K41,Summary!$K$13:$K$91,0) -> 12 | O44: 14.5 | P44: 11
A45: 16 | B45: 일룸 로이모노 1200폭 5단 책상세트 D600 | D45: 499000 | E45: 0 | F45: 257 | H45: https://cr.shopping.naver.com/adcr.nhn?x=3Ksrux%2BT0exkR%2B1FJFOPLv%2F%2F%2Fw%3D%3DskLB%2FkhFvfoHv6QyUznm1vDxjQ5cNV0WHbwijveTmpbJJtAyFw1aYn46AJKNp9asDY2Al5kmLK18R4DHyBMOgnhxW%2FUCyCDvqLiCYsPBi8LyiO9cZ9iLBq8rClqnxrHHyb6qQFTvGZCOG08lHer4ShtyGaSr%2B0dRu37W7MMIB4NFk9Io6iZoAfEBQfsbkhBMBnHx%2Bsp%2BBmakVcIQVRfOq6f4Nb7hKbXszYj1XY7ycEDr%2BGZlqeppNdVK2bKs2glgCN1CzfoTmgVhJuqiNatZgI5oC7oFHpSLbDFBBIk9qUb4gVc9gll0tM8AA6hcp67HBhmeWtJmvw8M90EK%2Bzy5a1yVdN3LpKf%2FbKuiZi7z1XJRT3RP9neQbhmwf1pOCnS0UNnd5JL5F8kHvhNVyZhiYI1d%2BqILAG09hjAR1K3qLYkD%2B9h%2FPqMhzu5SDNvFHTrimjaR%2FOHVoHfLalzD0o1X59bDzn3c5H6virFSgnW5KKdpwDL0XWKx8C70VRvzQnrx0GuU09XJq%2FuFt2zCAlPuHDoS4irNABbDV09GK5SUFeP41QscUpgLt%2BxYDey0WS19WDIVfwR9g%2BB7vFaDczfOlP8NqaKb5OR8crY265r4LmMQJ0QcP8dXyGlNIguLkkE09SEGSh5%2BUv8X8Zb%2Fg4YiHYhVqr7qDIonrMPuUrmnB%2BEhB0CIl3BeKsFF2drF%2B%2BsFv&nvMid=21444976945&catId=50001332 | J45: =IF(G45=0,H45,IF(AND(G45=0,H45=0),I45,G45)) -> https://cr.shopping.naver.com/adcr.nhn?x=3Ksrux%2BT0exkR%2B1FJFOPLv%2F%2F%2Fw%3D%3DskLB%2FkhFvfoHv6QyUznm1vDxjQ5cNV0WHbwijveTmpbJJtAyFw1aYn46AJKNp9asDY2Al5kmLK18R4DHyBMOgnhxW%2FUCyCDvqLiCYsPBi8LyiO9cZ9iLBq8rClqnxrHHyb6qQFTvGZCOG08lHer4ShtyGaSr%2B0dRu37W7MMIB4NFk9Io6iZoAfEBQfsbkhBMBnHx%2Bsp%2BBmakVcIQVRfOq6f4Nb7hKbXszYj1XY7ycEDr%2BGZlqeppNdVK2bKs2glgCN1CzfoTmgVhJuqiNatZgI5oC7oFHpSLbDFBBIk9qUb4gVc9gll0tM8AA6hcp67HBhmeWtJmvw8M90EK%2Bzy5a1yVdN3LpKf%2FbKuiZi7z1XJRT3RP9neQbhmwf1pOCnS0UNnd5JL5F8kHvhNVyZhiYI1d%2BqILAG09hjAR1K3qLYkD%2B9h%2FPqMhzu5SDNvFHTrimjaR%2FOHVoHfLalzD0o1X59bDzn3c5H6virFSgnW5KKdpwDL0XWKx8C70VRvzQnrx0GuU09XJq%2FuFt2zCAlPuHDoS4irNABbDV09GK5SUFeP41QscUpgLt%2BxYDey0WS19WDIVfwR9g%2BB7vFaDczfOlP8NqaKb5OR8crY265r4LmMQJ0QcP8dXyGlNIguLkkE09SEGSh5%2BUv8X8Zb%2Fg4YiHYhVqr7qDIonrMPuUrmnB%2BEhB0CIl3BeKsFF2drF%2B%2BsFv&nvMid=21444976945&catId=50001332 | L45: =+_xlfn.RANK.AVG(Summary!I43,Summary!$I$13:$I$91,1) -> 32 | M45: =+_xlfn.RANK.AVG(Summary!J43,Summary!$J$13:$J$91,0) -> 29.5 | N45: =+_xlfn.RANK.AVG(Summary!K43,Summary!$K$13:$K$91,0) -> 15 | O45: 25.5 | P45: 30
A46: 17 | B46: 한샘 티오 그로우 각도조절 책상세트 5단 120x75cm | D46: 354580 | E46: 0 | F46: 44 | H46: https://cr.shopping.naver.com/adcr.nhn?x=iuCE3TtUKgaiVmPlBdDCEP%2F%2F%2Fw%3D%3DskVeoq0%2B%2Blt%2F%2F40xdEUUW0Ccdwn60NnkNCcLhbH9S%2F51JtAyFw1aYn46AJKNp9asDCfX9%2FYEM5xogdxBVAnzNPCIG7y0shqpozaOnNtrQNe%2BiO9cZ9iLBq8rClqnxrHHyb6qQFTvGZCOG08lHer4ShtyGaSr%2B0dRu37W7MMIB4NFk9Io6iZoAfEBQfsbkhBMBI6hOGTtVCTRJWvkBwGMvGVjHfzDcckQ5yZrN0sMep3v%2BGZlqeppNdVK2bKs2glgCN1CzfoTmgVhJuqiNatZgI5oC7oFHpSLbDFBBIk9qUb4gVc9gll0tM8AA6hcp67HBhmeWtJmvw8M90EK%2Bzy5a1yVdN3LpKf%2FbKuiZi7z1XJQueyUP2lqQ2N5bGNZONZWTxjXeIzg%2FDMViFEg2cFMMeFd%2BqILAG09hjAR1K3qLYkBViFaZwDc%2BOnoa3KJ0MHRDjCsOZx59V526coHV5SphjbnlIxB87hhcMDebdXhJjs0Q1tPg8lTGnaHEtBW8W0nhY4JDVu4pKYGoIfkJIKI%2Fe9oToQjhQLwZ8JM7Kv3d7xH4naMEIt31NNRlf6HFrv2CikIMBsq3QF%2Ff7mcMVCkTKjUJ%2B%2BGyKcLPNp%2BTPdbX1LxPwCXFJiRdosf3os3K%2FWn1I%2BYBImAe8zzXbpz%2Fv0RdGShblhm9eWwY8cHAFRlwYGADfkLIyuldBS3f8m8e6nLmzUhNzs2VE%2B%2Bisqs3JAEppg%3D%3D&nvMid=25499184522&catId=50001332 | J46: =IF(G46=0,H46,IF(AND(G46=0,H46=0),I46,G46)) -> https://cr.shopping.naver.com/adcr.nhn?x=iuCE3TtUKgaiVmPlBdDCEP%2F%2F%2Fw%3D%3DskVeoq0%2B%2Blt%2F%2F40xdEUUW0Ccdwn60NnkNCcLhbH9S%2F51JtAyFw1aYn46AJKNp9asDCfX9%2FYEM5xogdxBVAnzNPCIG7y0shqpozaOnNtrQNe%2BiO9cZ9iLBq8rClqnxrHHyb6qQFTvGZCOG08lHer4ShtyGaSr%2B0dRu37W7MMIB4NFk9Io6iZoAfEBQfsbkhBMBI6hOGTtVCTRJWvkBwGMvGVjHfzDcckQ5yZrN0sMep3v%2BGZlqeppNdVK2bKs2glgCN1CzfoTmgVhJuqiNatZgI5oC7oFHpSLbDFBBIk9qUb4gVc9gll0tM8AA6hcp67HBhmeWtJmvw8M90EK%2Bzy5a1yVdN3LpKf%2FbKuiZi7z1XJQueyUP2lqQ2N5bGNZONZWTxjXeIzg%2FDMViFEg2cFMMeFd%2BqILAG09hjAR1K3qLYkBViFaZwDc%2BOnoa3KJ0MHRDjCsOZx59V526coHV5SphjbnlIxB87hhcMDebdXhJjs0Q1tPg8lTGnaHEtBW8W0nhY4JDVu4pKYGoIfkJIKI%2Fe9oToQjhQLwZ8JM7Kv3d7xH4naMEIt31NNRlf6HFrv2CikIMBsq3QF%2Ff7mcMVCkTKjUJ%2B%2BGyKcLPNp%2BTPdbX1LxPwCXFJiRdosf3os3K%2FWn1I%2BYBImAe8zzXbpz%2Fv0RdGShblhm9eWwY8cHAFRlwYGADfkLIyuldBS3f8m8e6nLmzUhNzs2VE%2B%2Bisqs3JAEppg%3D%3D&nvMid=25499184522&catId=50001332 | L46: =+_xlfn.RANK.AVG(Summary!I45,Summary!$I$13:$I$91,1) -> 29 | M46: =+_xlfn.RANK.AVG(Summary!J45,Summary!$J$13:$J$91,0) -> 29.5 | N46: =+_xlfn.RANK.AVG(Summary!K45,Summary!$K$13:$K$91,0) -> 30.5 | O46: 29.66666667 | P46: 34
A47: 18 | B47: 한샘 티오 그로우 일반책상세트 5단 120x60cm | D47: 249010 | E47: 0 | F47: 101 | H47: https://cr.shopping.naver.com/adcr.nhn?x=ZvceTVMAJ%2FqT05zHAq6Gwv%2F%2F%2Fw%3D%3DsrTg%2BGdmln2Aetofzl5yeqelDlq65lZJOy4PSdIp90Gz%2BV2Z1R9fh6msUn3l%2FMjx5DlOqC8kkOPFNxH%2BlE%2FNseV3GfJeQxqBk1%2FhcfXoGOIg9Jl2wDM%2FAWKfycVx%2FkE3IfBqS3mXuWwE3MZp%2BCjkIC0gAn8lD2%2BxrgblrBqYwPdWug%2B9sjA7rHdeMLkY%2BwIMUdjq%2Fx9jt8AXZ%2FQofmr5lRvV2raiCF7aFk4I1%2BRMpbA46%2FEXhZgbhtRjphLcAni%2FciitGqoWNKiHOCPjKnfgRA8uxJYlMD%2BCjtqS%2FXLNFGbVthMLLkE5u%2BEmsBzTOOCHE334rL%2BbR36BhYe0R%2FrUmjgBSTS1sRv49oBHxm%2Bxq6Hi6S%2FwPoKkreza3uQBlpWqfoQHrDYAVWuTkbm3nCvgwCBZ6uFodlyZ9bfk20%2BE%2B0r3XlO6NevZskm176dk0dup7sv4Pv0kWpdQcKGzAgoBrl79Hz8IJRdREyarvw3bqYZ2xwEj2aZJSWLEz9R3XSLooJfIJEFecdZlXM%2FhZhu9OJiXUY1SyMH7R6eeiKTr7%2BBgtyoSE6KxzK06m1%2BHQP34CovZl%2FoCH0G%2BzRME%2FcjbTgjgeO6NZby4HCBXYQEbGTFh7N0%2BKs0gSFTdhwMrBXaDkLcRe2cgZnJxS4finui%2B4rGijwpQmbmtVGwSSELRsfikOEsHC78VBLnFZh%2FnDobeN&nvMid=24892934522&catId=50001332 | J47: =IF(G47=0,H47,IF(AND(G47=0,H47=0),I47,G47)) -> https://cr.shopping.naver.com/adcr.nhn?x=ZvceTVMAJ%2FqT05zHAq6Gwv%2F%2F%2Fw%3D%3DsrTg%2BGdmln2Aetofzl5yeqelDlq65lZJOy4PSdIp90Gz%2BV2Z1R9fh6msUn3l%2FMjx5DlOqC8kkOPFNxH%2BlE%2FNseV3GfJeQxqBk1%2FhcfXoGOIg9Jl2wDM%2FAWKfycVx%2FkE3IfBqS3mXuWwE3MZp%2BCjkIC0gAn8lD2%2BxrgblrBqYwPdWug%2B9sjA7rHdeMLkY%2BwIMUdjq%2Fx9jt8AXZ%2FQofmr5lRvV2raiCF7aFk4I1%2BRMpbA46%2FEXhZgbhtRjphLcAni%2FciitGqoWNKiHOCPjKnfgRA8uxJYlMD%2BCjtqS%2FXLNFGbVthMLLkE5u%2BEmsBzTOOCHE334rL%2BbR36BhYe0R%2FrUmjgBSTS1sRv49oBHxm%2Bxq6Hi6S%2FwPoKkreza3uQBlpWqfoQHrDYAVWuTkbm3nCvgwCBZ6uFodlyZ9bfk20%2BE%2B0r3XlO6NevZskm176dk0dup7sv4Pv0kWpdQcKGzAgoBrl79Hz8IJRdREyarvw3bqYZ2xwEj2aZJSWLEz9R3XSLooJfIJEFecdZlXM%2FhZhu9OJiXUY1SyMH7R6eeiKTr7%2BBgtyoSE6KxzK06m1%2BHQP34CovZl%2FoCH0G%2BzRME%2FcjbTgjgeO6NZby4HCBXYQEbGTFh7N0%2BKs0gSFTdhwMrBXaDkLcRe2cgZnJxS4finui%2B4rGijwpQmbmtVGwSSELRsfikOEsHC78VBLnFZh%2FnDobeN&nvMid=24892934522&catId=50001332 | L47: =+_xlfn.RANK.AVG(Summary!I47,Summary!$I$13:$I$91,1) -> 17 | M47: =+_xlfn.RANK.AVG(Summary!J47,Summary!$J$13:$J$91,0) -> 29.5 | N47: =+_xlfn.RANK.AVG(Summary!K47,Summary!$K$13:$K$91,0) -> 26 | O47: 24.16666667 | P47: 27
A48: 19 | B48: 엠리빙 폴라리스 높이조절 어린이책상 각도조절 초등학생책상 유아 의자 | C48: 엠리빙 | D48: 135000 | E48: 136 | F48: 182 | H48: https://cr.shopping.naver.com/adcr.nhn?x=16O5J%2BafJjBPIf3FhUCJ0%2F%2F%2F%2Fw%3D%3DsYY15gba9BNDWZjxamfZKSEUF%2F%2F8I8dQznNXe9wfpDctJtAyFw1aYn46AJKNp9asDjOYqy6oE%2BAMlx%2FQukw2owyj1JNIO7PPoctmfdu3n0lSiO9cZ9iLBq8rClqnxrHHyb6qQFTvGZCOG08lHer4ShicX2AUq8VPh3PK%2Fo8l8aTkQ30gwb0ZAWnfX3Zzr1ayR7ZRqz%2BpeGY0IX8kcPsA%2F05wLtDDIzFG%2B3NT%2BIynbT4KDivgLUT8vYh1TsqkpNDO5gGwmPNX%2Fe%2BXkuZ30duRQYj%2FN1gL%2FBgCKENDMCz1nm%2F3PU%2FUw528XHiMQ%2BDfJcmFroAwLxgF1SQkKjohCeO3vH6p2UIUlyIA5IF5YG%2FASKaHCZH3gFUQ06isgVWmgYxgMFCJLeTNMiIpdd72TMnUFR2yR3oAuCd4wwxFfqQXo9TwovkugsFozMR4pM62LI4mTMUNCw9fzoGn7Td80f6BbJM3uX1vBrXTfgJ8JPeerek7hWF2X4Or2ZPm8EeyHG7p3OEBNkZmvShx8nX5hzfjpqr1QSJnQDl%2BUbP%2Ba42dibQktxcP2m%2BWigrJoNAKF%2Bk8IFzcnvZN2pG12XEuR%2F3JR3nHPMbn74YIsiJ2M5p%2FTKeZW4LUmfkhm1ebgZW2I%2BK%2FU8hUemt4GsIrtAqRtCPV0EccgIRCk8vtGb7Z%2FKGMSEdE%3D&nvMid=81571504896&catId=50001332 | I48: https://m.smartstore.naver.com/main/products/4026984296 | J48: =IF(G48=0,H48,IF(AND(G48=0,H48=0),I48,G48)) -> https://cr.shopping.naver.com/adcr.nhn?x=16O5J%2BafJjBPIf3FhUCJ0%2F%2F%2F%2Fw%3D%3DsYY15gba9BNDWZjxamfZKSEUF%2F%2F8I8dQznNXe9wfpDctJtAyFw1aYn46AJKNp9asDjOYqy6oE%2BAMlx%2FQukw2owyj1JNIO7PPoctmfdu3n0lSiO9cZ9iLBq8rClqnxrHHyb6qQFTvGZCOG08lHer4ShicX2AUq8VPh3PK%2Fo8l8aTkQ30gwb0ZAWnfX3Zzr1ayR7ZRqz%2BpeGY0IX8kcPsA%2F05wLtDDIzFG%2B3NT%2BIynbT4KDivgLUT8vYh1TsqkpNDO5gGwmPNX%2Fe%2BXkuZ30duRQYj%2FN1gL%2FBgCKENDMCz1nm%2F3PU%2FUw528XHiMQ%2BDfJcmFroAwLxgF1SQkKjohCeO3vH6p2UIUlyIA5IF5YG%2FASKaHCZH3gFUQ06isgVWmgYxgMFCJLeTNMiIpdd72TMnUFR2yR3oAuCd4wwxFfqQXo9TwovkugsFozMR4pM62LI4mTMUNCw9fzoGn7Td80f6BbJM3uX1vBrXTfgJ8JPeerek7hWF2X4Or2ZPm8EeyHG7p3OEBNkZmvShx8nX5hzfjpqr1QSJnQDl%2BUbP%2Ba42dibQktxcP2m%2BWigrJoNAKF%2Bk8IFzcnvZN2pG12XEuR%2F3JR3nHPMbn74YIsiJ2M5p%2FTKeZW4LUmfkhm1ebgZW2I%2BK%2FU8hUemt4GsIrtAqRtCPV0EccgIRCk8vtGb7Z%2FKGMSEdE%3D&nvMid=81571504896&catId=50001332 | L48: =+_xlfn.RANK.AVG(Summary!I49,Summary!$I$13:$I$91,1) -> 8 | M48: =+_xlfn.RANK.AVG(Summary!J49,Summary!$J$13:$J$91,0) -> 11 | N48: =+_xlfn.RANK.AVG(Summary!K49,Summary!$K$13:$K$91,0) -> 18 | O48: 12.33333333 | P48: 8
A49: 20 | B49: 일룸 팅클팝 피넛형 그로잉책상 1200폭 | D49: 169000 | E49: 0 | F49: 3854 | H49: https://cr.shopping.naver.com/adcr.nhn?x=aKdfWtbCjamUQ%2BXK8C8ER%2F%2F%2F%2Fw%3D%3Dsm2R%2FA4LZwzPg8RQbCiIqArfP1C0mi5GDpOtLPeilW%2B7D8KTAmf4KWGP7K8A663CAOY5rgxGOuapP2UXhYCmkAmSMUT%2Byu%2Bb6980Mebrq2l2L8yT9vZuDvo2djJMqXDsCb7MfLQKIdjCgfcUPwbcJp0ls1M9xucXxkPPt7QTmSRFr6kdrp7BvT8OlwZ7P37Yy%2FdEDEPZJxtqmUeIpHFTqYRbEQEqzgDLwbF3VZinapFjYlO%2Fk4kxCoWN1gk8LWSU%2BRbfNFVivhP8U%2BTROBimK%2BwWrj3yhjv32odB%2BAe4KRcC4culXwc2z5U0bwq8AvoHHA5ijqTU6jnRNRTh%2BkUVsAgez%2FY8eSma9aMvarLWce5sxxW%2BLDcNVaB%2FSVceQuOlNQm2QdRCuez7DdNRakVnnf2Qim0uSGV45GygZvcFQrpBhsewnbBDpksgAZQj0UQeyLOpj%2FF8CCWmvyVxFSeJnTkqxorqzO%2BBGjlflcLUedbJfcIeAdBmnG%2BnmBn3CaGECT0L%2FlNlqz3qUr7EtmAfZMFRcl3Dj2qdbAoJNdkBKBZotyoSE6KxzK06m1%2BHQP34CG%2FjF4Vh%2Fw07hxU549tGoIZSU9PpDXq%2FsJekB3QSltxF7N0%2BKs0gSFTdhwMrBXaDkogOhXr3An%2FSiZcLAIAmRVcNjPdXHntf4Q9XL25ZnSwMOEsHC78VBLnFZh%2FnDobeN&nvMid=12540776489&catId=50001332 | J49: =IF(G49=0,H49,IF(AND(G49=0,H49=0),I49,G49)) -> https://cr.shopping.naver.com/adcr.nhn?x=aKdfWtbCjamUQ%2BXK8C8ER%2F%2F%2F%2Fw%3D%3Dsm2R%2FA4LZwzPg8RQbCiIqArfP1C0mi5GDpOtLPeilW%2B7D8KTAmf4KWGP7K8A663CAOY5rgxGOuapP2UXhYCmkAmSMUT%2Byu%2Bb6980Mebrq2l2L8yT9vZuDvo2djJMqXDsCb7MfLQKIdjCgfcUPwbcJp0ls1M9xucXxkPPt7QTmSRFr6kdrp7BvT8OlwZ7P37Yy%2FdEDEPZJxtqmUeIpHFTqYRbEQEqzgDLwbF3VZinapFjYlO%2Fk4kxCoWN1gk8LWSU%2BRbfNFVivhP8U%2BTROBimK%2BwWrj3yhjv32odB%2BAe4KRcC4culXwc2z5U0bwq8AvoHHA5ijqTU6jnRNRTh%2BkUVsAgez%2FY8eSma9aMvarLWce5sxxW%2BLDcNVaB%2FSVceQuOlNQm2QdRCuez7DdNRakVnnf2Qim0uSGV45GygZvcFQrpBhsewnbBDpksgAZQj0UQeyLOpj%2FF8CCWmvyVxFSeJnTkqxorqzO%2BBGjlflcLUedbJfcIeAdBmnG%2BnmBn3CaGECT0L%2FlNlqz3qUr7EtmAfZMFRcl3Dj2qdbAoJNdkBKBZotyoSE6KxzK06m1%2BHQP34CG%2FjF4Vh%2Fw07hxU549tGoIZSU9PpDXq%2FsJekB3QSltxF7N0%2BKs0gSFTdhwMrBXaDkogOhXr3An%2FSiZcLAIAmRVcNjPdXHntf4Q9XL25ZnSwMOEsHC78VBLnFZh%2FnDobeN&nvMid=12540776489&catId=50001332 | L49: =+_xlfn.RANK.AVG(Summary!I51,Summary!$I$13:$I$91,1) -> 12 | M49: =+_xlfn.RANK.AVG(Summary!J51,Summary!$J$13:$J$91,0) -> 29.5 | N49: =+_xlfn.RANK.AVG(Summary!K51,Summary!$K$13:$K$91,0) -> 3 | O49: 14.83333333 | P49: 12
A50: 21 | B50: 일룸 링키플러스 1200폭 측판형 책상 | D50: 265000 | E50: 0 | F50: 171 | H50: https://cr.shopping.naver.com/adcr.nhn?x=GXq4rgaHjG55275pKc5aHP%2F%2F%2Fw%3D%3DsU7NrAGmzyiFsrbaLr9hb%2BPLaFquPTKr%2Bgl4bX1f7qBVJtAyFw1aYn46AJKNp9asDfH9Da7MRwNIXVlpg9wKU0asd91nVJdaUcWP8zLK0g26iO9cZ9iLBq8rClqnxrHHyb6qQFTvGZCOG08lHer4ShtyGaSr%2B0dRu37W7MMIB4NFk9Io6iZoAfEBQfsbkhBMBXT3%2F9Yj9PXJOTRmNmCvpdg2ahDbDoYYUmdt6G4fDib3%2BGZlqeppNdVK2bKs2glgCN1CzfoTmgVhJuqiNatZgI5oC7oFHpSLbDFBBIk9qUb4gVc9gll0tM8AA6hcp67HBhmeWtJmvw8M90EK%2Bzy5a1yVdN3LpKf%2FbKuiZi7z1XJRprU6kuKX993Dq76qrqcgFI23of79A0gJf9PL%2BjlCbtFd%2BqILAG09hjAR1K3qLYkDSI5kL%2FlP4YARRldIQbLUdBtIJFKeW%2Fi8YACQWVzsv4LDzn3c5H6virFSgnW5KKdo8DBn8rKKNx6ZKnWPsUWhTkYz%2BXgCbdn9qBoRUclpUgZW2Xgcw4pgcdqcJqx7ryR60%2FTftdhXxzbsbwt%2ByMl5bSqk9qUVkUpLCoAjUw%2BrBLU%2FAJcUmJF2ix%2Feizcr9afX0eVd%2FlfZEl7UdbRgrp46jYxDFniO56mZJDcTXqbd5%2BG9TZjqEQTAbFzUBl8432wvhVEAf6wwM5tqtSh0bB5Hx&nvMid=16359706412&catId=50001332 | J50: =IF(G50=0,H50,IF(AND(G50=0,H50=0),I50,G50)) -> https://cr.shopping.naver.com/adcr.nhn?x=GXq4rgaHjG55275pKc5aHP%2F%2F%2Fw%3D%3DsU7NrAGmzyiFsrbaLr9hb%2BPLaFquPTKr%2Bgl4bX1f7qBVJtAyFw1aYn46AJKNp9asDfH9Da7MRwNIXVlpg9wKU0asd91nVJdaUcWP8zLK0g26iO9cZ9iLBq8rClqnxrHHyb6qQFTvGZCOG08lHer4ShtyGaSr%2B0dRu37W7MMIB4NFk9Io6iZoAfEBQfsbkhBMBXT3%2F9Yj9PXJOTRmNmCvpdg2ahDbDoYYUmdt6G4fDib3%2BGZlqeppNdVK2bKs2glgCN1CzfoTmgVhJuqiNatZgI5oC7oFHpSLbDFBBIk9qUb4gVc9gll0tM8AA6hcp67HBhmeWtJmvw8M90EK%2Bzy5a1yVdN3LpKf%2FbKuiZi7z1XJRprU6kuKX993Dq76qrqcgFI23of79A0gJf9PL%2BjlCbtFd%2BqILAG09hjAR1K3qLYkDSI5kL%2FlP4YARRldIQbLUdBtIJFKeW%2Fi8YACQWVzsv4LDzn3c5H6virFSgnW5KKdo8DBn8rKKNx6ZKnWPsUWhTkYz%2BXgCbdn9qBoRUclpUgZW2Xgcw4pgcdqcJqx7ryR60%2FTftdhXxzbsbwt%2ByMl5bSqk9qUVkUpLCoAjUw%2BrBLU%2FAJcUmJF2ix%2Feizcr9afX0eVd%2FlfZEl7UdbRgrp46jYxDFniO56mZJDcTXqbd5%2BG9TZjqEQTAbFzUBl8432wvhVEAf6wwM5tqtSh0bB5Hx&nvMid=16359706412&catId=50001332 | L50: =+_xlfn.RANK.AVG(Summary!I53,Summary!$I$13:$I$91,1) -> 18 | M50: =+_xlfn.RANK.AVG(Summary!J53,Summary!$J$13:$J$91,0) -> 29.5 | N50: =+_xlfn.RANK.AVG(Summary!K53,Summary!$K$13:$K$91,0) -> 20 | O50: 22.5 | P50: 24.5
A51: 22 | B51: 일룸 팅클팝 피넛형 좌식책상 800폭 | D51: 99000 | E51: 0 | F51: 2554 | H51: https://cr.shopping.naver.com/adcr.nhn?x=aqmy9Mpx3aVS0V9Ax%2BI4mv%2F%2F%2Fw%3D%3DsM33rKiiraH4RlzsY3sdiVLpiN3hmK0xI%2FGCyfUgpiHr%2BV2Z1R9fh6msUn3l%2FMjx5HpQ2HFT9GnLeb8Wcx2MYf7YLOe%2FRhnt%2FI71Jiv6iKjc9Jl2wDM%2FAWKfycVx%2FkE3IfBqS3mXuWwE3MZp%2BCjkIC0gAn8lD2%2BxrgblrBqYwPdWug%2B9sjA7rHdeMLkY%2BwIMUrOs8Sb%2FNoOfo7JsYXyip%2BPV2raiCF7aFk4I1%2BRMpbA46%2FEXhZgbhtRjphLcAni%2FciitGqoWNKiHOCPjKnfgRA8uxJYlMD%2BCjtqS%2FXLNFGbVthMLLkE5u%2BEmsBzTOOCHE334rL%2BbR36BhYe0R%2FrUmjgBSTS1sRv49oBHxm%2Bxq6HgpN38QG8x%2FKX9%2BqYDZEATXvq2I49a5YxAMb04uW71rGxZ6uFodlyZ9bfk20%2BE%2B0r03OkDkfo0laYpJ8gu708uU3BFDJPmINGVd22UpeKU8siEwzGsWR%2FaLP6Ny91NnBKprcTSKiM8hDFFrjH0ODLDb48Iuo979LmyMJhoqK1iQJETtzbOQFHfO12kGrfSznmgyak2E0q8aud%2FUT%2FOTarnVaJ8aZ5hOp6WFe0bI20AtXRGk4XMJtozo5T3u6g%2BJ%2BOsWT8seMtHFbmmsUTbjVNS%2FMSxsVModCNdDPZOMpw6kVccgIRCk8vtGb7Z%2FKGMSEdE%3D&nvMid=20335766140&catId=50001332 | J51: =IF(G51=0,H51,IF(AND(G51=0,H51=0),I51,G51)) -> https://cr.shopping.naver.com/adcr.nhn?x=aqmy9Mpx3aVS0V9Ax%2BI4mv%2F%2F%2Fw%3D%3DsM33rKiiraH4RlzsY3sdiVLpiN3hmK0xI%2FGCyfUgpiHr%2BV2Z1R9fh6msUn3l%2FMjx5HpQ2HFT9GnLeb8Wcx2MYf7YLOe%2FRhnt%2FI71Jiv6iKjc9Jl2wDM%2FAWKfycVx%2FkE3IfBqS3mXuWwE3MZp%2BCjkIC0gAn8lD2%2BxrgblrBqYwPdWug%2B9sjA7rHdeMLkY%2BwIMUrOs8Sb%2FNoOfo7JsYXyip%2BPV2raiCF7aFk4I1%2BRMpbA46%2FEXhZgbhtRjphLcAni%2FciitGqoWNKiHOCPjKnfgRA8uxJYlMD%2BCjtqS%2FXLNFGbVthMLLkE5u%2BEmsBzTOOCHE334rL%2BbR36BhYe0R%2FrUmjgBSTS1sRv49oBHxm%2Bxq6HgpN38QG8x%2FKX9%2BqYDZEATXvq2I49a5YxAMb04uW71rGxZ6uFodlyZ9bfk20%2BE%2B0r03OkDkfo0laYpJ8gu708uU3BFDJPmINGVd22UpeKU8siEwzGsWR%2FaLP6Ny91NnBKprcTSKiM8hDFFrjH0ODLDb48Iuo979LmyMJhoqK1iQJETtzbOQFHfO12kGrfSznmgyak2E0q8aud%2FUT%2FOTarnVaJ8aZ5hOp6WFe0bI20AtXRGk4XMJtozo5T3u6g%2BJ%2BOsWT8seMtHFbmmsUTbjVNS%2FMSxsVModCNdDPZOMpw6kVccgIRCk8vtGb7Z%2FKGMSEdE%3D&nvMid=20335766140&catId=50001332 | L51: =+_xlfn.RANK.AVG(Summary!I55,Summary!$I$13:$I$91,1) -> 7 | M51: =+_xlfn.RANK.AVG(Summary!J55,Summary!$J$13:$J$91,0) -> 29.5 | N51: =+_xlfn.RANK.AVG(Summary!K55,Summary!$K$13:$K$91,0) -> 4 | O51: 13.5 | P51: 9
A52: 23 | B52: 일룸 링키플러스 스마트데스크 각도조절 책상 | D52: 389000 | E52: 0 | F52: 1444 | H52: https://cr.shopping.naver.com/adcr.nhn?x=UB75QYvO2nxeMpxFfP08Tv%2F%2F%2Fw%3D%3DseIhAth5%2BSjpbxPx39dEnjdxEZUg41g2QafQegi6zCKTD8KTAmf4KWGP7K8A663CAvo%2BbjQe1Zeskm0zTC7HJWMvJWi6xtA038ld7OdTJhSuL8yT9vZuDvo2djJMqXDsCb7MfLQKIdjCgfcUPwbcJp0ls1M9xucXxkPPt7QTmSRFr6kdrp7BvT8OlwZ7P37YyG3tMoPkIUj7VbonWzxR2wVIMuWF0dA3IKcL3GoD5yofYlO%2Fk4kxCoWN1gk8LWSU%2BRbfNFVivhP8U%2BTROBimK%2BwWrj3yhjv32odB%2BAe4KRcC4culXwc2z5U0bwq8AvoHHA5ijqTU6jnRNRTh%2BkUVsAgez%2FY8eSma9aMvarLWce5t3C1uwxRA7WjuJUp52qrfBWIzbNSZH7x6%2Fns429Jc7o2Qim0uSGV45GygZvcFQrpCvUfaPU7Gf1h%2B9AYR6savQjXnFNqmIfBayRvkjWXGu8UqxorqzO%2BBGjlflcLUedbLyBRns8I6Elawcm%2B2x%2Ff20IsAGBbmc1D3ezjzgRhIo%2Bq8tI1ok9jDg%2BRxCtAMW5ogP7MbF%2FW%2BZ4ZLnM9xaFE%2BUscGCjcrKfNKybCDz5roPoLQQStLHr3O%2FEsRR8sXemNTvW2q1ZBpuV%2F%2FvtKUgTGHnkn7xgeG48dKQxjP9IcKVkhIbfP0Tl96K4E4qYXMlvQTzp644WWpjEZbfG2bPvrGxDVCYCaeglF2rgr1u2OQIzQ%3D%3D&nvMid=12360654835&catId=50001332 | J52: =IF(G52=0,H52,IF(AND(G52=0,H52=0),I52,G52)) -> https://cr.shopping.naver.com/adcr.nhn?x=UB75QYvO2nxeMpxFfP08Tv%2F%2F%2Fw%3D%3DseIhAth5%2BSjpbxPx39dEnjdxEZUg41g2QafQegi6zCKTD8KTAmf4KWGP7K8A663CAvo%2BbjQe1Zeskm0zTC7HJWMvJWi6xtA038ld7OdTJhSuL8yT9vZuDvo2djJMqXDsCb7MfLQKIdjCgfcUPwbcJp0ls1M9xucXxkPPt7QTmSRFr6kdrp7BvT8OlwZ7P37YyG3tMoPkIUj7VbonWzxR2wVIMuWF0dA3IKcL3GoD5yofYlO%2Fk4kxCoWN1gk8LWSU%2BRbfNFVivhP8U%2BTROBimK%2BwWrj3yhjv32odB%2BAe4KRcC4culXwc2z5U0bwq8AvoHHA5ijqTU6jnRNRTh%2BkUVsAgez%2FY8eSma9aMvarLWce5t3C1uwxRA7WjuJUp52qrfBWIzbNSZH7x6%2Fns429Jc7o2Qim0uSGV45GygZvcFQrpCvUfaPU7Gf1h%2B9AYR6savQjXnFNqmIfBayRvkjWXGu8UqxorqzO%2BBGjlflcLUedbLyBRns8I6Elawcm%2B2x%2Ff20IsAGBbmc1D3ezjzgRhIo%2Bq8tI1ok9jDg%2BRxCtAMW5ogP7MbF%2FW%2BZ4ZLnM9xaFE%2BUscGCjcrKfNKybCDz5roPoLQQStLHr3O%2FEsRR8sXemNTvW2q1ZBpuV%2F%2FvtKUgTGHnkn7xgeG48dKQxjP9IcKVkhIbfP0Tl96K4E4qYXMlvQTzp644WWpjEZbfG2bPvrGxDVCYCaeglF2rgr1u2OQIzQ%3D%3D&nvMid=12360654835&catId=50001332 | L52: =+_xlfn.RANK.AVG(Summary!I57,Summary!$I$13:$I$91,1) -> 30 | M52: =+_xlfn.RANK.AVG(Summary!J57,Summary!$J$13:$J$91,0) -> 29.5 | N52: =+_xlfn.RANK.AVG(Summary!K57,Summary!$K$13:$K$91,0) -> 8 | O52: 22.5 | P52: 24.5
A53: 24 | B53: 루나랩 키즈 어린이 초등학생 바른자세 책상 | C53: 루나랩 키즈 | D53: 269000 | E53: 2862 | F53: 2121 | G53: https://adcr.naver.com/adcr?x=bFMYtF0xsoxSIXW40iCAd////w==kJJIg3dNGKeb3d33qhwpL0q6XsPCYPNwgTobyfDUrEPa3PLe08vHz8ot+H0opQMlBK3AdYNwIjPDo2QrOMqhpmYOe5tO14Wncvr7WbxHr4ddMcP+2gonc70z/hsKJPyun6coV30v8dX68S5iwS+g01atVTjULT88bCkXm8qOlU8c6WnjoWmq7RWxpdoAoSfmuUOara82pwipJM7JJTJ5vk3MXexdQl9WLfoVGUWquX3oqVqoIvtbEz8k+CXyTr6UT6D1csoWytAKQ2MnMNunewDdXfUHmO3PgoejpLQZYeIoWZmpTULRBHaZUwJ+Neo0N9EXDLUueOYtcqLPcw/ef4LFGrP+cY8AIX2fJmpRMA9I3D6y5dNkEpbW/Gk8v6uOwmPjeNDJvcMMGOzTvozmATnzpHBQe3aYZSqGOBmSPeqdb5YyGVNeVO8nz5hZ1z5B+J2dmEqiuR5OtXO9lPc043cI744upKfJvbNQmKFyEu1J8ZelYF8AWAN1GiTi8PgoZw3InwvzWohkQWVCLLvxKQ4umqfgWKk4YvAUlCA3FedC3vtN9xwTX0gfenLwPLVBlFqRVZ7/UQ9p9sL88wNCmNlPF6Di/hyGgudMboWCGM61gauXm4UBQ4tk0dFJ59uJ1pZBopSZY6l4eIfhL+tE49fD0j1FUW6vYjjiJG1+TjLteJc5ojpD3295OMlbR69X2deTny/91QvdB4ubbJ5X2AJ6jM29wfbN3RQWPPUppPSklDB6RI+l1DDq6axoRIHcmOHeM4Wnaw2EQ5vrGTBrcABljwM7YqUrtOv5qAsCwCqfmTlud/4pqKwoBvyWdopQq96lwMCnujqkpQ6vLbO6IZvfXcdiYM2PY4P3xylE2bL6j9d9JAGZrzYh0V85/kXt2fAx2SBOOHULOOE1vF1D4aQ== | J53: =IF(G53=0,H53,IF(AND(G53=0,H53=0),I53,G53)) -> https://adcr.naver.com/adcr?x=bFMYtF0xsoxSIXW40iCAd////w==kJJIg3dNGKeb3d33qhwpL0q6XsPCYPNwgTobyfDUrEPa3PLe08vHz8ot+H0opQMlBK3AdYNwIjPDo2QrOMqhpmYOe5tO14Wncvr7WbxHr4ddMcP+2gonc70z/hsKJPyun6coV30v8dX68S5iwS+g01atVTjULT88bCkXm8qOlU8c6WnjoWmq7RWxpdoAoSfmuUOara82pwipJM7JJTJ5vk3MXexdQl9WLfoVGUWquX3oqVqoIvtbEz8k+CXyTr6UT6D1csoWytAKQ2MnMNunewDdXfUHmO3PgoejpLQZYeIoWZmpTULRBHaZUwJ+Neo0N9EXDLUueOYtcqLPcw/ef4LFGrP+cY8AIX2fJmpRMA9I3D6y5dNkEpbW/Gk8v6uOwmPjeNDJvcMMGOzTvozmATnzpHBQe3aYZSqGOBmSPeqdb5YyGVNeVO8nz5hZ1z5B+J2dmEqiuR5OtXO9lPc043cI744upKfJvbNQmKFyEu1J8ZelYF8AWAN1GiTi8PgoZw3InwvzWohkQWVCLLvxKQ4umqfgWKk4YvAUlCA3FedC3vtN9xwTX0gfenLwPLVBlFqRVZ7/UQ9p9sL88wNCmNlPF6Di/hyGgudMboWCGM61gauXm4UBQ4tk0dFJ59uJ1pZBopSZY6l4eIfhL+tE49fD0j1FUW6vYjjiJG1+TjLteJc5ojpD3295OMlbR69X2deTny/91QvdB4ubbJ5X2AJ6jM29wfbN3RQWPPUppPSklDB6RI+l1DDq6axoRIHcmOHeM4Wnaw2EQ5vrGTBrcABljwM7YqUrtOv5qAsCwCqfmTlud/4pqKwoBvyWdopQq96lwMCnujqkpQ6vLbO6IZvfXcdiYM2PY4P3xylE2bL6j9d9JAGZrzYh0V85/kXt2fAx2SBOOHULOOE1vF1D4aQ== | L53: =+_xlfn.RANK.AVG(Summary!I59,Summary!$I$13:$I$91,1) -> 21 | M53: =+_xlfn.RANK.AVG(Summary!J59,Summary!$J$13:$J$91,0) -> 3.5 | N53: =+_xlfn.RANK.AVG(Summary!K59,Summary!$K$13:$K$91,0) -> 6 | O53: 10.16666667 | P53: 7
A54: 25 | B54: 니스툴그로우 높이각도조절 초등학생책상 책장세트 | C54: 더월 | D54: 1148000 | E54: 0 | F54: 69 | G54: https://adcr.naver.com/adcr?x=EWLuG3Kl9PZ5R8p2Ym6b7P///w==k/DgiLSzXfBFnNSISc9WBcNNHFIg4JCoaVHatAGm7T2o1eWbGzL+elghZbP11uxVI7OHFm1iU3MEklxZrrtVFVv4TJA2iRsDoeMbKYIcwL2WQeFg02d5PijVjFECXMd8ET2oaSlycLhMYe+EWMaSkE3pidzwfHEigFOKA2k/dyJm4NLeWUvv5zNrT2EqRzAxBm6HbgfO2DpdNyDZ2MopvQHyOuG3HJr65/fQzKwTYxrPcchFmfMIVOlPGWtTS0aR0QBzEuSTc8/02dRNylIXLLjiSVRISIToNvzih06f4N+XfUHK8GGRgn2yuerD1C7g9Kh6BlhX4S4TH6XTRx1kG698C+8VtRzHr5whAXkoIQFkUxBT9dU+f7Y1qugBO6Y9l6Jh3tBmm307YUwQB01yUZM/fTiFkDcWjC5DLxE4nJ7AKH4z+3j4iINRWhakyZJxw/a1kShjql3762TXsIktHg78lfnHvmhO+pSSnb0PaBb5OukHnDWYu+6327HMwxRFqZrKmCzDI36rF8zwCvCpCmolsAU7IEAxFV2nxl+dHqtHbI2H7D9YhqGl5iu8J9UcBARvSZvgJRLIbHhmzAOMLiOR8uKeBmJ8RJX6j6Q8g0W/YvuXN31/C2k7A3Ri8r9n7QX2Ma2mNbzIo07lv7Qpif0mspfaY5FdivchaTLtxnb45K2SVtkEOXmLJhA8W4CbGIEIUAlYeRnAZnchVZrfHvNVlrv/kiqpzhbEHHdn/MGcgrolb5TDCGzQZryE1v+oXwzNT9QAJx+Awd5eW2Kz722hT7Ww6tmnfdVbWy1wbGcFYtVjeZ92p50tJ4sS2rx6clBkuXtDyDOnHS57Ab8eVxw== | J54: =IF(G54=0,H54,IF(AND(G54=0,H54=0),I54,G54)) -> https://adcr.naver.com/adcr?x=EWLuG3Kl9PZ5R8p2Ym6b7P///w==k/DgiLSzXfBFnNSISc9WBcNNHFIg4JCoaVHatAGm7T2o1eWbGzL+elghZbP11uxVI7OHFm1iU3MEklxZrrtVFVv4TJA2iRsDoeMbKYIcwL2WQeFg02d5PijVjFECXMd8ET2oaSlycLhMYe+EWMaSkE3pidzwfHEigFOKA2k/dyJm4NLeWUvv5zNrT2EqRzAxBm6HbgfO2DpdNyDZ2MopvQHyOuG3HJr65/fQzKwTYxrPcchFmfMIVOlPGWtTS0aR0QBzEuSTc8/02dRNylIXLLjiSVRISIToNvzih06f4N+XfUHK8GGRgn2yuerD1C7g9Kh6BlhX4S4TH6XTRx1kG698C+8VtRzHr5whAXkoIQFkUxBT9dU+f7Y1qugBO6Y9l6Jh3tBmm307YUwQB01yUZM/fTiFkDcWjC5DLxE4nJ7AKH4z+3j4iINRWhakyZJxw/a1kShjql3762TXsIktHg78lfnHvmhO+pSSnb0PaBb5OukHnDWYu+6327HMwxRFqZrKmCzDI36rF8zwCvCpCmolsAU7IEAxFV2nxl+dHqtHbI2H7D9YhqGl5iu8J9UcBARvSZvgJRLIbHhmzAOMLiOR8uKeBmJ8RJX6j6Q8g0W/YvuXN31/C2k7A3Ri8r9n7QX2Ma2mNbzIo07lv7Qpif0mspfaY5FdivchaTLtxnb45K2SVtkEOXmLJhA8W4CbGIEIUAlYeRnAZnchVZrfHvNVlrv/kiqpzhbEHHdn/MGcgrolb5TDCGzQZryE1v+oXwzNT9QAJx+Awd5eW2Kz722hT7Ww6tmnfdVbWy1wbGcFYtVjeZ92p50tJ4sS2rx6clBkuXtDyDOnHS57Ab8eVxw== | L54: =+_xlfn.RANK.AVG(Summary!I61,Summary!$I$13:$I$91,1) -> 39 | M54: =+_xlfn.RANK.AVG(Summary!J61,Summary!$J$13:$J$91,0) -> 29.5 | N54: =+_xlfn.RANK.AVG(Summary!K61,Summary!$K$13:$K$91,0) -> 29 | O54: 32.5 | P54: 38
A55: 26 | B55: 이안비즈 높이 각도 조절 브레이니 어린이책상 | C55: 이안비즈 | D55: 138000 | E55: 61 | F55: 172 | G55: https://adcr.naver.com/adcr?x=wVANLGL37RxsJDyJUXxYmP///w==kif+hFqo6XcicbtOsZLmLVXYfQukRWCArw2AlDA+Ku1/YWRNd3J20H9mjKlqd8KLFvgb8lvEgyPmYNAIcAxSLq28l7Wa/TABJD+J31Br/1jRjNRPwGxVNJNrLIeqKYTWEhufggbgJaPQ9FR+OVHpVLYxGk1VYNqPzBOA661kmivG6vRtSUGAHfztsOy97m4H+ztalsZ6Ns3F3rjZ6CW1hp1P31scj6hWT9wUwZtVj95TET25KtIXs35soS6oQcEEQ0FYIDetTFi96ZXcb4XaIjg5oPcdGsyNYYSHxis9w2XbYwLGtDJ6OT3ZQAooxP/KFpE8qXb0OWTTsV+8ziakqn0g3+U+EgCjwYbZDLf5gNoLjNC3CZ/nRaxutWcYTxahF6PrhrpP8vL22L/GiT9WIo1GAl3jLWqWhu+O6ELseWeP4WGjg+sjcRgOS4i/aekD2ZsvjmMj4BCOgAAQY8ArwoEnHjcs8iqXfuJMANJTvUICDqu1+xQ6dtSfQVPtK8vfsEFNtK0Tszv8z2+fpjrXrdd2HWjc5x7DM5Tny/gdIANkheQ41UDL5khPZqjY/Ctovx7zhJ1ZvU6qbHDGurb2mNBokvIcsZlagxPLov7BHQZoATFjBp/V5kSLQRNGAe8PQ0rAfF/VdrL9Fql5/WFl/aNI6gEOtQFweiJTsfljDgvxISzwWYt1H282yf2fk8K0x+ZsdDWVcZzC/802o9PNMSn5pm1KvM4HXuxMBNvixJZfwQA2u2Dm/BUucpJ7N0zKviPBlv2PG5QFzO9E4FauvwLE0BKfSJx85Zbs6QUyTqs7lbAt7lqGn1yPC5bioqw7b | J55: =IF(G55=0,H55,IF(AND(G55=0,H55=0),I55,G55)) -> https://adcr.naver.com/adcr?x=wVANLGL37RxsJDyJUXxYmP///w==kif+hFqo6XcicbtOsZLmLVXYfQukRWCArw2AlDA+Ku1/YWRNd3J20H9mjKlqd8KLFvgb8lvEgyPmYNAIcAxSLq28l7Wa/TABJD+J31Br/1jRjNRPwGxVNJNrLIeqKYTWEhufggbgJaPQ9FR+OVHpVLYxGk1VYNqPzBOA661kmivG6vRtSUGAHfztsOy97m4H+ztalsZ6Ns3F3rjZ6CW1hp1P31scj6hWT9wUwZtVj95TET25KtIXs35soS6oQcEEQ0FYIDetTFi96ZXcb4XaIjg5oPcdGsyNYYSHxis9w2XbYwLGtDJ6OT3ZQAooxP/KFpE8qXb0OWTTsV+8ziakqn0g3+U+EgCjwYbZDLf5gNoLjNC3CZ/nRaxutWcYTxahF6PrhrpP8vL22L/GiT9WIo1GAl3jLWqWhu+O6ELseWeP4WGjg+sjcRgOS4i/aekD2ZsvjmMj4BCOgAAQY8ArwoEnHjcs8iqXfuJMANJTvUICDqu1+xQ6dtSfQVPtK8vfsEFNtK0Tszv8z2+fpjrXrdd2HWjc5x7DM5Tny/gdIANkheQ41UDL5khPZqjY/Ctovx7zhJ1ZvU6qbHDGurb2mNBokvIcsZlagxPLov7BHQZoATFjBp/V5kSLQRNGAe8PQ0rAfF/VdrL9Fql5/WFl/aNI6gEOtQFweiJTsfljDgvxISzwWYt1H282yf2fk8K0x+ZsdDWVcZzC/802o9PNMSn5pm1KvM4HXuxMBNvixJZfwQA2u2Dm/BUucpJ7N0zKviPBlv2PG5QFzO9E4FauvwLE0BKfSJx85Zbs6QUyTqs7lbAt7lqGn1yPC5bioqw7b | L55: =+_xlfn.RANK.AVG(Summary!I63,Summary!$I$13:$I$91,1) -> 9 | M55: =+_xlfn.RANK.AVG(Summary!J63,Summary!$J$13:$J$91,0) -> 14 | N55: =+_xlfn.RANK.AVG(Summary!K63,Summary!$K$13:$K$91,0) -> 19 | O55: 14 | P55: 10
A56: 27 | B56: 스터디업 데스크 스텐다드 핑크 높이 각도조절 어린이 아동 초등학생 책상 | C56: 엑세스엠 | D56: 249000 | E56: 52 | F56: 20 | H56: https://cr.shopping.naver.com/adcr.nhn?x=%2BvvFWkZ7SsT2rMcY%2BX6fR%2F%2F%2F%2Fw%3D%3Ds1aKQss8Lqi1mMI6ScYuVbRJt5SYju89OvIZ64EE8k39JtAyFw1aYn46AJKNp9asDyMfdcYOoKUv5jwajhiM%2FVNgH%2FaBwmNmgFx3El37pMzWiO9cZ9iLBq8rClqnxrHHyb6qQFTvGZCOG08lHer4ShicX2AUq8VPh3PK%2Fo8l8aTkQ30gwb0ZAWnfX3Zzr1ayRhn3%2B24npXeIiG%2BwrY%2Bo0wUUU3BKdaXGxOfu03m0ix%2BmDivgLUT8vYh1TsqkpNDO5gGwmPNX%2Fe%2BXkuZ30duRQYj%2FN1gL%2FBgCKENDMCz1nm%2F0pbtT4C25jsc1uGvFnrNvsU%2FlxIfG4%2FSaO4ySZ39yo5qp2UIUlyIA5IF5YG%2FASKaEHaic1HT6O7IT3wqwuivlaFCJLeTNMiIpdd72TMnUFR1yCplwTtkgfNzm8S8fVzEWHme1uYro09q9J5WFIGcL%2BFPTtcNRC9WEPhn%2BfNt02Bc54%2F7y6Uk7%2FpWbhHzaKc3hnUzoFE4j7h0t69I6A4HLjgWcD97G48JW5FBTuiqTRE%2BPzIs9w9SL07adRVW6xpOh93laikoFyOh0nljw5iJeLB%2Bmfa%2FOkdnpK8P2n%2Fz6HBGS44KJRuRKGAejJgeR78bL3ud421fJ1RbHOWrWZoGcJ%2B93xyaZZx7g32w0zGUayU1dznR4EhPC6BI08fc6TT2xWkbDrUFJ2hBG8QaB8WVzn&nvMid=82677703530&catId=50001332 | I56: https://m.smartstore.naver.com/main/products/5133182818 | J56: =IF(G56=0,H56,IF(AND(G56=0,H56=0),I56,G56)) -> https://cr.shopping.naver.com/adcr.nhn?x=%2BvvFWkZ7SsT2rMcY%2BX6fR%2F%2F%2F%2Fw%3D%3Ds1aKQss8Lqi1mMI6ScYuVbRJt5SYju89OvIZ64EE8k39JtAyFw1aYn46AJKNp9asDyMfdcYOoKUv5jwajhiM%2FVNgH%2FaBwmNmgFx3El37pMzWiO9cZ9iLBq8rClqnxrHHyb6qQFTvGZCOG08lHer4ShicX2AUq8VPh3PK%2Fo8l8aTkQ30gwb0ZAWnfX3Zzr1ayRhn3%2B24npXeIiG%2BwrY%2Bo0wUUU3BKdaXGxOfu03m0ix%2BmDivgLUT8vYh1TsqkpNDO5gGwmPNX%2Fe%2BXkuZ30duRQYj%2FN1gL%2FBgCKENDMCz1nm%2F0pbtT4C25jsc1uGvFnrNvsU%2FlxIfG4%2FSaO4ySZ39yo5qp2UIUlyIA5IF5YG%2FASKaEHaic1HT6O7IT3wqwuivlaFCJLeTNMiIpdd72TMnUFR1yCplwTtkgfNzm8S8fVzEWHme1uYro09q9J5WFIGcL%2BFPTtcNRC9WEPhn%2BfNt02Bc54%2F7y6Uk7%2FpWbhHzaKc3hnUzoFE4j7h0t69I6A4HLjgWcD97G48JW5FBTuiqTRE%2BPzIs9w9SL07adRVW6xpOh93laikoFyOh0nljw5iJeLB%2Bmfa%2FOkdnpK8P2n%2Fz6HBGS44KJRuRKGAejJgeR78bL3ud421fJ1RbHOWrWZoGcJ%2B93xyaZZx7g32w0zGUayU1dznR4EhPC6BI08fc6TT2xWkbDrUFJ2hBG8QaB8WVzn&nvMid=82677703530&catId=50001332 | L56: =+_xlfn.RANK.AVG(Summary!I65,Summary!$I$13:$I$91,1) -> 15.5 | M56: =+_xlfn.RANK.AVG(Summary!J65,Summary!$J$13:$J$91,0) -> 15 | N56: =+_xlfn.RANK.AVG(Summary!K65,Summary!$K$13:$K$91,0) -> 34 | O56: 21.5 | P56: 21.5
A57: 28 | B57: [일룸] 제롬 키즈 모션데스크 | C57: iloom일룸 | D57: 999000 | E57: 31 | F57: 5 | H57: https://cr.shopping.naver.com/adcr.nhn?x=uc6uBQnjcWk5y49gn28Gdf%2F%2F%2Fw%3D%3Ds%2FmE5EDwTOA9OL0AeDg16E0yQnWQR0XFajuPQcih241xJtAyFw1aYn46AJKNp9asDI4hZNYkPdg7gk6P26f42EtsLPgZPdEBxQoR1%2BIt7rGOiO9cZ9iLBq8rClqnxrHHyb6qQFTvGZCOG08lHer4ShicX2AUq8VPh3PK%2Fo8l8aTkQ30gwb0ZAWnfX3Zzr1ayRjzoNPiObjM71j2adFV6x2gdS8NtJWn4dCAHfYcCdS7CDivgLUT8vYh1TsqkpNDO5gGwmPNX%2Fe%2BXkuZ30duRQYj%2FN1gL%2FBgCKENDMCz1nm%2F1Y2iO3niURuDpMD0sgIYXyyuAE3Y0IRwxRtjKIv4y4HKp2UIUlyIA5IF5YG%2FASKaHXlGU5eaHFefYhi4EmfTXnFZchQwqvmVRRObyR8d3FAQYZD3NsaUykzIcCWXfe%2BWsm5M9HiSFECNHfJip98JnrI3XU8KAWM9VJgeY%2FK4%2BqLdflXrX3sfTYArlNqJZhyc89nMd8hbCfykbKUKEUszJne5v%2BFhfyeKOZuhu%2Bp9UaWDRtOvLqzXExy60ltdpHXske83H99IPw68OMpgof%2FvZ2b1NmOoRBMBsXNQGXzjfbC%2BFUQB%2FrDAzm2q1KHRsHkfE%3D&nvMid=82743982460&catId=50001332 | I57: https://m.smartstore.naver.com/main/products/5199460837 | J57: =IF(G57=0,H57,IF(AND(G57=0,H57=0),I57,G57)) -> https://cr.shopping.naver.com/adcr.nhn?x=uc6uBQnjcWk5y49gn28Gdf%2F%2F%2Fw%3D%3Ds%2FmE5EDwTOA9OL0AeDg16E0yQnWQR0XFajuPQcih241xJtAyFw1aYn46AJKNp9asDI4hZNYkPdg7gk6P26f42EtsLPgZPdEBxQoR1%2BIt7rGOiO9cZ9iLBq8rClqnxrHHyb6qQFTvGZCOG08lHer4ShicX2AUq8VPh3PK%2Fo8l8aTkQ30gwb0ZAWnfX3Zzr1ayRjzoNPiObjM71j2adFV6x2gdS8NtJWn4dCAHfYcCdS7CDivgLUT8vYh1TsqkpNDO5gGwmPNX%2Fe%2BXkuZ30duRQYj%2FN1gL%2FBgCKENDMCz1nm%2F1Y2iO3niURuDpMD0sgIYXyyuAE3Y0IRwxRtjKIv4y4HKp2UIUlyIA5IF5YG%2FASKaHXlGU5eaHFefYhi4EmfTXnFZchQwqvmVRRObyR8d3FAQYZD3NsaUykzIcCWXfe%2BWsm5M9HiSFECNHfJip98JnrI3XU8KAWM9VJgeY%2FK4%2BqLdflXrX3sfTYArlNqJZhyc89nMd8hbCfykbKUKEUszJne5v%2BFhfyeKOZuhu%2Bp9UaWDRtOvLqzXExy60ltdpHXske83H99IPw68OMpgof%2FvZ2b1NmOoRBMBsXNQGXzjfbC%2BFUQB%2FrDAzm2q1KHRsHkfE%3D&nvMid=82743982460&catId=50001332 | L57: =+_xlfn.RANK.AVG(Summary!I67,Summary!$I$13:$I$91,1) -> 38 | M57: =+_xlfn.RANK.AVG(Summary!J67,Summary!$J$13:$J$91,0) -> 16 | N57: =+_xlfn.RANK.AVG(Summary!K67,Summary!$K$13:$K$91,0) -> 37 | O57: 30.33333333 | P57: 35
A58: 29 | B58: 이케아 FLISAT 플리사트 어린이책상 3단 높이조절책상 | D58: 58500 | E58: 0 | F58: 44 | H58: https://cr.shopping.naver.com/adcr.nhn?x=kQXfdSpTuKBnyv0lsHgjAv%2F%2F%2Fw%3D%3DsQjYZhnGN7M6mUMtprzrJ8%2FyZQkjtNWf67O%2Br06%2BlyQTD8KTAmf4KWGP7K8A663CAxVwN1dByzSdvgpJHgyR7CO%2Fn5DwLlcZ6UM26YSLLZy2L8yT9vZuDvo2djJMqXDsCb7MfLQKIdjCgfcUPwbcJp0ls1M9xucXxkPPt7QTmSRFr6kdrp7BvT8OlwZ7P37YyF8xiXv%2BoxEFx3sLcVWe%2FEtkai0Z5EmMxLIw5q8SqvA%2FYlO%2Fk4kxCoWN1gk8LWSU%2BRbfNFVivhP8U%2BTROBimK%2BwWrj3yhjv32odB%2BAe4KRcC4culXwc2z5U0bwq8AvoHHA5ijqTU6jnRNRTh%2BkUVsAgez%2FY8eSma9aMvarLWce5sxxW%2BLDcNVaB%2FSVceQuOlNSWA3bP8MfFp62deyRVFst2Qim0uSGV45GygZvcFQrpAhqUGi7eNPASJqHFD%2FmHIcotu1pAq3lrfEQHHBvxHUNkqxorqzO%2BBGjlflcLUedbLccwA5NFvIAyD1AAfmhbi%2BW2BsD8Er6YAsJSRBtKytbEDDwC0dw%2FTwtMBWX%2BMQ5iXwjtkzTbr5TvmkDITlKuLYLcqEhOiscytOptfh0D9%2BAmCo3JriutBjttb%2ByRIeeA68O5AYR2cZ6dvZF6eIkJf5oAxwLFFfQ4E19tKPQYKk1v2pjn2nwCULTo8NtrxekGKH5EFxgWGd5tBalCZqvhuUHRyPBWbUFRhWScTsgQynPg%3D%3D&nvMid=17204700279&catId=50001332 | J58: =IF(G58=0,H58,IF(AND(G58=0,H58=0),I58,G58)) -> https://cr.shopping.naver.com/adcr.nhn?x=kQXfdSpTuKBnyv0lsHgjAv%2F%2F%2Fw%3D%3DsQjYZhnGN7M6mUMtprzrJ8%2FyZQkjtNWf67O%2Br06%2BlyQTD8KTAmf4KWGP7K8A663CAxVwN1dByzSdvgpJHgyR7CO%2Fn5DwLlcZ6UM26YSLLZy2L8yT9vZuDvo2djJMqXDsCb7MfLQKIdjCgfcUPwbcJp0ls1M9xucXxkPPt7QTmSRFr6kdrp7BvT8OlwZ7P37YyF8xiXv%2BoxEFx3sLcVWe%2FEtkai0Z5EmMxLIw5q8SqvA%2FYlO%2Fk4kxCoWN1gk8LWSU%2BRbfNFVivhP8U%2BTROBimK%2BwWrj3yhjv32odB%2BAe4KRcC4culXwc2z5U0bwq8AvoHHA5ijqTU6jnRNRTh%2BkUVsAgez%2FY8eSma9aMvarLWce5sxxW%2BLDcNVaB%2FSVceQuOlNSWA3bP8MfFp62deyRVFst2Qim0uSGV45GygZvcFQrpAhqUGi7eNPASJqHFD%2FmHIcotu1pAq3lrfEQHHBvxHUNkqxorqzO%2BBGjlflcLUedbLccwA5NFvIAyD1AAfmhbi%2BW2BsD8Er6YAsJSRBtKytbEDDwC0dw%2FTwtMBWX%2BMQ5iXwjtkzTbr5TvmkDITlKuLYLcqEhOiscytOptfh0D9%2BAmCo3JriutBjttb%2ByRIeeA68O5AYR2cZ6dvZF6eIkJf5oAxwLFFfQ4E19tKPQYKk1v2pjn2nwCULTo8NtrxekGKH5EFxgWGd5tBalCZqvhuUHRyPBWbUFRhWScTsgQynPg%3D%3D&nvMid=17204700279&catId=50001332 | L58: =+_xlfn.RANK.AVG(Summary!I69,Summary!$I$13:$I$91,1) -> 1 | M58: =+_xlfn.RANK.AVG(Summary!J69,Summary!$J$13:$J$91,0) -> 29.5 | N58: =+_xlfn.RANK.AVG(Summary!K69,Summary!$K$13:$K$91,0) -> 30.5 | O58: 20.33333333 | P58: 18.5
A59: 30 | B59: [위드그로우]컴포트 어린이 바른자세 초등학생 책상 지니의자 세트 | C59: 하로스토어 | D59: 338000 | E59: 70 | F59: 20 | H59: https://cr.shopping.naver.com/adcr.nhn?x=B5uJY0ogr1ExnPIFfT4Nnv%2F%2F%2Fw%3D%3DspIVq63dAhVwh6TMdVxPXm7kDBzNbBVzR78Ro3zuDAnpJtAyFw1aYn46AJKNp9asD7A6UxN1SeGwAtR9ZbdX8v4w55xHmqxgfb9ZKL5iEJTqiO9cZ9iLBq8rClqnxrHHyb6qQFTvGZCOG08lHer4ShicX2AUq8VPh3PK%2Fo8l8aTkQ30gwb0ZAWnfX3Zzr1ayRwvGVm1GCdij7COFQ3pf5I4PqHzRMnwWy1Z0GkthA%2BHyDivgLUT8vYh1TsqkpNDO5gGwmPNX%2Fe%2BXkuZ30duRQYj%2FN1gL%2FBgCKENDMCz1nm%2F0FDtm2pWKhF0PTQycWvBa9mzevvbZ8gnhjWO5Yd6RAL6p2UIUlyIA5IF5YG%2FASKaGGjhRAYvElwfe%2By%2BQz8AwLFZchQwqvmVRRObyR8d3FAUqDvPVgX5EKM%2FP9YVnOnq4ccoewceSRr4PACowjBqmaKlUPbmqdpJg9%2F68RVfej1PDCvKyHmv1ohM1FWfKtGa9rMNLdUUcetGgyC%2BCgJA4a8mktZRmtgP0JZq92Noo3eqNTCrWjZbtHf5qDpOZvX%2Bf0GuXEYYP8RWo8reFVm6G7cg1428xUWJt9B41vQjulVSW3llNvIdfPQzAkGQEQbTJ%2FQ2re0YYA5zWU%2BHnXqL%2F9IX%2FniTLk1xnPgGRSSiFkGkHQIiXcF4qwUXZ2sX76wW8%3D&nvMid=82865631201&catId=50001332 | I59: https://m.smartstore.naver.com/main/products/5321138634 | J59: =IF(G59=0,H59,IF(AND(G59=0,H59=0),I59,G59)) -> https://cr.shopping.naver.com/adcr.nhn?x=B5uJY0ogr1ExnPIFfT4Nnv%2F%2F%2Fw%3D%3DspIVq63dAhVwh6TMdVxPXm7kDBzNbBVzR78Ro3zuDAnpJtAyFw1aYn46AJKNp9asD7A6UxN1SeGwAtR9ZbdX8v4w55xHmqxgfb9ZKL5iEJTqiO9cZ9iLBq8rClqnxrHHyb6qQFTvGZCOG08lHer4ShicX2AUq8VPh3PK%2Fo8l8aTkQ30gwb0ZAWnfX3Zzr1ayRwvGVm1GCdij7COFQ3pf5I4PqHzRMnwWy1Z0GkthA%2BHyDivgLUT8vYh1TsqkpNDO5gGwmPNX%2Fe%2BXkuZ30duRQYj%2FN1gL%2FBgCKENDMCz1nm%2F0FDtm2pWKhF0PTQycWvBa9mzevvbZ8gnhjWO5Yd6RAL6p2UIUlyIA5IF5YG%2FASKaGGjhRAYvElwfe%2By%2BQz8AwLFZchQwqvmVRRObyR8d3FAUqDvPVgX5EKM%2FP9YVnOnq4ccoewceSRr4PACowjBqmaKlUPbmqdpJg9%2F68RVfej1PDCvKyHmv1ohM1FWfKtGa9rMNLdUUcetGgyC%2BCgJA4a8mktZRmtgP0JZq92Noo3eqNTCrWjZbtHf5qDpOZvX%2Bf0GuXEYYP8RWo8reFVm6G7cg1428xUWJt9B41vQjulVSW3llNvIdfPQzAkGQEQbTJ%2FQ2re0YYA5zWU%2BHnXqL%2F9IX%2FniTLk1xnPgGRSSiFkGkHQIiXcF4qwUXZ2sX76wW8%3D&nvMid=82865631201&catId=50001332 | L59: =+_xlfn.RANK.AVG(Summary!I71,Summary!$I$13:$I$91,1) -> 28 | M59: =+_xlfn.RANK.AVG(Summary!J71,Summary!$J$13:$J$91,0) -> 13 | N59: =+_xlfn.RANK.AVG(Summary!K71,Summary!$K$13:$K$91,0) -> 34 | O59: 25 | P59: 28
A60: 31 | B60: 한샘 하이 높이 각도 조절 책상세트 5단 1200 | D60: 490070 | E60: 0 | F60: 188 | H60: https://cr.shopping.naver.com/adcr.nhn?x=ZH9V%2BYKEO01%2Bf2aCPeRU5f%2F%2F%2Fw%3D%3Dsex5n7kTPqYxdPio47%2FNntEz%2FY%2BEmYWT1wP35dK5fZpcO0U7iBuW5jhI3nQa2BPSOPyFMDLQgZ1QNcuSpPM4vMOFKmBN2jNgyx1fu2c2mFUdJ%2BmDaejXokPQBEaOjG2CKSRbFZoE9rkTcApB8DXr1fci30QtKP1mA7BYZPpxeJLexWvZfe2todmJfmpbNrXnq8H0GNDkmiaLDGEf3aAX2rVx12x6FjR%2Bt3FBU03GHUKfB2Em03XMO49bLEPTDsSqpJl2PL5NanwBSvSvU4lYkp9KMO7iVYl1eD%2B6cluKu9Ibxa1S4%2B1DlHYjQhLW4IUVRy%2F6MHZ6u%2F5n6uuzlUc6JNEuUiTS4CHUtVxQrWeRhExj05joNc2Y78rPg%2FkXph24cISFv7n5uAItYPm5%2BaPBVoKp2UIUlyIA5IF5YG%2FASKaG2nL8DmX0LKulnqmFC4ZcBoCF9uZFzpP1D3UyqhUgjqvhH2kBro5sb6MALYZMACJHRgW7JKFvHWEaUxZ8Ljp9Qx5GXpnzI1zARASPAcwqV%2FMYhOeAOwVLKQr4QZhOqHelWJWO7YzRyU%2B%2BKeeZexnOO0m6dh4J9FPUoMdIAuXb1bpsPJiYiaSGVCf29F4FDRKMM1ArTknUek%2FmrLPV4ep%2F45wOLdy6vbtDvAzlSqai4MKSq3jyNl8a16nxI7qB3UccdHI8FZtQVGFZJxOyBDKc%2B&nvMid=13486581916&catId=50001332 | J60: =IF(G60=0,H60,IF(AND(G60=0,H60=0),I60,G60)) -> https://cr.shopping.naver.com/adcr.nhn?x=ZH9V%2BYKEO01%2Bf2aCPeRU5f%2F%2F%2Fw%3D%3Dsex5n7kTPqYxdPio47%2FNntEz%2FY%2BEmYWT1wP35dK5fZpcO0U7iBuW5jhI3nQa2BPSOPyFMDLQgZ1QNcuSpPM4vMOFKmBN2jNgyx1fu2c2mFUdJ%2BmDaejXokPQBEaOjG2CKSRbFZoE9rkTcApB8DXr1fci30QtKP1mA7BYZPpxeJLexWvZfe2todmJfmpbNrXnq8H0GNDkmiaLDGEf3aAX2rVx12x6FjR%2Bt3FBU03GHUKfB2Em03XMO49bLEPTDsSqpJl2PL5NanwBSvSvU4lYkp9KMO7iVYl1eD%2B6cluKu9Ibxa1S4%2B1DlHYjQhLW4IUVRy%2F6MHZ6u%2F5n6uuzlUc6JNEuUiTS4CHUtVxQrWeRhExj05joNc2Y78rPg%2FkXph24cISFv7n5uAItYPm5%2BaPBVoKp2UIUlyIA5IF5YG%2FASKaG2nL8DmX0LKulnqmFC4ZcBoCF9uZFzpP1D3UyqhUgjqvhH2kBro5sb6MALYZMACJHRgW7JKFvHWEaUxZ8Ljp9Qx5GXpnzI1zARASPAcwqV%2FMYhOeAOwVLKQr4QZhOqHelWJWO7YzRyU%2B%2BKeeZexnOO0m6dh4J9FPUoMdIAuXb1bpsPJiYiaSGVCf29F4FDRKMM1ArTknUek%2FmrLPV4ep%2F45wOLdy6vbtDvAzlSqai4MKSq3jyNl8a16nxI7qB3UccdHI8FZtQVGFZJxOyBDKc%2B&nvMid=13486581916&catId=50001332 | L60: =+_xlfn.RANK.AVG(Summary!I73,Summary!$I$13:$I$91,1) -> 31 | M60: =+_xlfn.RANK.AVG(Summary!J73,Summary!$J$13:$J$91,0) -> 29.5 | N60: =+_xlfn.RANK.AVG(Summary!K73,Summary!$K$13:$K$91,0) -> 17 | O60: 25.83333333 | P60: 31
A61: 32 | B61: 일룸 로이모노 다리형 책상 1400폭 D600 | D61: 199000 | E61: 0 | F61: 167 | H61: https://cr.shopping.naver.com/adcr.nhn?x=enzatiDgkhIVJh%2B3UrMkRP%2F%2F%2Fw%3D%3DsXgXZ7HTBw6xvIRXC6mZFZlmPpN%2BN6RSdBJYJ5F96Zpb%2BV2Z1R9fh6msUn3l%2FMjx5jwD%2Bmh%2BeXvWoHulQYZmz0TaYpsAx14Hf90UPkDplfK89Jl2wDM%2FAWKfycVx%2FkE3IfBqS3mXuWwE3MZp%2BCjkIC0gAn8lD2%2BxrgblrBqYwPdWug%2B9sjA7rHdeMLkY%2BwIMUIrNZNUsdr2lSDmkW%2FBHs%2F%2FV2raiCF7aFk4I1%2BRMpbA46%2FEXhZgbhtRjphLcAni%2FciitGqoWNKiHOCPjKnfgRA8uxJYlMD%2BCjtqS%2FXLNFGbVthMLLkE5u%2BEmsBzTOOCHE334rL%2BbR36BhYe0R%2FrUmjgBSTS1sRv49oBHxm%2Bxq6HjYjpZjG%2BE6wzYCC28PpNQ9UhCy8%2FJNSabw9RIrpaWo6xZ6uFodlyZ9bfk20%2BE%2B0r1%2BkXGagSlRazB6f2Y87h5Hxv197fyjYSyXFrroWYEUdquFbLOOx3HxeF5JNH0XeTkHlzr6wSg9si%2BkXmmRa8KN%2B%2BdyduDBJq8XzeJjOqjlURBUIceaaTWZJekGyiL6pUJLn140ylUUZ%2BZi%2FXAwOLY9gr%2FOJVo8jAW1tFXcmRmyHq2powcAmSPQMAleJgk1kJmdpooeldLoy%2Fhbd%2BHBZoUKyHe5M7koA5bNj9X5LJ3nBQN%2BQsjK6V0FLd%2Fybx7qcubNSE3OzZUT76KyqzckASmm&nvMid=21481647695&catId=50001332 | J61: =IF(G61=0,H61,IF(AND(G61=0,H61=0),I61,G61)) -> https://cr.shopping.naver.com/adcr.nhn?x=enzatiDgkhIVJh%2B3UrMkRP%2F%2F%2Fw%3D%3DsXgXZ7HTBw6xvIRXC6mZFZlmPpN%2BN6RSdBJYJ5F96Zpb%2BV2Z1R9fh6msUn3l%2FMjx5jwD%2Bmh%2BeXvWoHulQYZmz0TaYpsAx14Hf90UPkDplfK89Jl2wDM%2FAWKfycVx%2FkE3IfBqS3mXuWwE3MZp%2BCjkIC0gAn8lD2%2BxrgblrBqYwPdWug%2B9sjA7rHdeMLkY%2BwIMUIrNZNUsdr2lSDmkW%2FBHs%2F%2FV2raiCF7aFk4I1%2BRMpbA46%2FEXhZgbhtRjphLcAni%2FciitGqoWNKiHOCPjKnfgRA8uxJYlMD%2BCjtqS%2FXLNFGbVthMLLkE5u%2BEmsBzTOOCHE334rL%2BbR36BhYe0R%2FrUmjgBSTS1sRv49oBHxm%2Bxq6HjYjpZjG%2BE6wzYCC28PpNQ9UhCy8%2FJNSabw9RIrpaWo6xZ6uFodlyZ9bfk20%2BE%2B0r1%2BkXGagSlRazB6f2Y87h5Hxv197fyjYSyXFrroWYEUdquFbLOOx3HxeF5JNH0XeTkHlzr6wSg9si%2BkXmmRa8KN%2B%2BdyduDBJq8XzeJjOqjlURBUIceaaTWZJekGyiL6pUJLn140ylUUZ%2BZi%2FXAwOLY9gr%2FOJVo8jAW1tFXcmRmyHq2powcAmSPQMAleJgk1kJmdpooeldLoy%2Fhbd%2BHBZoUKyHe5M7koA5bNj9X5LJ3nBQN%2BQsjK6V0FLd%2Fybx7qcubNSE3OzZUT76KyqzckASmm&nvMid=21481647695&catId=50001332 | L61: =+_xlfn.RANK.AVG(Summary!I75,Summary!$I$13:$I$91,1) -> 13 | M61: =+_xlfn.RANK.AVG(Summary!J75,Summary!$J$13:$J$91,0) -> 29.5 | N61: =+_xlfn.RANK.AVG(Summary!K75,Summary!$K$13:$K$91,0) -> 21 | O61: 21.16666667 | P61: 20
A62: 33 | B62: 로니 초등학생책상 남아 초등여아 초등생 여자아이 책상 | C62: 블레스가구 | D62: 77000 | E62: 426 | F62: 239 | H62: https://cr.shopping.naver.com/adcr.nhn?x=7boTyRoaViIjIfRv9epLiP%2F%2F%2Fw%3D%3DskEUS8oqjKW5XOugbo4%2BN8BRgrSDfCrEScbTKzyk0ewtJtAyFw1aYn46AJKNp9asDae%2FMruxwixmJtygOUhfwlrlyGbkP5IIi2qAT3CZt%2FfaiO9cZ9iLBq8rClqnxrHHyb6qQFTvGZCOG08lHer4ShicX2AUq8VPh3PK%2Fo8l8aTkQ30gwb0ZAWnfX3Zzr1ayRmseR6M2a11XW6xeKert2VG0zIH2FLGL62hAwwGxnd%2F%2BDivgLUT8vYh1TsqkpNDO5gGwmPNX%2Fe%2BXkuZ30duRQYj%2FN1gL%2FBgCKENDMCz1nm%2F3jAVsHLS4SAhxNMQ8Kf06HjFycvU1rkxUjWYVHNaGhD6p2UIUlyIA5IF5YG%2FASKaGbUh2t7LDXIJfJJYZP9TxkRFadIoK8rzHqu58MsZGpJ78V1EwWtez52BEaVHx8fk8U%2BtRDub5BhGfSEg7zvcG5bax%2FE%2B7v%2FveqiBjHa9LspRGXF5r49MvbiNNO6C3bo9pO8dvO%2FCpAMyep73ThgEVnjglTgarkoSSdKuK0m%2BH%2FAxaU7ylmH5udFgPrstW60HtMgRMcs3KzajSOCbGpFQmoeHM07LmihecI5OExUtErgjKXey%2FRN9N0taa7brNWB%2BQzv9t7K%2FoqG2FadWhXpGCwHRyPBWbUFRhWScTsgQynPg%3D%3D&nvMid=82328867552&catId=50001332 | I62: https://m.smartstore.naver.com/main/products/4784345091 | J62: =IF(G62=0,H62,IF(AND(G62=0,H62=0),I62,G62)) -> https://cr.shopping.naver.com/adcr.nhn?x=7boTyRoaViIjIfRv9epLiP%2F%2F%2Fw%3D%3DskEUS8oqjKW5XOugbo4%2BN8BRgrSDfCrEScbTKzyk0ewtJtAyFw1aYn46AJKNp9asDae%2FMruxwixmJtygOUhfwlrlyGbkP5IIi2qAT3CZt%2FfaiO9cZ9iLBq8rClqnxrHHyb6qQFTvGZCOG08lHer4ShicX2AUq8VPh3PK%2Fo8l8aTkQ30gwb0ZAWnfX3Zzr1ayRmseR6M2a11XW6xeKert2VG0zIH2FLGL62hAwwGxnd%2F%2BDivgLUT8vYh1TsqkpNDO5gGwmPNX%2Fe%2BXkuZ30duRQYj%2FN1gL%2FBgCKENDMCz1nm%2F3jAVsHLS4SAhxNMQ8Kf06HjFycvU1rkxUjWYVHNaGhD6p2UIUlyIA5IF5YG%2FASKaGbUh2t7LDXIJfJJYZP9TxkRFadIoK8rzHqu58MsZGpJ78V1EwWtez52BEaVHx8fk8U%2BtRDub5BhGfSEg7zvcG5bax%2FE%2B7v%2FveqiBjHa9LspRGXF5r49MvbiNNO6C3bo9pO8dvO%2FCpAMyep73ThgEVnjglTgarkoSSdKuK0m%2BH%2FAxaU7ylmH5udFgPrstW60HtMgRMcs3KzajSOCbGpFQmoeHM07LmihecI5OExUtErgjKXey%2FRN9N0taa7brNWB%2BQzv9t7K%2FoqG2FadWhXpGCwHRyPBWbUFRhWScTsgQynPg%3D%3D&nvMid=82328867552&catId=50001332 | L62: =+_xlfn.RANK.AVG(Summary!I77,Summary!$I$13:$I$91,1) -> 5 | M62: =+_xlfn.RANK.AVG(Summary!J77,Summary!$J$13:$J$91,0) -> 6 | N62: =+_xlfn.RANK.AVG(Summary!K77,Summary!$K$13:$K$91,0) -> 16 | O62: 9 | P62: 2
A63: 34 | B63: 한샘 티오 일반 책상세트 5단 120cm | D63: 268690 | E63: 0 | F63: 913 | H63: https://cr.shopping.naver.com/adcr.nhn?x=2EdVbeRpSzaNycD394GoAP%2F%2F%2Fw%3D%3DsuzD6znNXRlbnA7IAp9Cu06WsSKCPZIhkxbTG2hvvX53D8KTAmf4KWGP7K8A663CArWNDttrQcem2B6vxEMOn%2FShlCEnbLUQVnr8Jm4coJROL8yT9vZuDvo2djJMqXDsCb7MfLQKIdjCgfcUPwbcJp0ls1M9xucXxkPPt7QTmSRFr6kdrp7BvT8OlwZ7P37YydZQx2w2HQTIaKcsLno93KF6O9OOLIgAH308KnS9qNinYlO%2Fk4kxCoWN1gk8LWSU%2BRbfNFVivhP8U%2BTROBimK%2BwWrj3yhjv32odB%2BAe4KRcC4culXwc2z5U0bwq8AvoHHA5ijqTU6jnRNRTh%2BkUVsAgez%2FY8eSma9aMvarLWce5sxxW%2BLDcNVaB%2FSVceQuOlNuGcDDnilH5XS4jOIjDNpLmQim0uSGV45GygZvcFQrpDj0P8%2FdwU83xB7daunXVIywJpyJeCQ7mZThl2MPB55bUqxorqzO%2BBGjlflcLUedbI6Tdnz0%2FgcjFFo1%2B29f5j5lbitycviE0uyocJSFu86%2BUXd7Cjx3EB9YqbHk82SWm1jO%2B%2FM9haxSxkyKvpIffjo8cU8Qz7MjNJleH5l43Vb5k%2FAJcUmJF2ix%2Feizcr9afUyFLPYQabNe2Q5d9UA4Ps2gZxocV4bhsriQ2ky7LQ6ZG9TZjqEQTAbFzUBl8432wvhVEAf6wwM5tqtSh0bB5Hx&nvMid=21041699603&catId=50001332 | J63: =IF(G63=0,H63,IF(AND(G63=0,H63=0),I63,G63)) -> https://cr.shopping.naver.com/adcr.nhn?x=2EdVbeRpSzaNycD394GoAP%2F%2F%2Fw%3D%3DsuzD6znNXRlbnA7IAp9Cu06WsSKCPZIhkxbTG2hvvX53D8KTAmf4KWGP7K8A663CArWNDttrQcem2B6vxEMOn%2FShlCEnbLUQVnr8Jm4coJROL8yT9vZuDvo2djJMqXDsCb7MfLQKIdjCgfcUPwbcJp0ls1M9xucXxkPPt7QTmSRFr6kdrp7BvT8OlwZ7P37YydZQx2w2HQTIaKcsLno93KF6O9OOLIgAH308KnS9qNinYlO%2Fk4kxCoWN1gk8LWSU%2BRbfNFVivhP8U%2BTROBimK%2BwWrj3yhjv32odB%2BAe4KRcC4culXwc2z5U0bwq8AvoHHA5ijqTU6jnRNRTh%2BkUVsAgez%2FY8eSma9aMvarLWce5sxxW%2BLDcNVaB%2FSVceQuOlNuGcDDnilH5XS4jOIjDNpLmQim0uSGV45GygZvcFQrpDj0P8%2FdwU83xB7daunXVIywJpyJeCQ7mZThl2MPB55bUqxorqzO%2BBGjlflcLUedbI6Tdnz0%2FgcjFFo1%2B29f5j5lbitycviE0uyocJSFu86%2BUXd7Cjx3EB9YqbHk82SWm1jO%2B%2FM9haxSxkyKvpIffjo8cU8Qz7MjNJleH5l43Vb5k%2FAJcUmJF2ix%2Feizcr9afUyFLPYQabNe2Q5d9UA4Ps2gZxocV4bhsriQ2ky7LQ6ZG9TZjqEQTAbFzUBl8432wvhVEAf6wwM5tqtSh0bB5Hx&nvMid=21041699603&catId=50001332 | L63: =+_xlfn.RANK.AVG(Summary!I79,Summary!$I$13:$I$91,1) -> 19 | M63: =+_xlfn.RANK.AVG(Summary!J79,Summary!$J$13:$J$91,0) -> 29.5 | N63: =+_xlfn.RANK.AVG(Summary!K79,Summary!$K$13:$K$91,0) -> 10 | O63: 19.5 | P63: 16.5
A64: 35 | B64: 라일리 어린이 성장형 기능성 각도조절 높이조절 초등학생책상 (책장포함) | C64: 가구컴퍼스 | D64: 248800 | E64: 147 | F64: 122 | H64: https://cr.shopping.naver.com/adcr.nhn?x=ar32asuHZYFSF0%2FaL651B%2F%2F%2F%2Fw%3D%3DslYuk1vQ7eTEgg93PMFhwmPImhCLwREV3fFXpX77VyrXD8KTAmf4KWGP7K8A663CAb6afAWDMutKd6PNvFKPG9K5dFkQZXyoSzWADs0nSxDWL8yT9vZuDvo2djJMqXDsCb7MfLQKIdjCgfcUPwbcJpwY7th%2Fb5X%2Fu%2F1YFVAUnhxaK4j5MTwF45Ni1%2FMJqrSg0X08Buc49SzUsA6GPz2r5Z75O8VOCBKYxuqLFaciD5%2BZKYA5QIjINJ7dXAMIsc7SJw6ZjbtkbN7RD61dGUzg7G1qsmhWtsS26cBgiQoajA6p4Wa%2FCY1L3m6Y0IkO1%2FWHEg5d22wmfe71io4ReYEk0oBZ6uFodlyZ9bfk20%2BE%2B0r1JvDQ1l1pPAts4e38qy7asPoVRGKE69U0rr5qui8URdrxmGULQHJtNrch4RO3yM4hXTOIesktZmgYzYROR55rzuHt%2Fm2pv4G6N8uoSeyPjaABfIVLPG5b7jGnJANE9ktbCZGtuTHR7vza%2FXPBztRym80vCfKOWAVuhH3Inq5of4esn9g%2BgC4DZ%2BZmdJqMHuvQ1iJodAE%2F6n5ONm0%2Bx60D0yMWkRTDlwbCMK7KzyHwBF6H54Y97sz4ydPvHZhi5Nyla1dKWnNn8T1TPkLqePUYpras4lwgKib8N3cKj6eANGG9TZjqEQTAbFzUBl8432wvhVEAf6wwM5tqtSh0bB5Hx&nvMid=82354567843&catId=50001332 | I64: https://m.smartstore.naver.com/main/products/4810045177 | J64: =IF(G64=0,H64,IF(AND(G64=0,H64=0),I64,G64)) -> https://cr.shopping.naver.com/adcr.nhn?x=ar32asuHZYFSF0%2FaL651B%2F%2F%2F%2Fw%3D%3DslYuk1vQ7eTEgg93PMFhwmPImhCLwREV3fFXpX77VyrXD8KTAmf4KWGP7K8A663CAb6afAWDMutKd6PNvFKPG9K5dFkQZXyoSzWADs0nSxDWL8yT9vZuDvo2djJMqXDsCb7MfLQKIdjCgfcUPwbcJpwY7th%2Fb5X%2Fu%2F1YFVAUnhxaK4j5MTwF45Ni1%2FMJqrSg0X08Buc49SzUsA6GPz2r5Z75O8VOCBKYxuqLFaciD5%2BZKYA5QIjINJ7dXAMIsc7SJw6ZjbtkbN7RD61dGUzg7G1qsmhWtsS26cBgiQoajA6p4Wa%2FCY1L3m6Y0IkO1%2FWHEg5d22wmfe71io4ReYEk0oBZ6uFodlyZ9bfk20%2BE%2B0r1JvDQ1l1pPAts4e38qy7asPoVRGKE69U0rr5qui8URdrxmGULQHJtNrch4RO3yM4hXTOIesktZmgYzYROR55rzuHt%2Fm2pv4G6N8uoSeyPjaABfIVLPG5b7jGnJANE9ktbCZGtuTHR7vza%2FXPBztRym80vCfKOWAVuhH3Inq5of4esn9g%2BgC4DZ%2BZmdJqMHuvQ1iJodAE%2F6n5ONm0%2Bx60D0yMWkRTDlwbCMK7KzyHwBF6H54Y97sz4ydPvHZhi5Nyla1dKWnNn8T1TPkLqePUYpras4lwgKib8N3cKj6eANGG9TZjqEQTAbFzUBl8432wvhVEAf6wwM5tqtSh0bB5Hx&nvMid=82354567843&catId=50001332 | L64: =+_xlfn.RANK.AVG(Summary!I81,Summary!$I$13:$I$91,1) -> 14 | M64: =+_xlfn.RANK.AVG(Summary!J81,Summary!$J$13:$J$91,0) -> 10 | N64: =+_xlfn.RANK.AVG(Summary!K81,Summary!$K$13:$K$91,0) -> 25 | O64: 16.33333333 | P64: 15
A65: 36 | B65: 일룸 로이 1400폭 5단 다리형 책상 SET | D65: 685000 | E65: 0 | F65: 155 | H65: https://cr.shopping.naver.com/adcr.nhn?x=BYPlj0RQhL4y%2BcOVUIANHf%2F%2F%2Fw%3D%3DsXwzM%2BDPChyzw4sjUDT%2BATjpFHaNTxFak7TbpaPj3Q0hJtAyFw1aYn46AJKNp9asDWced%2F7%2FzxQC04qCHdSxDgy7QGAvzJ557jbLHc8%2FGPNqiO9cZ9iLBq8rClqnxrHHyb6qQFTvGZCOG08lHer4ShtyGaSr%2B0dRu37W7MMIB4NFk9Io6iZoAfEBQfsbkhBMB8UZtM1jbqIVoPJhB%2FtfVlq%2FR0jGG9pLn%2B4g0KlKBbhH%2BGZlqeppNdVK2bKs2glgCN1CzfoTmgVhJuqiNatZgI5oC7oFHpSLbDFBBIk9qUb4gVc9gll0tM8AA6hcp67HBhmeWtJmvw8M90EK%2Bzy5a1yVdN3LpKf%2FbKuiZi7z1XJRShlwRQdfIEsclZ498SRQYXzu%2FxjtU0OrQyNqeH%2Bphr1d%2BqILAG09hjAR1K3qLYkDGBA2K8uYsFeUsJUDt0fRxyNG1EAqMpIwQNhblS8kmNLDzn3c5H6virFSgnW5KKdpd7HbUON0c%2B5w4TutUm7RGWQt7W%2B8%2FUq%2BOBQ57npf2ljUV5bdadpa9f0Fn3RNrUOCftYZrwVuKr%2Bn%2BIGGrqzjA8d9sBWHS5PONOq06FvvQu0%2FAJcUmJF2ix%2Feizcr9afXpcWAR46GqWP3G4%2BFRj9k%2FfOYzPXdCHYzQqRrqd%2B%2FWNW9TZjqEQTAbFzUBl8432wvhVEAf6wwM5tqtSh0bB5Hx&nvMid=18605492652&catId=50001332 | J65: =IF(G65=0,H65,IF(AND(G65=0,H65=0),I65,G65)) -> https://cr.shopping.naver.com/adcr.nhn?x=BYPlj0RQhL4y%2BcOVUIANHf%2F%2F%2Fw%3D%3DsXwzM%2BDPChyzw4sjUDT%2BATjpFHaNTxFak7TbpaPj3Q0hJtAyFw1aYn46AJKNp9asDWced%2F7%2FzxQC04qCHdSxDgy7QGAvzJ557jbLHc8%2FGPNqiO9cZ9iLBq8rClqnxrHHyb6qQFTvGZCOG08lHer4ShtyGaSr%2B0dRu37W7MMIB4NFk9Io6iZoAfEBQfsbkhBMB8UZtM1jbqIVoPJhB%2FtfVlq%2FR0jGG9pLn%2B4g0KlKBbhH%2BGZlqeppNdVK2bKs2glgCN1CzfoTmgVhJuqiNatZgI5oC7oFHpSLbDFBBIk9qUb4gVc9gll0tM8AA6hcp67HBhmeWtJmvw8M90EK%2Bzy5a1yVdN3LpKf%2FbKuiZi7z1XJRShlwRQdfIEsclZ498SRQYXzu%2FxjtU0OrQyNqeH%2Bphr1d%2BqILAG09hjAR1K3qLYkDGBA2K8uYsFeUsJUDt0fRxyNG1EAqMpIwQNhblS8kmNLDzn3c5H6virFSgnW5KKdpd7HbUON0c%2B5w4TutUm7RGWQt7W%2B8%2FUq%2BOBQ57npf2ljUV5bdadpa9f0Fn3RNrUOCftYZrwVuKr%2Bn%2BIGGrqzjA8d9sBWHS5PONOq06FvvQu0%2FAJcUmJF2ix%2Feizcr9afXpcWAR46GqWP3G4%2BFRj9k%2FfOYzPXdCHYzQqRrqd%2B%2FWNW9TZjqEQTAbFzUBl8432wvhVEAf6wwM5tqtSh0bB5Hx&nvMid=18605492652&catId=50001332 | L65: =+_xlfn.RANK.AVG(Summary!I83,Summary!$I$13:$I$91,1) -> 36 | M65: =+_xlfn.RANK.AVG(Summary!J83,Summary!$J$13:$J$91,0) -> 29.5 | N65: =+_xlfn.RANK.AVG(Summary!K83,Summary!$K$13:$K$91,0) -> 22 | O65: 29.16666667 | P65: 33
A66: 37 | B66: 일룸 로이모노 1400폭 5단 책상세트 D600 | D66: 599000 | E66: 0 | F66: 94 | H66: https://cr.shopping.naver.com/adcr.nhn?x=5TJp%2FjRWXTDxn0%2BlwJSMpf%2F%2F%2Fw%3D%3Dst2GL4V6mEaLDKHSVNpH%2Fgbwaqc2KZ3xt7UwKfQ7YbOJJtAyFw1aYn46AJKNp9asDPn7zaTS4iDLIw2fyXau8h9z8djdC%2F3%2B4Uo9bpqcGwg6iO9cZ9iLBq8rClqnxrHHyb6qQFTvGZCOG08lHer4ShtyGaSr%2B0dRu37W7MMIB4NFk9Io6iZoAfEBQfsbkhBMB20MCUUZaRD64wDiDGNQWMUGNDP7pzOfAmYssGuPo9HL%2BGZlqeppNdVK2bKs2glgCN1CzfoTmgVhJuqiNatZgI5oC7oFHpSLbDFBBIk9qUb4gVc9gll0tM8AA6hcp67HBhmeWtJmvw8M90EK%2Bzy5a1yVdN3LpKf%2FbKuiZi7z1XJQ3bNx%2FnBlfEz9gwqznHtRiFW%2BtQ6oypJtgXzIuzYwq5ld%2BqILAG09hjAR1K3qLYkBBZYiEa0N4FT2QliJZjGf%2F4WPBpOpZGz2HS1sCcTXDDbDzn3c5H6virFSgnW5KKdppkd1PTMGAhe4ZOCkFFIMZGuU09XJq%2FuFt2zCAlPuHDoS4irNABbDV09GK5SUFeP41QscUpgLt%2BxYDey0WS19WNp9vXjhGcgThnczqZqnSEMNqaKb5OR8crY265r4LmMRfLU4NjmwwU9pd3SkgpOJGPkB9RPewsneYQvsh1lplTSg6vLUqhZpK%2FOaT2tNtezFB0CIl3BeKsFF2drF%2B%2BsFv&nvMid=21445138228&catId=50001332 | J66: =IF(G66=0,H66,IF(AND(G66=0,H66=0),I66,G66)) -> https://cr.shopping.naver.com/adcr.nhn?x=5TJp%2FjRWXTDxn0%2BlwJSMpf%2F%2F%2Fw%3D%3Dst2GL4V6mEaLDKHSVNpH%2Fgbwaqc2KZ3xt7UwKfQ7YbOJJtAyFw1aYn46AJKNp9asDPn7zaTS4iDLIw2fyXau8h9z8djdC%2F3%2B4Uo9bpqcGwg6iO9cZ9iLBq8rClqnxrHHyb6qQFTvGZCOG08lHer4ShtyGaSr%2B0dRu37W7MMIB4NFk9Io6iZoAfEBQfsbkhBMB20MCUUZaRD64wDiDGNQWMUGNDP7pzOfAmYssGuPo9HL%2BGZlqeppNdVK2bKs2glgCN1CzfoTmgVhJuqiNatZgI5oC7oFHpSLbDFBBIk9qUb4gVc9gll0tM8AA6hcp67HBhmeWtJmvw8M90EK%2Bzy5a1yVdN3LpKf%2FbKuiZi7z1XJQ3bNx%2FnBlfEz9gwqznHtRiFW%2BtQ6oypJtgXzIuzYwq5ld%2BqILAG09hjAR1K3qLYkBBZYiEa0N4FT2QliJZjGf%2F4WPBpOpZGz2HS1sCcTXDDbDzn3c5H6virFSgnW5KKdppkd1PTMGAhe4ZOCkFFIMZGuU09XJq%2FuFt2zCAlPuHDoS4irNABbDV09GK5SUFeP41QscUpgLt%2BxYDey0WS19WNp9vXjhGcgThnczqZqnSEMNqaKb5OR8crY265r4LmMRfLU4NjmwwU9pd3SkgpOJGPkB9RPewsneYQvsh1lplTSg6vLUqhZpK%2FOaT2tNtezFB0CIl3BeKsFF2drF%2B%2BsFv&nvMid=21445138228&catId=50001332 | L66: =+_xlfn.RANK.AVG(Summary!I85,Summary!$I$13:$I$91,1) -> 35 | M66: =+_xlfn.RANK.AVG(Summary!J85,Summary!$J$13:$J$91,0) -> 29.5 | N66: =+_xlfn.RANK.AVG(Summary!K85,Summary!$K$13:$K$91,0) -> 27 | O66: 30.5 | P66: 36
A67: 38 | B67: 위드그로우 엘리트 책상 어린이 바른자세 높이각도조절 초등학생 책상 | D67: 269000 | E67: 0 | F67: 260 | H67: https://cr.shopping.naver.com/adcr.nhn?x=0SGsqdcx2P1gO2lvkf3Zxf%2F%2F%2Fw%3D%3Ds5jp7enKl9QT5xyc3EDUQaZBq2R1JZn%2Fv3UDDPGczdP7%2BV2Z1R9fh6msUn3l%2FMjx5K8TC%2BHmdsH2cpZh1cj3QMVp1BvIvuxTO2AS%2BvhSqjIU9Jl2wDM%2FAWKfycVx%2FkE3IfBqS3mXuWwE3MZp%2BCjkIC0gAn8lD2%2BxrgblrBqYwPdWug%2B9sjA7rHdeMLkY%2BwIMUMfF7ODc3WnM6LUARe6iFgvV2raiCF7aFk4I1%2BRMpbA46%2FEXhZgbhtRjphLcAni%2FciitGqoWNKiHOCPjKnfgRA8uxJYlMD%2BCjtqS%2FXLNFGbVthMLLkE5u%2BEmsBzTOOCHE334rL%2BbR36BhYe0R%2FrUmjgBSTS1sRv49oBHxm%2Bxq6HivxJTg3rudbhkuv4uvVGSgprIbu8OCQaCX%2BrgbkD%2FlgBZ6uFodlyZ9bfk20%2BE%2B0r1VtkruvLA17LMqLPhlM2kKPoVRGKE69U0rr5qui8URdqOtceUW2QHu4jFvQGcM4YEWCyFmhUqaP1ZCvMn4jaJMWIU4RVCXnaknwTRrIqCa7VwxsYVXLdG2z3ehX%2B%2F34hoPv%2FN4wqnBtLZGBuXCudmlBKwIrp99W3W8Toj631rtmDVCxxSmAu37FgN7LRZLX1aNRx4VJsG%2FpRRiwzFpikwXw2popvk5HxytjbrmvguYxB59i6NrJqBGbX7n5ktaFXotau9U0JnDatiDJPwDE%2FlayvGeSNjB5sk%2FFu2qE%2Fa8okHQIiXcF4qwUXZ2sX76wW8%3D&nvMid=24266408083&catId=50001332 | J67: =IF(G67=0,H67,IF(AND(G67=0,H67=0),I67,G67)) -> https://cr.shopping.naver.com/adcr.nhn?x=0SGsqdcx2P1gO2lvkf3Zxf%2F%2F%2Fw%3D%3Ds5jp7enKl9QT5xyc3EDUQaZBq2R1JZn%2Fv3UDDPGczdP7%2BV2Z1R9fh6msUn3l%2FMjx5K8TC%2BHmdsH2cpZh1cj3QMVp1BvIvuxTO2AS%2BvhSqjIU9Jl2wDM%2FAWKfycVx%2FkE3IfBqS3mXuWwE3MZp%2BCjkIC0gAn8lD2%2BxrgblrBqYwPdWug%2B9sjA7rHdeMLkY%2BwIMUMfF7ODc3WnM6LUARe6iFgvV2raiCF7aFk4I1%2BRMpbA46%2FEXhZgbhtRjphLcAni%2FciitGqoWNKiHOCPjKnfgRA8uxJYlMD%2BCjtqS%2FXLNFGbVthMLLkE5u%2BEmsBzTOOCHE334rL%2BbR36BhYe0R%2FrUmjgBSTS1sRv49oBHxm%2Bxq6HivxJTg3rudbhkuv4uvVGSgprIbu8OCQaCX%2BrgbkD%2FlgBZ6uFodlyZ9bfk20%2BE%2B0r1VtkruvLA17LMqLPhlM2kKPoVRGKE69U0rr5qui8URdqOtceUW2QHu4jFvQGcM4YEWCyFmhUqaP1ZCvMn4jaJMWIU4RVCXnaknwTRrIqCa7VwxsYVXLdG2z3ehX%2B%2F34hoPv%2FN4wqnBtLZGBuXCudmlBKwIrp99W3W8Toj631rtmDVCxxSmAu37FgN7LRZLX1aNRx4VJsG%2FpRRiwzFpikwXw2popvk5HxytjbrmvguYxB59i6NrJqBGbX7n5ktaFXotau9U0JnDatiDJPwDE%2FlayvGeSNjB5sk%2FFu2qE%2Fa8okHQIiXcF4qwUXZ2sX76wW8%3D&nvMid=24266408083&catId=50001332 | L67: =+_xlfn.RANK.AVG(Summary!I87,Summary!$I$13:$I$91,1) -> 21 | M67: =+_xlfn.RANK.AVG(Summary!J87,Summary!$J$13:$J$91,0) -> 29.5 | N67: =+_xlfn.RANK.AVG(Summary!K87,Summary!$K$13:$K$91,0) -> 14 | O67: 21.5 | P67: 21.5
A68: 39 | B68: [러브포엠] 이케아 PÅHL 폴 책상 화이트,핑크 ,블루,그린 3단높이 조절 책상 | C68: LOVE POEM | D68: 74900 | E68: 14 | F68: 1 | H68: https://cr.shopping.naver.com/adcr.nhn?x=4OKawEPFerGUI%2BByGuODW%2F%2F%2F%2Fw%3D%3DsirIln7BSApV%2BLkLgJ9OjkzDwQX85alFhYIDiHRAI5ElJtAyFw1aYn46AJKNp9asDe%2F%2BWLuYlbYgOH3NMwJHmla9kjzAhCfzqXAHj%2FteRfpyiO9cZ9iLBq8rClqnxrHHyb6qQFTvGZCOG08lHer4ShicX2AUq8VPh3PK%2Fo8l8aTkQ30gwb0ZAWnfX3Zzr1ayRKz8gT2KMhp%2BMKJ6Jk3Z%2BSwdS8NtJWn4dCAHfYcCdS7CDivgLUT8vYh1TsqkpNDO5gGwmPNX%2Fe%2BXkuZ30duRQYj%2FN1gL%2FBgCKENDMCz1nm%2F2mFFdr%2BSQW0%2FFEfcVQM5IPoDPxy%2F0R0S%2FsURXb68N1on3ERyFkjtvUjCWoeUuIcI%2FjA3CoXKSzEgMvSL8%2Fvu8HjB5%2BwQwTWqlzZqCmwHkzLzpMtTvF9VEIl205U3bDH8jAO9y8QxacTiEyHFDQwCpwTSmv20LU4Tz4yxVQiAhn1d2U2nPuyq0%2F%2BIzd%2BgXwUsUSEUORBKlOsHZxck9Gi5c0DvgLtyr7wv03XtmitGvUQePzIs9w9SL07adRVW6xpOilDslwvVnIx2yVxEamH6cIlWs2ie5mS8YCzalIwycsUD4hM85NwbjunrLgLz0TGt%2FJ777AnIahW533P2fpd8TftqlHFGEdLglK%2BFxTEVXnp%2BR79U%2F6Az3gE9mQ%2Flgn57E%3D&nvMid=82745285666&catId=50001332 | I68: https://m.smartstore.naver.com/main/products/5200764037 | J68: =IF(G68=0,H68,IF(AND(G68=0,H68=0),I68,G68)) -> https://cr.shopping.naver.com/adcr.nhn?x=4OKawEPFerGUI%2BByGuODW%2F%2F%2F%2Fw%3D%3DsirIln7BSApV%2BLkLgJ9OjkzDwQX85alFhYIDiHRAI5ElJtAyFw1aYn46AJKNp9asDe%2F%2BWLuYlbYgOH3NMwJHmla9kjzAhCfzqXAHj%2FteRfpyiO9cZ9iLBq8rClqnxrHHyb6qQFTvGZCOG08lHer4ShicX2AUq8VPh3PK%2Fo8l8aTkQ30gwb0ZAWnfX3Zzr1ayRKz8gT2KMhp%2BMKJ6Jk3Z%2BSwdS8NtJWn4dCAHfYcCdS7CDivgLUT8vYh1TsqkpNDO5gGwmPNX%2Fe%2BXkuZ30duRQYj%2FN1gL%2FBgCKENDMCz1nm%2F2mFFdr%2BSQW0%2FFEfcVQM5IPoDPxy%2F0R0S%2FsURXb68N1on3ERyFkjtvUjCWoeUuIcI%2FjA3CoXKSzEgMvSL8%2Fvu8HjB5%2BwQwTWqlzZqCmwHkzLzpMtTvF9VEIl205U3bDH8jAO9y8QxacTiEyHFDQwCpwTSmv20LU4Tz4yxVQiAhn1d2U2nPuyq0%2F%2BIzd%2BgXwUsUSEUORBKlOsHZxck9Gi5c0DvgLtyr7wv03XtmitGvUQePzIs9w9SL07adRVW6xpOilDslwvVnIx2yVxEamH6cIlWs2ie5mS8YCzalIwycsUD4hM85NwbjunrLgLz0TGt%2FJ777AnIahW533P2fpd8TftqlHFGEdLglK%2BFxTEVXnp%2BR79U%2F6Az3gE9mQ%2Flgn57E%3D&nvMid=82745285666&catId=50001332 | L68: =+_xlfn.RANK.AVG(Summary!I89,Summary!$I$13:$I$91,1) -> 3 | M68: =+_xlfn.RANK.AVG(Summary!J89,Summary!$J$13:$J$91,0) -> 17 | N68: =+_xlfn.RANK.AVG(Summary!K89,Summary!$K$13:$K$91,0) -> 38.5 | O68: 19.5 | P68: 16.5
A69: 40 | B69: 일룸 이타카네오 1400폭 7단 모션데스크 세트 | D69: 1318000 | E69: 0 | F69: 32 | H69: https://cr.shopping.naver.com/adcr.nhn?x=Y4DYOAico1shZ3TXKhCYkf%2F%2F%2Fw%3D%3DsEquuEIOf9GNSknSh4ymUH%2FkZWnoXZsFUtrkQiwo0X%2BIO0U7iBuW5jhI3nQa2BPSOMfyWS3atX3UXR0fWNprtKuFKmBN2jNgyx1fu2c2mFUdJ%2BmDaejXokPQBEaOjG2CKSRbFZoE9rkTcApB8DXr1fci30QtKP1mA7BYZPpxeJLexWvZfe2todmJfmpbNrXnqalteSokYOOMGAoDzIWsIM1x12x6FjR%2Bt3FBU03GHUKfB2Em03XMO49bLEPTDsSqpJl2PL5NanwBSvSvU4lYkp9KMO7iVYl1eD%2B6cluKu9Ibxa1S4%2B1DlHYjQhLW4IUVRy%2F6MHZ6u%2F5n6uuzlUc6JNEuUiTS4CHUtVxQrWeRhExiJpQqGIoOXyz50fDqhREx6ISFv7n5uAItYPm5%2BaPBVoKp2UIUlyIA5IF5YG%2FASKaHXdXtFNgUvdVF64J9fEBQxoCF9uZFzpP1D3UyqhUgjqvMz%2BSW9CAAPbCJoa%2BdYtl17yS5AZqF58g0cLzWryjiQblcp7xAl3oSnp4V8XZvMAFzB%2FnZaokmD%2BgCM4SN4RNqDuvmco3han7Wsfn4ZRv4TznoaR4i9bKSCc778rYnZqh%2FgurAzuZxMjlE%2B4UQMD%2Fn%2BrLgUB9VevFUnT%2BIRbg1YzzjzRgPaUhINhyalJN%2BnZ5aaZ22F%2Bx4VuPmDisC1N0IOEsHC78VBLnFZh%2FnDobeN&nvMid=18508703233&catId=50001332 | J69: =IF(G69=0,H69,IF(AND(G69=0,H69=0),I69,G69)) -> https://cr.shopping.naver.com/adcr.nhn?x=Y4DYOAico1shZ3TXKhCYkf%2F%2F%2Fw%3D%3DsEquuEIOf9GNSknSh4ymUH%2FkZWnoXZsFUtrkQiwo0X%2BIO0U7iBuW5jhI3nQa2BPSOMfyWS3atX3UXR0fWNprtKuFKmBN2jNgyx1fu2c2mFUdJ%2BmDaejXokPQBEaOjG2CKSRbFZoE9rkTcApB8DXr1fci30QtKP1mA7BYZPpxeJLexWvZfe2todmJfmpbNrXnqalteSokYOOMGAoDzIWsIM1x12x6FjR%2Bt3FBU03GHUKfB2Em03XMO49bLEPTDsSqpJl2PL5NanwBSvSvU4lYkp9KMO7iVYl1eD%2B6cluKu9Ibxa1S4%2B1DlHYjQhLW4IUVRy%2F6MHZ6u%2F5n6uuzlUc6JNEuUiTS4CHUtVxQrWeRhExiJpQqGIoOXyz50fDqhREx6ISFv7n5uAItYPm5%2BaPBVoKp2UIUlyIA5IF5YG%2FASKaHXdXtFNgUvdVF64J9fEBQxoCF9uZFzpP1D3UyqhUgjqvMz%2BSW9CAAPbCJoa%2BdYtl17yS5AZqF58g0cLzWryjiQblcp7xAl3oSnp4V8XZvMAFzB%2FnZaokmD%2BgCM4SN4RNqDuvmco3han7Wsfn4ZRv4TznoaR4i9bKSCc778rYnZqh%2FgurAzuZxMjlE%2B4UQMD%2Fn%2BrLgUB9VevFUnT%2BIRbg1YzzjzRgPaUhINhyalJN%2BnZ5aaZ22F%2Bx4VuPmDisC1N0IOEsHC78VBLnFZh%2FnDobeN&nvMid=18508703233&catId=50001332 | L69: =+_xlfn.RANK.AVG(Summary!I91,Summary!$I$13:$I$91,1) -> 40 | M69: =+_xlfn.RANK.AVG(Summary!J91,Summary!$J$13:$J$91,0) -> 29.5 | N69: =+_xlfn.RANK.AVG(Summary!K91,Summary!$K$13:$K$91,0) -> 32 | O69: 33.83333333 | P69: 39
M70: 40
